Body Name,Body,Expense Area,Expense Type,Expense Code,Date Paid,Transaction Number,Amount,Category,Supplier Name,Registration Number,Supplier ID
North Lincolnshire Council,http://data.ordnancesurvey.co.uk/id/7000000000025623,Culture & Related Services,Payments To Voluntary Orgs,6001,22/02/2019,5637610,"1,000.00",REVENUE,10th Scunthorpe Scout Group,,SCU0251U
North Lincolnshire Council,http://data.ordnancesurvey.co.uk/id/7000000000025623,Planning Services,Payments To Voluntary Orgs,6001,20/02/2019,5636145,"1,140.00",REVENUE,1st Gunness And Burringham Guides,,1ST0033T
North Lincolnshire Council,http://data.ordnancesurvey.co.uk/id/7000000000025623,Childrens & Education,Home To School Transport,4201,20/02/2019,5634637,"94,606.97",REVENUE,2 Way Transport Ltd,06909369,TWO0002O
North Lincolnshire Council,http://data.ordnancesurvey.co.uk/id/7000000000025623,Childrens & Education,Home To School Transport,4201,27/02/2019,5640073,"75,238.65",REVENUE,2 Way Transport Ltd,06909369,TWO0002O
North Lincolnshire Council,http://data.ordnancesurvey.co.uk/id/7000000000025623,Culture & Related Services,Payments To Voluntary Orgs,6001,06/02/2019,5627554,630.00,REVENUE,8th Ashby Brownies,,8TH0002H
North Lincolnshire Council,http://data.ordnancesurvey.co.uk/id/7000000000025623,Culture & Related Services,Payments To Voluntary Orgs,6001,06/02/2019,5627555,420.00,REVENUE,8th Ashby Rainbows,,8TH0004H
North Lincolnshire Council,http://data.ordnancesurvey.co.uk/id/7000000000025623,Childrens & Education,Home To School Transport,4201,20/02/2019,5634612,"2,028.05",REVENUE,Abu'S Taxis,,ABU0005U
North Lincolnshire Council,http://data.ordnancesurvey.co.uk/id/7000000000025623,Childrens & Education,Payments To Private Orgs,6002,13/03/2019,5640337,"8,000.00",REVENUE,Ac Education,,ACE0009E
North Lincolnshire Council,http://data.ordnancesurvey.co.uk/id/7000000000025623,Childrens & Education,Payments To Private Orgs,6002,17/04/2019,5634481,"24,465.00",REVENUE,Act Fast North Lincolnshire,,ACT0036T
North Lincolnshire Council,http://data.ordnancesurvey.co.uk/id/7000000000025623,Childrens & Education,Payments To Private Orgs,6002,17/04/2019,5634481,504.00,REVENUE,Act Fast North Lincolnshire,,ACT0036T
North Lincolnshire Council,http://data.ordnancesurvey.co.uk/id/7000000000025623,Corporate And Democratic Core,It Software-Maintenance,5053,08/03/2019,5638131,0,REVENUE,Active In Time Ltd,07706529,ACT0120T
North Lincolnshire Council,http://data.ordnancesurvey.co.uk/id/7000000000025623,Culture & Related Services,It Software-Maintenance,5053,08/03/2019,5638131,"1,560.00",REVENUE,Active In Time Ltd,07706529,ACT0120T
North Lincolnshire Council,http://data.ordnancesurvey.co.uk/id/7000000000025623,Childrens & Education,Client Transport Costs,6092,15/02/2019,5634535,"2,421.70",REVENUE,Actsure Ltd,2375365,FAS0002S
North Lincolnshire Council,http://data.ordnancesurvey.co.uk/id/7000000000025623,Childrens & Education,Client Transport Costs,6092,15/02/2019,5634540,669.80,REVENUE,Actsure Ltd,2375365,FAS0002S
North Lincolnshire Council,http://data.ordnancesurvey.co.uk/id/7000000000025623,Childrens & Education,Client Transport Costs,6092,20/02/2019,5633913,655.80,REVENUE,Actsure Ltd,2375365,FAS0002S
North Lincolnshire Council,http://data.ordnancesurvey.co.uk/id/7000000000025623,Childrens & Education,Home To School Transport,4201,15/02/2019,5634576,287.80,REVENUE,Actsure Ltd,2375365,FAS0002S
North Lincolnshire Council,http://data.ordnancesurvey.co.uk/id/7000000000025623,Childrens & Education,Home To School Transport,4201,15/02/2019,5634578,213.50,REVENUE,Actsure Ltd,2375365,FAS0002S
North Lincolnshire Council,http://data.ordnancesurvey.co.uk/id/7000000000025623,Childrens & Education,Home To School Transport,4201,15/02/2019,5634581,255.00,REVENUE,Actsure Ltd,2375365,FAS0002S
North Lincolnshire Council,http://data.ordnancesurvey.co.uk/id/7000000000025623,Childrens & Education,Home To School Transport,4201,15/02/2019,5634585,764.20,REVENUE,Actsure Ltd,2375365,FAS0002S
North Lincolnshire Council,http://data.ordnancesurvey.co.uk/id/7000000000025623,Childrens & Education,Home To School Transport,4201,20/02/2019,5634639,228.00,REVENUE,Actsure Ltd,2375365,FAS0002S
North Lincolnshire Council,http://data.ordnancesurvey.co.uk/id/7000000000025623,Childrens & Education,Rail & Other Fares,4121,20/02/2019,5634701,210.20,REVENUE,Actsure Ltd,2375365,FAS0002S
North Lincolnshire Council,http://data.ordnancesurvey.co.uk/id/7000000000025623,Adult Social Care,Repair & Maintenance Costs,3000,20/02/2019,5633331,390.10,REVENUE,Acumen Solutions Ltd,03320506,ACU0004U
North Lincolnshire Council,http://data.ordnancesurvey.co.uk/id/7000000000025623,Childrens & Education,Repair & Maintenance Costs,3000,20/02/2019,5633331,757.27,REVENUE,Acumen Solutions Ltd,03320506,ACU0004U
North Lincolnshire Council,http://data.ordnancesurvey.co.uk/id/7000000000025623,Corporate And Democratic Core,Materials,5004,20/02/2019,5636392,0,REVENUE,Acumen Solutions Ltd,03320506,ACU0004U
North Lincolnshire Council,http://data.ordnancesurvey.co.uk/id/7000000000025623,Corporate And Democratic Core,Repair & Maintenance Costs,3000,13/02/2019,5632049,225.00,REVENUE,Acumen Solutions Ltd,03320506,ACU0004U
North Lincolnshire Council,http://data.ordnancesurvey.co.uk/id/7000000000025623,Corporate And Democratic Core,Repair & Maintenance Costs,3000,15/02/2019,5634418,0,REVENUE,Acumen Solutions Ltd,03320506,ACU0004U
North Lincolnshire Council,http://data.ordnancesurvey.co.uk/id/7000000000025623,Corporate And Democratic Core,Repair & Maintenance Costs,3000,15/02/2019,5634431,300.00,REVENUE,Acumen Solutions Ltd,03320506,ACU0004U
North Lincolnshire Council,http://data.ordnancesurvey.co.uk/id/7000000000025623,Corporate And Democratic Core,Repair & Maintenance Costs,3000,15/02/2019,5634433,900.00,REVENUE,Acumen Solutions Ltd,03320506,ACU0004U
North Lincolnshire Council,http://data.ordnancesurvey.co.uk/id/7000000000025623,Corporate And Democratic Core,Repair & Maintenance Costs,3000,20/02/2019,5633331,"4,206.60",REVENUE,Acumen Solutions Ltd,03320506,ACU0004U
North Lincolnshire Council,http://data.ordnancesurvey.co.uk/id/7000000000025623,Corporate And Democratic Core,Repair & Maintenance Costs,3000,20/02/2019,5634825,225.40,REVENUE,Acumen Solutions Ltd,03320506,ACU0004U
North Lincolnshire Council,http://data.ordnancesurvey.co.uk/id/7000000000025623,Corporate And Democratic Core,Repair & Maintenance Costs,3000,20/02/2019,5634834,311.11,REVENUE,Acumen Solutions Ltd,03320506,ACU0004U
North Lincolnshire Council,http://data.ordnancesurvey.co.uk/id/7000000000025623,Corporate And Democratic Core,Repair & Maintenance Costs,3000,20/02/2019,5636392,394.16,REVENUE,Acumen Solutions Ltd,03320506,ACU0004U
North Lincolnshire Council,http://data.ordnancesurvey.co.uk/id/7000000000025623,Corporate And Democratic Core,Repair & Maintenance Costs,3000,20/02/2019,5636485,"1,091.22",REVENUE,Acumen Solutions Ltd,03320506,ACU0004U
North Lincolnshire Council,http://data.ordnancesurvey.co.uk/id/7000000000025623,Corporate And Democratic Core,Repair & Maintenance Costs,3000,27/02/2019,5639673,235.00,REVENUE,Acumen Solutions Ltd,03320506,ACU0004U
North Lincolnshire Council,http://data.ordnancesurvey.co.uk/id/7000000000025623,Corporate And Democratic Core,Repair & Maintenance Costs,3000,27/02/2019,5639674,435.00,REVENUE,Acumen Solutions Ltd,03320506,ACU0004U
North Lincolnshire Council,http://data.ordnancesurvey.co.uk/id/7000000000025623,Corporate And Democratic Core,Repair & Maintenance Costs,3000,27/02/2019,5639675,645.00,REVENUE,Acumen Solutions Ltd,03320506,ACU0004U
North Lincolnshire Council,http://data.ordnancesurvey.co.uk/id/7000000000025623,Culture & Related Services,Repair & Maintenance Costs,3000,15/02/2019,5634433,60.00,REVENUE,Acumen Solutions Ltd,03320506,ACU0004U
North Lincolnshire Council,http://data.ordnancesurvey.co.uk/id/7000000000025623,Culture & Related Services,Repair & Maintenance Costs,3000,20/02/2019,5633331,"1,164.66",REVENUE,Acumen Solutions Ltd,03320506,ACU0004U
North Lincolnshire Council,http://data.ordnancesurvey.co.uk/id/7000000000025623,Fin&Inv I&E,Equipment Maint.& Repair,5003,13/02/2019,5632048,225.00,REVENUE,Acumen Solutions Ltd,03320506,ACU0004U
North Lincolnshire Council,http://data.ordnancesurvey.co.uk/id/7000000000025623,Fin&Inv I&E,Repair & Maintenance Costs,3000,01/02/2019,5625954,413.91,REVENUE,Acumen Solutions Ltd,03320506,ACU0004U
North Lincolnshire Council,http://data.ordnancesurvey.co.uk/id/7000000000025623,Fin&Inv I&E,Repair & Maintenance Costs,3000,06/02/2019,5628908,317.23,REVENUE,Acumen Solutions Ltd,03320506,ACU0004U
North Lincolnshire Council,http://data.ordnancesurvey.co.uk/id/7000000000025623,Fin&Inv I&E,Repair & Maintenance Costs,3000,13/02/2019,5631447,225.00,REVENUE,Acumen Solutions Ltd,03320506,ACU0004U
North Lincolnshire Council,http://data.ordnancesurvey.co.uk/id/7000000000025623,Highways & Transport,Repair & Maintenance Costs,3000,20/02/2019,5633331,57.05,REVENUE,Acumen Solutions Ltd,03320506,ACU0004U
North Lincolnshire Council,http://data.ordnancesurvey.co.uk/id/7000000000025623,Non Distributed Costs,Capital Exp From Rev Acc (Cera,8200,13/02/2019,5632601,"9,800.00",REVENUE,Acumen Solutions Ltd,03320506,ACU0004U
North Lincolnshire Council,http://data.ordnancesurvey.co.uk/id/7000000000025623,Non Distributed Costs,Repair & Maintenance Costs,3000,06/02/2019,5626780,875.00,REVENUE,Acumen Solutions Ltd,03320506,ACU0004U
North Lincolnshire Council,http://data.ordnancesurvey.co.uk/id/7000000000025623,Non Distributed Costs,Repair & Maintenance Costs,3000,06/02/2019,5626783,256.01,REVENUE,Acumen Solutions Ltd,03320506,ACU0004U
North Lincolnshire Council,http://data.ordnancesurvey.co.uk/id/7000000000025623,Non Distributed Costs,Repair & Maintenance Costs,3000,06/02/2019,5626784,787.57,REVENUE,Acumen Solutions Ltd,03320506,ACU0004U
North Lincolnshire Council,http://data.ordnancesurvey.co.uk/id/7000000000025623,Non Distributed Costs,Repair & Maintenance Costs,3000,13/02/2019,5632603,472.44,REVENUE,Acumen Solutions Ltd,03320506,ACU0004U
North Lincolnshire Council,http://data.ordnancesurvey.co.uk/id/7000000000025623,Culture & Related Services,Equipment Maint.& Repair,5003,13/02/2019,5633129,490.00,REVENUE,Acumen Waste Services Ltd,,HIG0071G
North Lincolnshire Council,http://data.ordnancesurvey.co.uk/id/7000000000025623,Culture & Related Services,Equipment Maint.& Repair,5003,06/02/2019,5626352,211.60,REVENUE,Addplant Ltd,,ADD0001D
North Lincolnshire Council,http://data.ordnancesurvey.co.uk/id/7000000000025623,Environmental & Regulatory Svs,Equipment Maint.& Repair,5003,01/03/2019,5635892,211.60,REVENUE,Addplant Ltd,,ADD0001D
North Lincolnshire Council,http://data.ordnancesurvey.co.uk/id/7000000000025623,Highways & Transport,Subscriptions & Memberships,5510,27/02/2019,5633139,615.00,REVENUE,Adept,,ADE0080E
North Lincolnshire Council,http://data.ordnancesurvey.co.uk/id/7000000000025623,Childrens & Education,Telephone Rent/Calls,5403,08/03/2019,5637169,933.45,REVENUE,Adept 4 Managed It Limited,6056115,ADE0011E
North Lincolnshire Council,http://data.ordnancesurvey.co.uk/id/7000000000025623,Childrens & Education,Other Supplies & Services,5799,27/02/2019,5637166,"2,996.00",REVENUE,Adult Learning Improvement Network Ltd,04632142,ADU0020U
North Lincolnshire Council,http://data.ordnancesurvey.co.uk/id/7000000000025623,Corporate And Democratic Core,Repair & Maintenance Costs,3000,13/02/2019,5631733,"1,045.00",REVENUE,A F Carpets,,AFC0001C
North Lincolnshire Council,http://data.ordnancesurvey.co.uk/id/7000000000025623,Culture & Related Services,Repair & Maintenance Costs,3000,13/02/2019,5631733,"1,550.00",REVENUE,A F Carpets,,AFC0001C
North Lincolnshire Council,http://data.ordnancesurvey.co.uk/id/7000000000025623,Public Health,Payments To Health Providers,6019,27/02/2019,5639522,"14,474.42",REVENUE,Agencia Consulting Ltd,3448042,AGE0032E
North Lincolnshire Council,http://data.ordnancesurvey.co.uk/id/7000000000025623,Public Health,Payments To Health Providers,6019,01/03/2019,5631885,"17,369.30",REVENUE,Agencia Consulting Ltd,3448042,AGE0032E
North Lincolnshire Council,http://data.ordnancesurvey.co.uk/id/7000000000025623,Adult Social Care,Vehicle Hire,4101,22/02/2019,5637030,440.00,REVENUE,Age Uk Lindsey,,AGE0165E
North Lincolnshire Council,http://data.ordnancesurvey.co.uk/id/7000000000025623,Adult Social Care,Vehicle Hire,4101,27/02/2019,5640302,330.00,REVENUE,Age Uk Lindsey,,AGE0165E
North Lincolnshire Council,http://data.ordnancesurvey.co.uk/id/7000000000025623,Public Health,Equipment Purchase,5001,06/03/2019,5632754,484.00,REVENUE,Aidapt Bathrooms Ltd,,AID0003D
North Lincolnshire Council,http://data.ordnancesurvey.co.uk/id/7000000000025623,Fin&Inv I&E,Equipment Maint.& Repair,5003,15/02/2019,5633146,422.00,REVENUE,Airlines And Compressors (Yorks) Ltd,,AIR0008R
North Lincolnshire Council,http://data.ordnancesurvey.co.uk/id/7000000000025623,Culture & Related Services,Equipment Maint.& Repair,5003,27/02/2019,5640063,325.00,REVENUE,Airquee Limited,,AIR0062R
North Lincolnshire Council,http://data.ordnancesurvey.co.uk/id/7000000000025623,Culture & Related Services,Materials,5004,06/02/2019,5627516,"1,344.00",REVENUE,Aitkens Sportsturf Ltd,,AIT0006T
North Lincolnshire Council,http://data.ordnancesurvey.co.uk/id/7000000000025623,Adult Social Care,Leased Cars Rental,4301,27/03/2019,5639743,-460.32,REVENUE,Alphabet (Gb) Ltd,3282075,ING0039G
North Lincolnshire Council,http://data.ordnancesurvey.co.uk/id/7000000000025623,Adult Social Care,Payments To Private Orgs,6002,06/02/2019,5630649,"7,860.80",REVENUE,Amara Care,,ISF0006F
North Lincolnshire Council,http://data.ordnancesurvey.co.uk/id/7000000000025623,Adult Social Care,Payments To Private Orgs,6002,06/02/2019,5630649,"7,451.44",REVENUE,Amara Care,,ISF0006F
North Lincolnshire Council,http://data.ordnancesurvey.co.uk/id/7000000000025623,Adult Social Care,Payments To Private Orgs,6002,08/02/2019,5630628,434.52,REVENUE,Amara Care,4459044,AMA0002A
North Lincolnshire Council,http://data.ordnancesurvey.co.uk/id/7000000000025623,Adult Social Care,Payments To Private Orgs,6002,08/02/2019,5630628,"6,029.36",REVENUE,Amara Care,4459044,AMA0002A
North Lincolnshire Council,http://data.ordnancesurvey.co.uk/id/7000000000025623,Childrens & Education,Payments To Private Orgs,6002,15/02/2019,5633962,337.50,REVENUE,Amara Care,,ISF0006F
North Lincolnshire Council,http://data.ordnancesurvey.co.uk/id/7000000000025623,Childrens & Education,Payments To Private Orgs,6002,15/02/2019,5633965,484.20,REVENUE,Amara Care,,ISF0006F
North Lincolnshire Council,http://data.ordnancesurvey.co.uk/id/7000000000025623,Adult Social Care,Equipment Purchase,5001,20/02/2019,5634534,0,REVENUE,Amazon Payments Europe S.C.A.,,AMA0016A
North Lincolnshire Council,http://data.ordnancesurvey.co.uk/id/7000000000025623,Adult Social Care Capital,Other Costs,A085,20/02/2019,5634534,283.28,CAPITAL,Amazon Payments Europe S.C.A.,,AMA0016A
North Lincolnshire Council,http://data.ordnancesurvey.co.uk/id/7000000000025623,Adult Social Care,Payments To Private Orgs,6002,06/02/2019,5630667,"-1,172.57",REVENUE,Amber Care (Lincolnshire) Ltd,,ISF0038F
North Lincolnshire Council,http://data.ordnancesurvey.co.uk/id/7000000000025623,Adult Social Care,Payments To Private Orgs,6002,06/02/2019,5630668,"3,514.91",REVENUE,Amber Care (Lincolnshire) Ltd,,ISF0038F
North Lincolnshire Council,http://data.ordnancesurvey.co.uk/id/7000000000025623,Adult Social Care,Payments To Private Orgs,6002,06/02/2019,5630668,"1,456.56",REVENUE,Amber Care (Lincolnshire) Ltd,,ISF0038F
North Lincolnshire Council,http://data.ordnancesurvey.co.uk/id/7000000000025623,Adult Social Care Capital,Other Costs,A085,15/02/2019,5633393,350.00,CAPITAL,Ambre-Stone Ltd,11108770,AMB0080B
North Lincolnshire Council,http://data.ordnancesurvey.co.uk/id/7000000000025623,Adult Social Care Capital,Other Costs,A085,27/02/2019,5633394,530.00,CAPITAL,Ambre-Stone Ltd,11108770,AMB0080B
North Lincolnshire Council,http://data.ordnancesurvey.co.uk/id/7000000000025623,Culture & Related Services,Heating Fuels,3104,22/02/2019,5636203,"2,260.86",REVENUE,Amp Clean Energy,5735950,AMP0041P
North Lincolnshire Council,http://data.ordnancesurvey.co.uk/id/7000000000025623,Culture & Related Services,Heating Fuels,3104,22/02/2019,5636205,"2,306.00",REVENUE,Amp Clean Energy,5735950,AMP0041P
North Lincolnshire Council,http://data.ordnancesurvey.co.uk/id/7000000000025623,Culture & Related Services,Heating Fuels,3104,22/02/2019,5636206,"2,285.48",REVENUE,Amp Clean Energy,5735950,AMP0041P
North Lincolnshire Council,http://data.ordnancesurvey.co.uk/id/7000000000025623,Culture & Related Services,Heating Fuels,3104,22/02/2019,5636207,"2,199.32",REVENUE,Amp Clean Energy,5735950,AMP0041P
North Lincolnshire Council,http://data.ordnancesurvey.co.uk/id/7000000000025623,Culture & Related Services,Heating Fuels,3104,27/02/2019,5640059,"2,662.25",REVENUE,Amp Clean Energy,5735950,AMP0041P
North Lincolnshire Council,http://data.ordnancesurvey.co.uk/id/7000000000025623,Highways & Transport,Heating Fuels,3104,20/02/2019,5631383,"1,053.47",REVENUE,Amp Clean Energy,5735950,AMP0041P
North Lincolnshire Council,http://data.ordnancesurvey.co.uk/id/7000000000025623,Adult Social Care,Payments To Private Orgs,6002,06/02/2019,5630648,"-4,928.00",REVENUE,Amphion Home Care Services Ltd,,ISF0005F
North Lincolnshire Council,http://data.ordnancesurvey.co.uk/id/7000000000025623,Adult Social Care,Payments To Private Orgs,6002,06/02/2019,5630648,"5,561.24",REVENUE,Amphion Home Care Services Ltd,,ISF0005F
North Lincolnshire Council,http://data.ordnancesurvey.co.uk/id/7000000000025623,Adult Social Care,Payments To Private Orgs,6002,08/02/2019,5630630,"82,117.55",REVENUE,Amphion Home Care Services Ltd,03480829,AMP0002P
North Lincolnshire Council,http://data.ordnancesurvey.co.uk/id/7000000000025623,Adult Social Care,Payments To Private Orgs,6002,08/02/2019,5630630,"1,057.32",REVENUE,Amphion Home Care Services Ltd,03480829,AMP0002P
North Lincolnshire Council,http://data.ordnancesurvey.co.uk/id/7000000000025623,Childrens & Education,Home To School Transport,4201,15/02/2019,5634435,"23,506.00",REVENUE,Amvale Medical Transport Ltd,,AMV0003V
North Lincolnshire Council,http://data.ordnancesurvey.co.uk/id/7000000000025623,Childrens & Education,Home To School Transport,4201,15/02/2019,5634440,"8,260.00",REVENUE,Amvale Medical Transport Ltd,,AMV0003V
North Lincolnshire Council,http://data.ordnancesurvey.co.uk/id/7000000000025623,Childrens & Education,Home To School Transport,4201,20/02/2019,5634633,"7,421.00",REVENUE,Amvale Medical Transport Ltd,,AMV0003V
North Lincolnshire Council,http://data.ordnancesurvey.co.uk/id/7000000000025623,Corporate And Democratic Core,Other Premises Costs,3390,27/02/2019,5640128,"3,411.48",REVENUE,Ancholme Valley Heritage Trust Limited,,ANC0009C
North Lincolnshire Council,http://data.ordnancesurvey.co.uk/id/7000000000025623,Adult Social Care,Payments To Health Providers,6019,13/02/2019,5631856,"1,433.65",REVENUE,Ancora Medical Practice,,KEN0064N
North Lincolnshire Council,http://data.ordnancesurvey.co.uk/id/7000000000025623,"Culture,Env,Reg & Planning Cap",Other Costs,A085,22/02/2019,5637612,708.00,CAPITAL,Appleby Parish Council,,APP0006P
North Lincolnshire Council,http://data.ordnancesurvey.co.uk/id/7000000000025623,Culture & Related Services,Payments To Voluntary Orgs,6001,15/02/2019,5633970,396.36,REVENUE,Appleby Parish Council,,APP0006P
North Lincolnshire Council,http://data.ordnancesurvey.co.uk/id/7000000000025623,Culture & Related Services,Payments To Voluntary Orgs,6001,22/02/2019,5637612,53.64,REVENUE,Appleby Parish Council,,APP0006P
North Lincolnshire Council,http://data.ordnancesurvey.co.uk/id/7000000000025623,Culture & Related Services,Other Supplies & Services,5799,20/02/2019,5629846,361.00,REVENUE,Apple Of Your Isle,,APP0017P
North Lincolnshire Council,http://data.ordnancesurvey.co.uk/id/7000000000025623,Childrens & Education,Examination Fees,5730,15/03/2019,5640802,"1,094.25",REVENUE,A Q A Education,3644723,AQA0001A
North Lincolnshire Council,http://data.ordnancesurvey.co.uk/id/7000000000025623,Culture & Related Services,Equipment Maint.& Repair,5003,27/02/2019,5626865,425.74,REVENUE,Aquaclear Machines And Parts,,AQU0047U
North Lincolnshire Council,http://data.ordnancesurvey.co.uk/id/7000000000025623,Culture & Related Services,"Clothing, Uniforms & Laundry",5301,15/03/2019,5640029,313.17,REVENUE,Arco,,ARC0047C
North Lincolnshire Council,http://data.ordnancesurvey.co.uk/id/7000000000025623,Childrens & Education,Equipment Purchase,5001,15/02/2019,5631810,"1,304.80",REVENUE,Arco Ltd,133804,ARC0001C
North Lincolnshire Council,http://data.ordnancesurvey.co.uk/id/7000000000025623,Environmental & Regulatory Svs,"Clothing, Uniforms & Laundry",5301,20/02/2019,5632749,266.87,REVENUE,Arco Ltd,133804,ARC0001C
North Lincolnshire Council,http://data.ordnancesurvey.co.uk/id/7000000000025623,Highways & Transport,Concessionary Fares,6010,27/02/2019,5638140,675.55,REVENUE,Arriva Rail Northern Ltd,04337712,NOR0761R
North Lincolnshire Council,http://data.ordnancesurvey.co.uk/id/7000000000025623,Highways & Transport,Concessionary Fares,6010,27/02/2019,5638146,626.99,REVENUE,Arriva Rail Northern Ltd,04337712,NOR0761R
North Lincolnshire Council,http://data.ordnancesurvey.co.uk/id/7000000000025623,Highways & Transport,Concessionary Fares,6010,08/03/2019,5638138,618.80,REVENUE,Arriva Rail Northern Ltd,04337712,NOR0761R
North Lincolnshire Council,http://data.ordnancesurvey.co.uk/id/7000000000025623,Adult Social Care,Payments To Private Orgs,6002,22/02/2019,5633936,233.33,REVENUE,Arties Mill,,ART0028T
North Lincolnshire Council,http://data.ordnancesurvey.co.uk/id/7000000000025623,Childrens & Education,Client Related Costs,5534,08/02/2019,5630731,321.25,REVENUE,Arties Mill,,ART0028T
North Lincolnshire Council,http://data.ordnancesurvey.co.uk/id/7000000000025623,Housing Services,Other Supplies & Services,5799,06/02/2019,5625444,250.00,REVENUE,Arties Mill,,ART0028T
North Lincolnshire Council,http://data.ordnancesurvey.co.uk/id/7000000000025623,Housing Services,Other Supplies & Services,5799,06/02/2019,5625900,233.33,REVENUE,Arties Mill,,ART0028T
North Lincolnshire Council,http://data.ordnancesurvey.co.uk/id/7000000000025623,Housing Services,Other Supplies & Services,5799,06/02/2019,5626335,250.00,REVENUE,Arties Mill,,ART0028T
North Lincolnshire Council,http://data.ordnancesurvey.co.uk/id/7000000000025623,Housing Services,Other Supplies & Services,5799,08/02/2019,5630713,233.33,REVENUE,Arties Mill,,ART0028T
North Lincolnshire Council,http://data.ordnancesurvey.co.uk/id/7000000000025623,Housing Services,Other Supplies & Services,5799,15/02/2019,5633971,366.67,REVENUE,Arties Mill,,ART0028T
North Lincolnshire Council,http://data.ordnancesurvey.co.uk/id/7000000000025623,Housing Services,Other Supplies & Services,5799,15/02/2019,5633973,291.67,REVENUE,Arties Mill,,ART0028T
North Lincolnshire Council,http://data.ordnancesurvey.co.uk/id/7000000000025623,Housing Services,Other Supplies & Services,5799,27/02/2019,5638738,233.33,REVENUE,Arties Mill,,ART0028T
North Lincolnshire Council,http://data.ordnancesurvey.co.uk/id/7000000000025623,Fin&Inv I&E,Equipment Maint.& Repair,5003,01/02/2019,5626939,620.00,REVENUE,Arven Chemicals Ltd,1606370,ARV0006V
North Lincolnshire Council,http://data.ordnancesurvey.co.uk/id/7000000000025623,Fin&Inv I&E,Equipment Maint.& Repair,5003,22/02/2019,5635930,620.00,REVENUE,Arven Chemicals Ltd,1606370,ARV0006V
North Lincolnshire Council,http://data.ordnancesurvey.co.uk/id/7000000000025623,Childrens & Education,Home To School Transport,4201,20/02/2019,5634635,"20,424.10",REVENUE,Ashby Cars Ltd,,ROQ0001Q
North Lincolnshire Council,http://data.ordnancesurvey.co.uk/id/7000000000025623,Adult Social Care,Payments To Private Orgs,6002,06/02/2019,5630663,952.00,REVENUE,Ashby Meadows (Hica),,ISF0033F
North Lincolnshire Council,http://data.ordnancesurvey.co.uk/id/7000000000025623,Adult Social Care,Payments To Private Orgs,6002,06/02/2019,5630663,"14,486.99",REVENUE,Ashby Meadows (Hica),,ISF0033F
North Lincolnshire Council,http://data.ordnancesurvey.co.uk/id/7000000000025623,Adult Social Care,Payments To Private Orgs,6002,06/02/2019,5630664,-102.00,REVENUE,Ashby Meadows (Hica),,ISF0033F
North Lincolnshire Council,http://data.ordnancesurvey.co.uk/id/7000000000025623,Adult Social Care,Payments To Private Orgs,6002,06/02/2019,5630664,"-1,555.97",REVENUE,Ashby Meadows (Hica),,ISF0033F
North Lincolnshire Council,http://data.ordnancesurvey.co.uk/id/7000000000025623,Adult Social Care,Payments To Health Providers,6019,13/02/2019,5631852,494.01,REVENUE,Ashby Turn Primary Care Partners,,ASH0208H
North Lincolnshire Council,http://data.ordnancesurvey.co.uk/id/7000000000025623,Childrens & Education,Home To School Transport,4201,13/02/2019,5631798,"13,566.00",REVENUE,Ash Taxis,,ASH0070H
North Lincolnshire Council,http://data.ordnancesurvey.co.uk/id/7000000000025623,Fin&Inv I&E,Gen Office Exp (Incl Postage),5603,01/02/2019,5625873,"1,600.00",REVENUE,Ask4 Business Ltd,03614661,ASK0163K
North Lincolnshire Council,http://data.ordnancesurvey.co.uk/id/7000000000025623,Fin&Inv I&E,Gen Office Exp (Incl Postage),5603,01/02/2019,5625876,432.25,REVENUE,Ask4 Business Ltd,03614661,ASK0163K
North Lincolnshire Council,http://data.ordnancesurvey.co.uk/id/7000000000025623,Culture & Related Services,Books (Libraries+Schools Only),5005,13/02/2019,5626837,257.68,REVENUE,Askews & Holts Library Services Ltd,,ASK0005K
North Lincolnshire Council,http://data.ordnancesurvey.co.uk/id/7000000000025623,Culture & Related Services,Books (Libraries+Schools Only),5005,27/02/2019,5631416,319.21,REVENUE,Askews & Holts Library Services Ltd,,ASK0005K
North Lincolnshire Council,http://data.ordnancesurvey.co.uk/id/7000000000025623,Culture & Related Services,Books (Libraries+Schools Only),5005,06/03/2019,5634674,487.06,REVENUE,Askews & Holts Library Services Ltd,,ASK0005K
North Lincolnshire Council,http://data.ordnancesurvey.co.uk/id/7000000000025623,Highways & Transport,Subscriptions & Memberships,5510,20/02/2019,5631159,334.00,REVENUE,Association Of Drainage Authorities,8948603,ASS0150S
North Lincolnshire Council,http://data.ordnancesurvey.co.uk/id/7000000000025623,Central Services To Public,Course Fees/Training,2002,27/02/2019,5638486,760.00,REVENUE,Assoc. Of Electoral Administrators,,ASS0142S
North Lincolnshire Council,http://data.ordnancesurvey.co.uk/id/7000000000025623,Adult Social Care,Payments To Private Orgs,6002,06/02/2019,5630650,"8,532.08",REVENUE,A.T.C.S. Ltd,,ISF0007F
North Lincolnshire Council,http://data.ordnancesurvey.co.uk/id/7000000000025623,Adult Social Care,Payments To Private Orgs,6002,06/02/2019,5630650,"12,017.96",REVENUE,A.T.C.S. Ltd,,ISF0007F
North Lincolnshire Council,http://data.ordnancesurvey.co.uk/id/7000000000025623,Adult Social Care,Payments To Private Orgs,6002,08/02/2019,5630631,638.00,REVENUE,A.T.C.S. Ltd,05057212,ATC0006C
North Lincolnshire Council,http://data.ordnancesurvey.co.uk/id/7000000000025623,Adult Social Care,Payments To Private Orgs,6002,08/02/2019,5630631,"12,913.98",REVENUE,A.T.C.S. Ltd,05057212,ATC0006C
North Lincolnshire Council,http://data.ordnancesurvey.co.uk/id/7000000000025623,Corporate And Democratic Core,Gen Office Exp (Incl Postage),5603,20/02/2019,5633871,165.40,REVENUE,Avenue Stores,,AVE0005E
North Lincolnshire Council,http://data.ordnancesurvey.co.uk/id/7000000000025623,Corporate And Democratic Core,Gen Office Exp (Incl Postage),5603,20/02/2019,5633871,115.90,REVENUE,Avenue Stores,,AVE0005E
North Lincolnshire Council,http://data.ordnancesurvey.co.uk/id/7000000000025623,Childrens & Education,Home To School Transport,4201,20/02/2019,5634622,570.00,REVENUE,Axholme Taxis,,GLE0073E
North Lincolnshire Council,http://data.ordnancesurvey.co.uk/id/7000000000025623,Childrens & Education,Home To School Transport,4201,20/02/2019,5634623,"1,259.70",REVENUE,Axholme Taxis,,GLE0073E
North Lincolnshire Council,http://data.ordnancesurvey.co.uk/id/7000000000025623,Childrens & Education,Home To School Transport,4201,20/02/2019,5634624,581.40,REVENUE,Axholme Taxis,,GLE0073E
North Lincolnshire Council,http://data.ordnancesurvey.co.uk/id/7000000000025623,Environmental & Regulatory Svs,Other Vehicle Costs,4005,13/02/2019,5633147,587.23,REVENUE,B A Bush & Sons  Ltd,,BUS0283S
North Lincolnshire Council,http://data.ordnancesurvey.co.uk/id/7000000000025623,Environmental & Regulatory Svs,Other Vehicle Costs,4005,13/02/2019,5633197,363.77,REVENUE,B A Bush & Sons  Ltd,,BUS0283S
North Lincolnshire Council,http://data.ordnancesurvey.co.uk/id/7000000000025623,Fin&Inv I&E,Other Vehicle Costs,4005,13/02/2019,5633153,270.01,REVENUE,B A Bush & Sons  Ltd,,BUS0283S
North Lincolnshire Council,http://data.ordnancesurvey.co.uk/id/7000000000025623,Fin&Inv I&E,Other Vehicle Costs,4005,13/02/2019,5633195,232.84,REVENUE,B A Bush & Sons  Ltd,,BUS0283S
North Lincolnshire Council,http://data.ordnancesurvey.co.uk/id/7000000000025623,Fin&Inv I&E,Other Vehicle Costs,4005,22/02/2019,5633165,227.84,REVENUE,B A Bush & Sons  Ltd,,BUS0283S
North Lincolnshire Council,http://data.ordnancesurvey.co.uk/id/7000000000025623,Fin&Inv I&E,Other Vehicle Costs,4005,22/02/2019,5633168,304.26,REVENUE,B A Bush & Sons  Ltd,,BUS0283S
North Lincolnshire Council,http://data.ordnancesurvey.co.uk/id/7000000000025623,Fin&Inv I&E,Other Vehicle Costs,4005,22/02/2019,5633170,260.65,REVENUE,B A Bush & Sons  Ltd,,BUS0283S
North Lincolnshire Council,http://data.ordnancesurvey.co.uk/id/7000000000025623,Fin&Inv I&E,Other Vehicle Costs,4005,22/02/2019,5633171,473.80,REVENUE,B A Bush & Sons  Ltd,,BUS0283S
North Lincolnshire Council,http://data.ordnancesurvey.co.uk/id/7000000000025623,Fin&Inv I&E,Other Vehicle Costs,4005,22/02/2019,5633172,521.30,REVENUE,B A Bush & Sons  Ltd,,BUS0283S
North Lincolnshire Council,http://data.ordnancesurvey.co.uk/id/7000000000025623,Fin&Inv I&E,Other Vehicle Costs,4005,22/02/2019,5633173,329.02,REVENUE,B A Bush & Sons  Ltd,,BUS0283S
North Lincolnshire Council,http://data.ordnancesurvey.co.uk/id/7000000000025623,Fin&Inv I&E,Other Vehicle Costs,4005,22/02/2019,5633174,473.80,REVENUE,B A Bush & Sons  Ltd,,BUS0283S
North Lincolnshire Council,http://data.ordnancesurvey.co.uk/id/7000000000025623,Fin&Inv I&E,Other Vehicle Costs,4005,22/02/2019,5633175,236.90,REVENUE,B A Bush & Sons  Ltd,,BUS0283S
North Lincolnshire Council,http://data.ordnancesurvey.co.uk/id/7000000000025623,Fin&Inv I&E,Other Vehicle Costs,4005,27/02/2019,5633176,289.06,REVENUE,B A Bush & Sons  Ltd,,BUS0283S
North Lincolnshire Council,http://data.ordnancesurvey.co.uk/id/7000000000025623,Fin&Inv I&E,Other Vehicle Costs,4005,27/02/2019,5633194,473.80,REVENUE,B A Bush & Sons  Ltd,,BUS0283S
North Lincolnshire Council,http://data.ordnancesurvey.co.uk/id/7000000000025623,Fin&Inv I&E,Other Vehicle Costs,4005,08/03/2019,5635938,260.65,REVENUE,B A Bush & Sons  Ltd,,BUS0283S
North Lincolnshire Council,http://data.ordnancesurvey.co.uk/id/7000000000025623,Fin&Inv I&E,Other Vehicle Costs,4005,08/03/2019,5635940,272.45,REVENUE,B A Bush & Sons  Ltd,,BUS0283S
North Lincolnshire Council,http://data.ordnancesurvey.co.uk/id/7000000000025623,Fin&Inv I&E,Other Vehicle Costs,4005,13/03/2019,5639378,270.29,REVENUE,B A Bush & Sons  Ltd,,BUS0283S
North Lincolnshire Council,http://data.ordnancesurvey.co.uk/id/7000000000025623,Culture & Related Services,Payments To Voluntary Orgs,6001,15/02/2019,5634686,500.00,REVENUE,Barnetby Community Club,,BAR0967R
North Lincolnshire Council,http://data.ordnancesurvey.co.uk/id/7000000000025623,Childrens & Education,Home To School Transport,4201,15/02/2019,5634572,"4,853.00",REVENUE,Barnetby Private Hire,,BAR0764R
North Lincolnshire Council,http://data.ordnancesurvey.co.uk/id/7000000000025623,Corporate And Democratic Core,Repair & Maintenance Costs,3000,06/02/2019,5626791,"2,795.00",REVENUE,Barrier Security,,BAR0421R
North Lincolnshire Council,http://data.ordnancesurvey.co.uk/id/7000000000025623,Corporate And Democratic Core,Repair & Maintenance Costs,3000,13/02/2019,5631449,257.16,REVENUE,Barrier Security,,BAR0421R
North Lincolnshire Council,http://data.ordnancesurvey.co.uk/id/7000000000025623,Corporate And Democratic Core,Repair & Maintenance Costs,3000,13/02/2019,5631739,0,REVENUE,Barrier Security,,BAR0421R
North Lincolnshire Council,http://data.ordnancesurvey.co.uk/id/7000000000025623,Corporate And Democratic Core,Repair & Maintenance Costs,3000,13/02/2019,5631742,0,REVENUE,Barrier Security,,BAR0421R
North Lincolnshire Council,http://data.ordnancesurvey.co.uk/id/7000000000025623,Corporate And Democratic Core,Repair & Maintenance Costs,3000,20/02/2019,5637027,317.44,REVENUE,Barrier Security,,BAR0421R
North Lincolnshire Council,http://data.ordnancesurvey.co.uk/id/7000000000025623,Corporate And Democratic Core,Repair & Maintenance Costs,3000,20/02/2019,5637029,335.00,REVENUE,Barrier Security,,BAR0421R
North Lincolnshire Council,http://data.ordnancesurvey.co.uk/id/7000000000025623,Corporate And Democratic Core,Repair & Maintenance Costs,3000,20/02/2019,5637037,564.92,REVENUE,Barrier Security,,BAR0421R
North Lincolnshire Council,http://data.ordnancesurvey.co.uk/id/7000000000025623,Corporate And Democratic Core,Repair & Maintenance Costs,3000,27/02/2019,5640150,365.00,REVENUE,Barrier Security,,BAR0421R
North Lincolnshire Council,http://data.ordnancesurvey.co.uk/id/7000000000025623,Environmental & Regulatory Svs,Repair & Maintenance Costs,3000,20/02/2019,5637031,350.50,REVENUE,Barrier Security,,BAR0421R
North Lincolnshire Council,http://data.ordnancesurvey.co.uk/id/7000000000025623,"Culture,Env,Reg & Planning Cap",Other Costs,A085,22/02/2019,5637617,"10,000.00",CAPITAL,Barrow Methodist Church,,BAR0414R
North Lincolnshire Council,http://data.ordnancesurvey.co.uk/id/7000000000025623,Culture & Related Services,Payments To Voluntary Orgs,6001,22/02/2019,5637618,"5,850.00",REVENUE,Barton Junior Football Club,,BAR0325R
North Lincolnshire Council,http://data.ordnancesurvey.co.uk/id/7000000000025623,Childrens & Education,Client Transport Costs,6092,15/02/2019,5634544,"14,377.00",REVENUE,Barton Tt Taxis Ltd,07405760,BAR0888R
North Lincolnshire Council,http://data.ordnancesurvey.co.uk/id/7000000000025623,Childrens & Education,Home To School Transport,4201,20/02/2019,5634735,266.00,REVENUE,Barton Tt Taxis Ltd,07405760,BAR0888R
North Lincolnshire Council,http://data.ordnancesurvey.co.uk/id/7000000000025623,Childrens & Education,Home To School Transport,4201,20/02/2019,5634756,522.50,REVENUE,Barton Tt Taxis Ltd,07405760,BAR0888R
North Lincolnshire Council,http://data.ordnancesurvey.co.uk/id/7000000000025623,Childrens & Education,Home To School Transport,4201,20/02/2019,5634831,304.00,REVENUE,Barton Tt Taxis Ltd,07405760,BAR0888R
North Lincolnshire Council,http://data.ordnancesurvey.co.uk/id/7000000000025623,Childrens & Education,Home To School Transport,4201,20/02/2019,5634838,321.50,REVENUE,Barton Tt Taxis Ltd,07405760,BAR0888R
North Lincolnshire Council,http://data.ordnancesurvey.co.uk/id/7000000000025623,Childrens & Education,Home To School Transport,4201,20/02/2019,5634841,294.00,REVENUE,Barton Tt Taxis Ltd,07405760,BAR0888R
North Lincolnshire Council,http://data.ordnancesurvey.co.uk/id/7000000000025623,"Culture,Env,Reg & Planning Cap",Other Costs,A085,06/02/2019,5627559,"7,000.00",CAPITAL,Barton Upon Humber Constitutional Club Ltd,,CON0142N
North Lincolnshire Council,http://data.ordnancesurvey.co.uk/id/7000000000025623,Childrens & Education,Advertising & Publicity,5610,27/02/2019,5640181,"1,415.19",REVENUE,Bauer Radio Ltd,,BAU0005U
North Lincolnshire Council,http://data.ordnancesurvey.co.uk/id/7000000000025623,Childrens & Education,Advertising & Publicity,5610,06/03/2019,5640176,548.46,REVENUE,Bauer Radio Ltd,,BAU0005U
North Lincolnshire Council,http://data.ordnancesurvey.co.uk/id/7000000000025623,Housing Services,Fees & Charges Income,9002,01/03/2019,5637085,-700.00,REVENUE,Belton Construction,08003557,BEL0219L
North Lincolnshire Council,http://data.ordnancesurvey.co.uk/id/7000000000025623,"Culture,Env,Reg & Planning Cap",Other Costs,A085,20/02/2019,5631199,370.00,CAPITAL,Belton Parish Council,,BEL0029L
North Lincolnshire Council,http://data.ordnancesurvey.co.uk/id/7000000000025623,Culture & Related Services,Payments To Voluntary Orgs,6001,20/02/2019,5631199,250.00,REVENUE,Belton Parish Council,,BEL0029L
North Lincolnshire Council,http://data.ordnancesurvey.co.uk/id/7000000000025623,Childrens & Education,Home To School Transport,4201,27/02/2019,5634616,"2,160.00",REVENUE,Best Futures School,,BFS0001S
North Lincolnshire Council,http://data.ordnancesurvey.co.uk/id/7000000000025623,Childrens & Education,Home To School Transport,4201,27/03/2019,5640101,"1,800.00",REVENUE,Best Futures School,,BFS0001S
North Lincolnshire Council,http://data.ordnancesurvey.co.uk/id/7000000000025623,Childrens & Education,Home To School Transport,4201,28/04/2019,5640102,"2,520.00",REVENUE,Best Futures School,,BFS0001S
North Lincolnshire Council,http://data.ordnancesurvey.co.uk/id/7000000000025623,"Culture,Env,Reg & Planning Cap",Other Costs,A085,06/02/2019,5627557,"5,215.00",CAPITAL,Better Barrow Community Project,,BET0032T
North Lincolnshire Council,http://data.ordnancesurvey.co.uk/id/7000000000025623,"Culture,Env,Reg & Planning Cap",Other Costs,A085,20/02/2019,5631200,"4,785.00",CAPITAL,Better Barrow Community Project,,BET0032T
North Lincolnshire Council,http://data.ordnancesurvey.co.uk/id/7000000000025623,Adult Social Care,Legal Fees,5823,20/02/2019,5633412,871.70,REVENUE,Bevan Brittan Llp Client Account,,BEV0120V
North Lincolnshire Council,http://data.ordnancesurvey.co.uk/id/7000000000025623,Corporate And Democratic Core,Legal Fees,5823,20/02/2019,5633412,500.00,REVENUE,Bevan Brittan Llp Client Account,,BEV0120V
North Lincolnshire Council,http://data.ordnancesurvey.co.uk/id/7000000000025623,Corporate And Democratic Core,Other Supplies & Services,5799,08/02/2019,5631109,"8,000.00",REVENUE,Bg Solicitors,,BGS0003S
North Lincolnshire Council,http://data.ordnancesurvey.co.uk/id/7000000000025623,Culture & Related Services,It Hardware -Purchase,5050,22/02/2019,5626822,285.00,REVENUE,Bibliotheca Ltd,,INT0169T
North Lincolnshire Council,http://data.ordnancesurvey.co.uk/id/7000000000025623,Culture & Related Services,It Software-Maintenance,5053,15/02/2019,5633143,350.00,REVENUE,Bibliotheca Ltd,,INT0169T
North Lincolnshire Council,http://data.ordnancesurvey.co.uk/id/7000000000025623,Culture & Related Services,It Software-Maintenance,5053,15/02/2019,5633144,350.00,REVENUE,Bibliotheca Ltd,,INT0169T
North Lincolnshire Council,http://data.ordnancesurvey.co.uk/id/7000000000025623,Environmental & Regulatory Svs,Payments To Private Orgs,6002,08/02/2019,5628488,871.59,REVENUE,Biffa Waste Services Plc,00946107,BIF0005F
North Lincolnshire Council,http://data.ordnancesurvey.co.uk/id/7000000000025623,Culture & Related Services,Other Professional Fees,5829,22/02/2019,5637690,800.00,REVENUE,Big T Sound Engineers,,BIG0062G
North Lincolnshire Council,http://data.ordnancesurvey.co.uk/id/7000000000025623,Environmental & Regulatory Svs,Payments To Private Orgs,6002,06/02/2019,5627057,"6,650.41",REVENUE,Biowise Ltd,04305295,BIO0014O
North Lincolnshire Council,http://data.ordnancesurvey.co.uk/id/7000000000025623,Environmental & Regulatory Svs,Payments To Private Orgs,6002,13/02/2019,5631326,"11,649.93",REVENUE,Biowise Ltd,04305295,BIO0014O
North Lincolnshire Council,http://data.ordnancesurvey.co.uk/id/7000000000025623,Environmental & Regulatory Svs,Payments To Private Orgs,6002,27/02/2019,5633125,"12,923.12",REVENUE,Biowise Ltd,04305295,BIO0014O
North Lincolnshire Council,http://data.ordnancesurvey.co.uk/id/7000000000025623,Environmental & Regulatory Svs,Payments To Private Orgs,6002,27/02/2019,5634799,"7,946.69",REVENUE,Biowise Ltd,04305295,BIO0014O
North Lincolnshire Council,http://data.ordnancesurvey.co.uk/id/7000000000025623,Adult Social Care,Repair & Maintenance Costs,3000,06/02/2019,5628905,916.67,REVENUE,Birkdale Manufacturing Group Ltd,,BIR0003R
North Lincolnshire Council,http://data.ordnancesurvey.co.uk/id/7000000000025623,Childrens & Education,Materials,5004,13/03/2019,5640799,259.00,REVENUE,Bksb Ltd,,BSK0032K
North Lincolnshire Council,http://data.ordnancesurvey.co.uk/id/7000000000025623,Childrens & Education,Subscriptions & Memberships,5510,20/02/2019,5626849,"1,309.00",REVENUE,Bksb Ltd,,BSK0032K
North Lincolnshire Council,http://data.ordnancesurvey.co.uk/id/7000000000025623,Childrens & Education,Home To School Transport,4201,20/02/2019,5631928,"3,960.00",REVENUE,Black And White Coaches,,BLA0209A
North Lincolnshire Council,http://data.ordnancesurvey.co.uk/id/7000000000025623,Childrens & Education,Home To School Transport,4201,20/02/2019,5631931,"2,923.91",REVENUE,Black And White Coaches,,BLA0209A
North Lincolnshire Council,http://data.ordnancesurvey.co.uk/id/7000000000025623,Childrens & Education,Home To School Transport,4201,20/02/2019,5634855,"2,849.81",REVENUE,Black And White Coaches,,BLA0209A
North Lincolnshire Council,http://data.ordnancesurvey.co.uk/id/7000000000025623,Highways & Transport,Passenger Transport,6011,08/02/2019,5629302,"3,112.45",REVENUE,Black And White Coaches,,BLA0209A
North Lincolnshire Council,http://data.ordnancesurvey.co.uk/id/7000000000025623,Highways & Transport,Passenger Transport,6011,08/02/2019,5629303,"4,359.80",REVENUE,Black And White Coaches,,BLA0209A
North Lincolnshire Council,http://data.ordnancesurvey.co.uk/id/7000000000025623,Culture & Related Services,Other Supplies & Services,5799,01/02/2019,5625950,355.90,REVENUE,Bliss Distribution Ltd,05804422,DRA0038A
North Lincolnshire Council,http://data.ordnancesurvey.co.uk/id/7000000000025623,Culture & Related Services,Other Supplies & Services,5799,08/02/2019,5629831,364.35,REVENUE,Bliss Distribution Ltd,05804422,DRA0038A
North Lincolnshire Council,http://data.ordnancesurvey.co.uk/id/7000000000025623,Corporate And Democratic Core,Repair & Maintenance Costs,3000,15/02/2019,5634413,305.00,REVENUE,Bluewater Plumbing Services,,BLU0098U
North Lincolnshire Council,http://data.ordnancesurvey.co.uk/id/7000000000025623,Culture & Related Services,Equipment Hire/Rent,5002,01/03/2019,5633456,"1,137.49",REVENUE,Bnp Paribas Lease Group (Rentals),,BNP0002P
North Lincolnshire Council,http://data.ordnancesurvey.co.uk/id/7000000000025623,Culture & Related Services,Payments To Voluntary Orgs,6001,27/02/2019,5640031,831.60,REVENUE,Bottesford In Bloom,,BOT0034T
North Lincolnshire Council,http://data.ordnancesurvey.co.uk/id/7000000000025623,Environmental & Regulatory Svs,Other Premises Costs,3390,13/02/2019,5631273,772.00,REVENUE,Brendeck Ltd,,BRE0027E
North Lincolnshire Council,http://data.ordnancesurvey.co.uk/id/7000000000025623,"Culture,Env,Reg & Planning Cap",Other Costs,A085,20/02/2019,5631201,"15,000.00",CAPITAL,Brigg Parochial Church Council,,BRI0024I
North Lincolnshire Council,http://data.ordnancesurvey.co.uk/id/7000000000025623,Highways & Transport,Gen Office Exp (Incl Postage),5603,08/02/2019,5630718,661.00,REVENUE,British Parking Association Safer Parking Sch,,BRI0590I
North Lincolnshire Council,http://data.ordnancesurvey.co.uk/id/7000000000025623,Planning Services,Other Supplies & Services,5799,08/03/2019,5639585,985.00,REVENUE,British Standards Institution,,BRI0015I
North Lincolnshire Council,http://data.ordnancesurvey.co.uk/id/7000000000025623,Corporate And Democratic Core,Telephone Rent/Calls,5403,20/02/2019,5635195,804.97,REVENUE,British Telecom Plc,1800000,BRI0020I
North Lincolnshire Council,http://data.ordnancesurvey.co.uk/id/7000000000025623,Corporate And Democratic Core,Telephone Rent/Calls,5403,20/02/2019,5635196,751.40,REVENUE,British Telecom Plc,1800000,BRI0020I
North Lincolnshire Council,http://data.ordnancesurvey.co.uk/id/7000000000025623,Culture & Related Services,Telephone Rent/Calls,5403,15/02/2019,5629414,"2,996.47",REVENUE,British Telecom Plc,1800000,BRI0020I
North Lincolnshire Council,http://data.ordnancesurvey.co.uk/id/7000000000025623,Childrens & Education,Other Supplies & Services,5799,22/02/2019,5634587,540.00,REVENUE,British Youth Council,,BRI0611I
North Lincolnshire Council,http://data.ordnancesurvey.co.uk/id/7000000000025623,Housing Services,Fees & Charges Income,9002,15/02/2019,5631266,-200.00,REVENUE,Broad Oak Properties Ltd,,BRO0278O
North Lincolnshire Council,http://data.ordnancesurvey.co.uk/id/7000000000025623,Housing Services,Fees & Charges Income,9002,22/02/2019,5637089,-200.00,REVENUE,Broad Oak Properties Ltd,,BRO0278O
North Lincolnshire Council,http://data.ordnancesurvey.co.uk/id/7000000000025623,Housing Services,Fees & Charges Income,9002,06/03/2019,5637088,-200.00,REVENUE,Broad Oak Properties Ltd,,BRO0278O
North Lincolnshire Council,http://data.ordnancesurvey.co.uk/id/7000000000025623,Culture & Related Services,Equipment Maint.& Repair,5003,20/02/2019,5634561,306.45,REVENUE,Burdens Group Ltd,,BUR0253R
North Lincolnshire Council,http://data.ordnancesurvey.co.uk/id/7000000000025623,Culture & Related Services,Payments To Voluntary Orgs,6001,15/02/2019,5633972,250.00,REVENUE,Burringham Parish Council,,BUR0003R
North Lincolnshire Council,http://data.ordnancesurvey.co.uk/id/7000000000025623,Environmental & Regulatory Svs,Other Supplies & Services,5799,01/03/2019,5640233,569.90,REVENUE,Burton Upon Stather Parish Council,,BUR0468R
North Lincolnshire Council,http://data.ordnancesurvey.co.uk/id/7000000000025623,Childrens & Education,Client Related Costs,5534,22/02/2019,5637922,312.80,REVENUE,Busi Bodies Day Nursery,,BUS0015S
North Lincolnshire Council,http://data.ordnancesurvey.co.uk/id/7000000000025623,Childrens & Education,Client Related Costs,5534,22/02/2019,5637923,317.50,REVENUE,Busi Bodies Day Nursery,,BUS0015S
North Lincolnshire Council,http://data.ordnancesurvey.co.uk/id/7000000000025623,Corporate And Democratic Core,It Software-Purchase,5051,20/02/2019,5635182,"17,620.00",REVENUE,Cadassist,,CAD0017D
North Lincolnshire Council,http://data.ordnancesurvey.co.uk/id/7000000000025623,"Culture,Env,Reg & Planning Cap",Building/Construction,A082,13/02/2019,5631451,"1,836.00",CAPITAL,Cadent Gas Ltd,,CAD0136D
North Lincolnshire Council,http://data.ordnancesurvey.co.uk/id/7000000000025623,"Culture,Env,Reg & Planning Cap",Building/Construction,A082,13/02/2019,5631454,"1,333.20",CAPITAL,Cadent Gas Ltd,,CAD0136D
North Lincolnshire Council,http://data.ordnancesurvey.co.uk/id/7000000000025623,Housing Services,Other Supplies & Services,5799,06/02/2019,5626384,270.83,REVENUE,Cafe Indiependent Ltd,,CAF0198F
North Lincolnshire Council,http://data.ordnancesurvey.co.uk/id/7000000000025623,Culture & Related Services,Repair & Maintenance Costs,3000,01/02/2019,5625926,"1,050.00",REVENUE,Calandine Lifts Ltd,5541807,CAL0008L
North Lincolnshire Council,http://data.ordnancesurvey.co.uk/id/7000000000025623,Childrens & Education,Client Transport Costs,6092,20/02/2019,5634519,351.05,REVENUE,Call A Cab,,CAL0176L
North Lincolnshire Council,http://data.ordnancesurvey.co.uk/id/7000000000025623,Childrens & Education,Client Transport Costs,6092,20/02/2019,5634521,773.00,REVENUE,Call A Cab,,CAL0176L
North Lincolnshire Council,http://data.ordnancesurvey.co.uk/id/7000000000025623,Childrens & Education,Client Transport Costs,6092,20/02/2019,5634522,773.00,REVENUE,Call A Cab,,CAL0176L
North Lincolnshire Council,http://data.ordnancesurvey.co.uk/id/7000000000025623,Childrens & Education,Client Transport Costs,6092,20/02/2019,5634525,618.40,REVENUE,Call A Cab,,CAL0176L
North Lincolnshire Council,http://data.ordnancesurvey.co.uk/id/7000000000025623,Childrens & Education,Client Transport Costs,6092,20/02/2019,5634526,566.44,REVENUE,Call A Cab,,CAL0176L
North Lincolnshire Council,http://data.ordnancesurvey.co.uk/id/7000000000025623,Childrens & Education,Client Transport Costs,6092,20/02/2019,5634529,604.40,REVENUE,Call A Cab,,CAL0176L
North Lincolnshire Council,http://data.ordnancesurvey.co.uk/id/7000000000025623,Childrens & Education,Client Transport Costs,6092,20/02/2019,5634531,518.40,REVENUE,Call A Cab,,CAL0176L
North Lincolnshire Council,http://data.ordnancesurvey.co.uk/id/7000000000025623,Childrens & Education,Home To School Transport,4201,20/02/2019,5634647,760.00,REVENUE,Call A Cab,,CAL0176L
North Lincolnshire Council,http://data.ordnancesurvey.co.uk/id/7000000000025623,Childrens & Education,Home To School Transport,4201,20/02/2019,5634648,560.00,REVENUE,Call A Cab,,CAL0176L
North Lincolnshire Council,http://data.ordnancesurvey.co.uk/id/7000000000025623,Culture & Related Services,Gas,3101,22/02/2019,5631083,871.01,REVENUE,Calor Gas Ltd,303703,CAL0063L
North Lincolnshire Council,http://data.ordnancesurvey.co.uk/id/7000000000025623,Culture & Related Services,Gas,3101,08/03/2019,5640066,652.88,REVENUE,Calor Gas Ltd,303703,CAL0063L
North Lincolnshire Council,http://data.ordnancesurvey.co.uk/id/7000000000025623,Adult Social Care,Payments To Health Providers,6019,13/02/2019,5631239,"1,610.10",REVENUE,Cambridge Avenue Medical Centre,,CAM0007M
North Lincolnshire Council,http://data.ordnancesurvey.co.uk/id/7000000000025623,Childrens & Education,Payments To Private Orgs,6002,15/02/2019,5633858,"2,700.00",REVENUE,Cambridge Park Academy,,CAM0127M
North Lincolnshire Council,http://data.ordnancesurvey.co.uk/id/7000000000025623,Fin&Inv I&E,Equipment Purchase,5001,20/02/2019,5635945,"1,428.63",REVENUE,Cam Equipment,1165230,CAM0061M
North Lincolnshire Council,http://data.ordnancesurvey.co.uk/id/7000000000025623,Culture & Related Services,"Skips/Sanitary Collections,Etc",3321,27/02/2019,5635898,402.62,REVENUE,Cannon Hygiene,3056469,CAN0001N
North Lincolnshire Council,http://data.ordnancesurvey.co.uk/id/7000000000025623,Corporate And Democratic Core,Gen Office Exp (Incl Postage),5603,27/02/2019,5638463,"3,451.14",REVENUE,Capita Business Services Ltd,2299747,CAP0021P
North Lincolnshire Council,http://data.ordnancesurvey.co.uk/id/7000000000025623,Corporate And Democratic Core,It Software-Purchase,5051,15/02/2019,5628981,"9,998.50",REVENUE,Capita Software Services,,CAP0190P
North Lincolnshire Council,http://data.ordnancesurvey.co.uk/id/7000000000025623,Adult Social Care,Payments To Private Orgs,6002,08/02/2019,5630633,"7,031.36",REVENUE,Care Plus Care Ltd,,CAR0337R
North Lincolnshire Council,http://data.ordnancesurvey.co.uk/id/7000000000025623,Adult Social Care,Payments To Private Orgs,6002,06/02/2019,5630645,"1,195.00",REVENUE,Care Plus Care Uk Ltd,,ISF0002F
North Lincolnshire Council,http://data.ordnancesurvey.co.uk/id/7000000000025623,Adult Social Care,Payments To Private Orgs,6002,06/02/2019,5630645,924.00,REVENUE,Care Plus Care Uk Ltd,,ISF0002F
North Lincolnshire Council,http://data.ordnancesurvey.co.uk/id/7000000000025623,Adult Social Care,Payments To Private Orgs,6002,08/02/2019,5630634,"16,181.00",REVENUE,Care Plus Care (Uk) Ltd (Isle),,CAR0542R
North Lincolnshire Council,http://data.ordnancesurvey.co.uk/id/7000000000025623,Adult Social Care,Payments To Private Orgs,6002,01/03/2019,5640826,495.00,REVENUE,Care Plus Group,31272R,CAR0264R
North Lincolnshire Council,http://data.ordnancesurvey.co.uk/id/7000000000025623,Adult Social Care,Payments To Private Orgs,6002,06/02/2019,5630646,156.00,REVENUE,Carers' Support Centre,,ISF0003F
North Lincolnshire Council,http://data.ordnancesurvey.co.uk/id/7000000000025623,Adult Social Care,Payments To Private Orgs,6002,06/02/2019,5630646,"3,706.36",REVENUE,Carers' Support Centre,,ISF0003F
North Lincolnshire Council,http://data.ordnancesurvey.co.uk/id/7000000000025623,Adult Social Care,Payments To Private Orgs,6002,08/02/2019,5630632,114.00,REVENUE,Carers' Support Centre,,CAR0131R
North Lincolnshire Council,http://data.ordnancesurvey.co.uk/id/7000000000025623,Adult Social Care,Payments To Private Orgs,6002,08/02/2019,5630632,"7,462.78",REVENUE,Carers' Support Centre,,CAR0131R
North Lincolnshire Council,http://data.ordnancesurvey.co.uk/id/7000000000025623,Culture & Related Services,Fuel,4001,15/02/2019,5633923,553.70,REVENUE,Carlton Fuels,04168225,CAR0127R
North Lincolnshire Council,http://data.ordnancesurvey.co.uk/id/7000000000025623,Culture & Related Services,Fuel,4001,08/03/2019,5633841,"1,058.40",REVENUE,Carlton Fuels,04168225,CAR0127R
North Lincolnshire Council,http://data.ordnancesurvey.co.uk/id/7000000000025623,Culture & Related Services,Heating Fuels,3104,08/02/2019,5625003,"1,341.75",REVENUE,Carlton Fuels,04168225,CAR0127R
North Lincolnshire Council,http://data.ordnancesurvey.co.uk/id/7000000000025623,Culture & Related Services,Heating Fuels,3104,08/02/2019,5625005,"1,610.10",REVENUE,Carlton Fuels,04168225,CAR0127R
North Lincolnshire Council,http://data.ordnancesurvey.co.uk/id/7000000000025623,Culture & Related Services,Heating Fuels,3104,08/02/2019,5625007,321.52,REVENUE,Carlton Fuels,04168225,CAR0127R
North Lincolnshire Council,http://data.ordnancesurvey.co.uk/id/7000000000025623,Culture & Related Services,Heating Fuels,3104,15/02/2019,5633931,830.55,REVENUE,Carlton Fuels,04168225,CAR0127R
North Lincolnshire Council,http://data.ordnancesurvey.co.uk/id/7000000000025623,Culture & Related Services,Heating Fuels,3104,15/02/2019,5633933,416.42,REVENUE,Carlton Fuels,04168225,CAR0127R
North Lincolnshire Council,http://data.ordnancesurvey.co.uk/id/7000000000025623,Culture & Related Services,Heating Fuels,3104,20/02/2019,5634696,"1,072.40",REVENUE,Carlton Fuels,04168225,CAR0127R
North Lincolnshire Council,http://data.ordnancesurvey.co.uk/id/7000000000025623,Culture & Related Services,Heating Fuels,3104,08/03/2019,5631953,"1,087.40",REVENUE,Carlton Fuels,04168225,CAR0127R
North Lincolnshire Council,http://data.ordnancesurvey.co.uk/id/7000000000025623,Environmental & Regulatory Svs,Fuel,4001,08/03/2019,5629808,"1,644.49",REVENUE,Carlton Fuels,04168225,CAR0127R
North Lincolnshire Council,http://data.ordnancesurvey.co.uk/id/7000000000025623,Fin&Inv I&E,Fuel,4001,13/02/2019,5633198,"34,898.50",REVENUE,Carlton Fuels,04168225,CAR0127R
North Lincolnshire Council,http://data.ordnancesurvey.co.uk/id/7000000000025623,Fin&Inv I&E,Fuel,4001,08/03/2019,5633199,"34,643.00",REVENUE,Carlton Fuels,04168225,CAR0127R
North Lincolnshire Council,http://data.ordnancesurvey.co.uk/id/7000000000025623,Fin&Inv I&E,Fuel,4001,08/03/2019,5639384,"34,925.50",REVENUE,Carlton Fuels,04168225,CAR0127R
North Lincolnshire Council,http://data.ordnancesurvey.co.uk/id/7000000000025623,Adult Social Care,Water (Meter/Rate) & Sewerage,3221,20/02/2019,5636631,419.89,REVENUE,Castle Water Ltd,SC475583,CAS0200S
North Lincolnshire Council,http://data.ordnancesurvey.co.uk/id/7000000000025623,Adult Social Care,Water (Meter/Rate) & Sewerage,3221,20/02/2019,5636664,460.65,REVENUE,Castle Water Ltd,SC475583,CAS0200S
North Lincolnshire Council,http://data.ordnancesurvey.co.uk/id/7000000000025623,Childrens & Education,Water (Meter/Rate) & Sewerage,3221,20/02/2019,5636570,287.38,REVENUE,Castle Water Ltd,SC475583,CAS0200S
North Lincolnshire Council,http://data.ordnancesurvey.co.uk/id/7000000000025623,Childrens & Education,Water (Meter/Rate) & Sewerage,3221,20/02/2019,5636632,321.24,REVENUE,Castle Water Ltd,SC475583,CAS0200S
North Lincolnshire Council,http://data.ordnancesurvey.co.uk/id/7000000000025623,Corporate And Democratic Core,Water (Meter/Rate) & Sewerage,3221,20/02/2019,5636545,525.77,REVENUE,Castle Water Ltd,SC475583,CAS0200S
North Lincolnshire Council,http://data.ordnancesurvey.co.uk/id/7000000000025623,Corporate And Democratic Core,Water (Meter/Rate) & Sewerage,3221,20/02/2019,5636550,469.15,REVENUE,Castle Water Ltd,SC475583,CAS0200S
North Lincolnshire Council,http://data.ordnancesurvey.co.uk/id/7000000000025623,Corporate And Democratic Core,Water (Meter/Rate) & Sewerage,3221,20/02/2019,5636676,658.57,REVENUE,Castle Water Ltd,SC475583,CAS0200S
North Lincolnshire Council,http://data.ordnancesurvey.co.uk/id/7000000000025623,Culture & Related Services,Water (Meter/Rate) & Sewerage,3221,20/02/2019,5636519,304.58,REVENUE,Castle Water Ltd,SC475583,CAS0200S
North Lincolnshire Council,http://data.ordnancesurvey.co.uk/id/7000000000025623,Culture & Related Services,Water (Meter/Rate) & Sewerage,3221,20/02/2019,5636615,"3,343.95",REVENUE,Castle Water Ltd,SC475583,CAS0200S
North Lincolnshire Council,http://data.ordnancesurvey.co.uk/id/7000000000025623,Culture & Related Services,Water (Meter/Rate) & Sewerage,3221,20/02/2019,5636636,775.34,REVENUE,Castle Water Ltd,SC475583,CAS0200S
North Lincolnshire Council,http://data.ordnancesurvey.co.uk/id/7000000000025623,Culture & Related Services,Water (Meter/Rate) & Sewerage,3221,20/02/2019,5636639,475.75,REVENUE,Castle Water Ltd,SC475583,CAS0200S
North Lincolnshire Council,http://data.ordnancesurvey.co.uk/id/7000000000025623,Culture & Related Services,Water (Meter/Rate) & Sewerage,3221,20/02/2019,5636662,"2,295.74",REVENUE,Castle Water Ltd,SC475583,CAS0200S
North Lincolnshire Council,http://data.ordnancesurvey.co.uk/id/7000000000025623,Environmental & Regulatory Svs,Water (Meter/Rate) & Sewerage,3221,20/02/2019,5636608,"1,314.54",REVENUE,Castle Water Ltd,SC475583,CAS0200S
North Lincolnshire Council,http://data.ordnancesurvey.co.uk/id/7000000000025623,Environmental & Regulatory Svs,Water (Meter/Rate) & Sewerage,3221,20/02/2019,5636643,488.81,REVENUE,Castle Water Ltd,SC475583,CAS0200S
North Lincolnshire Council,http://data.ordnancesurvey.co.uk/id/7000000000025623,Environmental & Regulatory Svs,Water (Meter/Rate) & Sewerage,3221,20/02/2019,5636661,689.97,REVENUE,Castle Water Ltd,SC475583,CAS0200S
North Lincolnshire Council,http://data.ordnancesurvey.co.uk/id/7000000000025623,Fin&Inv I&E,Water (Meter/Rate) & Sewerage,3221,20/02/2019,5636516,405.03,REVENUE,Castle Water Ltd,SC475583,CAS0200S
North Lincolnshire Council,http://data.ordnancesurvey.co.uk/id/7000000000025623,Fin&Inv I&E,Water (Meter/Rate) & Sewerage,3221,20/02/2019,5636520,331.54,REVENUE,Castle Water Ltd,SC475583,CAS0200S
North Lincolnshire Council,http://data.ordnancesurvey.co.uk/id/7000000000025623,Fin&Inv I&E,Water (Meter/Rate) & Sewerage,3221,20/02/2019,5636634,"2,146.58",REVENUE,Castle Water Ltd,SC475583,CAS0200S
North Lincolnshire Council,http://data.ordnancesurvey.co.uk/id/7000000000025623,Highways & Transport,Water (Meter/Rate) & Sewerage,3221,20/02/2019,5636508,806.68,REVENUE,Castle Water Ltd,SC475583,CAS0200S
North Lincolnshire Council,http://data.ordnancesurvey.co.uk/id/7000000000025623,Highways & Transport,Water (Meter/Rate) & Sewerage,3221,20/02/2019,5636534,321.24,REVENUE,Castle Water Ltd,SC475583,CAS0200S
North Lincolnshire Council,http://data.ordnancesurvey.co.uk/id/7000000000025623,Highways & Transport,Water (Meter/Rate) & Sewerage,3221,20/02/2019,5636562,321.24,REVENUE,Castle Water Ltd,SC475583,CAS0200S
North Lincolnshire Council,http://data.ordnancesurvey.co.uk/id/7000000000025623,Highways & Transport,Water (Meter/Rate) & Sewerage,3221,20/02/2019,5636605,321.24,REVENUE,Castle Water Ltd,SC475583,CAS0200S
North Lincolnshire Council,http://data.ordnancesurvey.co.uk/id/7000000000025623,Childrens & Education,Client Related Costs,5534,22/02/2019,5635768,472.48,REVENUE,Catterick Bridge Day Nursery,,CAT0184T
North Lincolnshire Council,http://data.ordnancesurvey.co.uk/id/7000000000025623,Adult Social Care,"Clothing, Uniforms & Laundry",5301,06/02/2019,5625222,636.41,REVENUE,Central Laundry Ltd,06765045,CEN0085N
North Lincolnshire Council,http://data.ordnancesurvey.co.uk/id/7000000000025623,Adult Social Care,"Clothing, Uniforms & Laundry",5301,08/02/2019,5628832,"1,762.10",REVENUE,Central Laundry Ltd,06765045,CEN0085N
North Lincolnshire Council,http://data.ordnancesurvey.co.uk/id/7000000000025623,Adult Social Care,"Clothing, Uniforms & Laundry",5301,15/02/2019,5633371,793.65,REVENUE,Central Laundry Ltd,06765045,CEN0085N
North Lincolnshire Council,http://data.ordnancesurvey.co.uk/id/7000000000025623,Adult Social Care,Payments To Health Providers,6019,13/02/2019,5631874,"1,251.24",REVENUE,Central Surgery,,DIC0005C
North Lincolnshire Council,http://data.ordnancesurvey.co.uk/id/7000000000025623,Adult Social Care,Other Supplies & Services,5799,22/02/2019,5637035,625.00,REVENUE,Champ Ltd,,CHA0374A
North Lincolnshire Council,http://data.ordnancesurvey.co.uk/id/7000000000025623,Adult Social Care,Other Supplies & Services,5799,22/02/2019,5637036,"2,500.00",REVENUE,Champ Ltd,,CHA0374A
North Lincolnshire Council,http://data.ordnancesurvey.co.uk/id/7000000000025623,Adult Social Care,Other Supplies & Services,5799,20/03/2019,5640335,"1,800.00",REVENUE,Champ Ltd,,CHA0374A
North Lincolnshire Council,http://data.ordnancesurvey.co.uk/id/7000000000025623,Childrens & Education,Other Premises Costs,3390,22/02/2019,5636691,625.00,REVENUE,Champ Ltd,,CHA0374A
North Lincolnshire Council,http://data.ordnancesurvey.co.uk/id/7000000000025623,Corporate And Democratic Core,Other Supplies & Services,5799,08/02/2019,5629313,"12,500.00",REVENUE,Champ Ltd,,CHA0374A
North Lincolnshire Council,http://data.ordnancesurvey.co.uk/id/7000000000025623,Corporate And Democratic Core,Repair & Maintenance Costs,3000,20/02/2019,5634757,"1,500.00",REVENUE,Champ Ltd,,CHA0374A
North Lincolnshire Council,http://data.ordnancesurvey.co.uk/id/7000000000025623,Childrens & Education,Client Transport Costs,6092,27/02/2019,5629407,965.78,REVENUE,Changing Lives,10624046,CHA0547A
North Lincolnshire Council,http://data.ordnancesurvey.co.uk/id/7000000000025623,Childrens & Education,Payments To Private Orgs,6002,08/02/2019,5629404,300.00,REVENUE,Changing Lives,10624046,CHA0547A
North Lincolnshire Council,http://data.ordnancesurvey.co.uk/id/7000000000025623,Childrens & Education,Payments To Private Orgs,6002,27/02/2019,5629405,"25,450.00",REVENUE,Changing Lives,10624046,CHA0547A
North Lincolnshire Council,http://data.ordnancesurvey.co.uk/id/7000000000025623,Childrens & Education,Payments To Private Orgs,6002,27/02/2019,5629407,"1,800.00",REVENUE,Changing Lives,10624046,CHA0547A
North Lincolnshire Council,http://data.ordnancesurvey.co.uk/id/7000000000025623,Childrens & Education,Payments To Private Orgs,6002,27/02/2019,5629407,"1,320.00",REVENUE,Changing Lives,10624046,CHA0547A
North Lincolnshire Council,http://data.ordnancesurvey.co.uk/id/7000000000025623,Environmental & Regulatory Svs,Payments To Voluntary Orgs,6001,20/02/2019,5636152,"22,270.00",REVENUE,Changing Lives,10624046,CHA0547A
North Lincolnshire Council,http://data.ordnancesurvey.co.uk/id/7000000000025623,Highways & Transport,Stock Purchases & Adjustments,5030,01/03/2019,5633883,"3,925.00",REVENUE,Charles Endirect Ltd,,CHA0183A
North Lincolnshire Council,http://data.ordnancesurvey.co.uk/id/7000000000025623,Environmental & Regulatory Svs,Equipment Purchase,5001,22/02/2019,5634721,412.50,REVENUE,Chemsafe (Yorks) Ltd,,CHE0011E
North Lincolnshire Council,http://data.ordnancesurvey.co.uk/id/7000000000025623,Environmental & Regulatory Svs,Other Premises Costs,3390,27/02/2019,5640289,995.00,REVENUE,Chemtech Waste Management Ltd,03244279,CHE0152E
North Lincolnshire Council,http://data.ordnancesurvey.co.uk/id/7000000000025623,Adult Social Care,Payments To Private Orgs,6002,06/02/2019,5630660,210.00,REVENUE,Chestnut Homecare Ltd,,ISF0027F
North Lincolnshire Council,http://data.ordnancesurvey.co.uk/id/7000000000025623,Adult Social Care,Payments To Private Orgs,6002,06/02/2019,5630660,"6,293.52",REVENUE,Chestnut Homecare Ltd,,ISF0027F
North Lincolnshire Council,http://data.ordnancesurvey.co.uk/id/7000000000025623,Adult Social Care,Payments To Private Orgs,6002,08/02/2019,5630635,"21,950.44",REVENUE,Chestnut Homecare Ltd,,CHE0222E
North Lincolnshire Council,http://data.ordnancesurvey.co.uk/id/7000000000025623,Childrens & Education,Payments To Private Orgs,6002,27/02/2019,5628842,449.75,REVENUE,Christopher Barton,,BAR0895R
North Lincolnshire Council,http://data.ordnancesurvey.co.uk/id/7000000000025623,Childrens & Education,Repair & Maintenance Costs,3000,06/02/2019,5627127,339.10,REVENUE,Chubb  Fire & Security Ltd,524469,SHO0001O
North Lincolnshire Council,http://data.ordnancesurvey.co.uk/id/7000000000025623,Childrens & Education,Repair & Maintenance Costs,3000,06/02/2019,5627134,79.06,REVENUE,Chubb  Fire & Security Ltd,524469,SHO0001O
North Lincolnshire Council,http://data.ordnancesurvey.co.uk/id/7000000000025623,Childrens & Education,Repair & Maintenance Costs,3000,06/02/2019,5627134,316.10,REVENUE,Chubb  Fire & Security Ltd,524469,SHO0001O
North Lincolnshire Council,http://data.ordnancesurvey.co.uk/id/7000000000025623,Corporate And Democratic Core,Repair & Maintenance Costs,3000,06/02/2019,5627127,0,REVENUE,Chubb  Fire & Security Ltd,524469,SHO0001O
North Lincolnshire Council,http://data.ordnancesurvey.co.uk/id/7000000000025623,Corporate And Democratic Core,Repair & Maintenance Costs,3000,06/02/2019,5627134,"2,769.10",REVENUE,Chubb  Fire & Security Ltd,524469,SHO0001O
North Lincolnshire Council,http://data.ordnancesurvey.co.uk/id/7000000000025623,Corporate And Democratic Core,Repair & Maintenance Costs,3000,20/02/2019,5636487,"1,484.96",REVENUE,Chubb  Fire & Security Ltd,524469,SHO0001O
North Lincolnshire Council,http://data.ordnancesurvey.co.uk/id/7000000000025623,Corporate And Democratic Core,Repair & Maintenance Costs,3000,27/02/2019,5639733,272.00,REVENUE,Chubb  Fire & Security Ltd,524469,SHO0001O
North Lincolnshire Council,http://data.ordnancesurvey.co.uk/id/7000000000025623,Culture & Related Services,Repair & Maintenance Costs,3000,01/02/2019,5625937,392.40,REVENUE,Chubb  Fire & Security Ltd,524469,SHO0001O
North Lincolnshire Council,http://data.ordnancesurvey.co.uk/id/7000000000025623,Culture & Related Services,Repair & Maintenance Costs,3000,06/02/2019,5627134,355.77,REVENUE,Chubb  Fire & Security Ltd,524469,SHO0001O
North Lincolnshire Council,http://data.ordnancesurvey.co.uk/id/7000000000025623,Fin&Inv I&E,Repair & Maintenance Costs,3000,06/02/2019,5627134,313.72,REVENUE,Chubb  Fire & Security Ltd,524469,SHO0001O
North Lincolnshire Council,http://data.ordnancesurvey.co.uk/id/7000000000025623,Adult Social Care,Payments To Health Providers,6019,13/02/2019,5631877,486.82,REVENUE,Church Lane Medical Centre,,CHU0022U
North Lincolnshire Council,http://data.ordnancesurvey.co.uk/id/7000000000025623,Corporate And Democratic Core,Subscriptions & Memberships,5510,20/02/2019,5635187,"1,890.00",REVENUE,Cipfa Business Ltd,,CIP0003P
North Lincolnshire Council,http://data.ordnancesurvey.co.uk/id/7000000000025623,Corporate And Democratic Core,Subscriptions & Memberships,5510,22/02/2019,5628448,"6,190.00",REVENUE,Cipfa Business Ltd,,CIP0003P
North Lincolnshire Council,http://data.ordnancesurvey.co.uk/id/7000000000025623,Environmental & Regulatory Svs,Equipment Purchase,5001,20/02/2019,5625819,778.00,REVENUE,Cirrus Research Plc,,CIR0010R
North Lincolnshire Council,http://data.ordnancesurvey.co.uk/id/7000000000025623,Environmental & Regulatory Svs,Equipment Purchase,5001,13/03/2019,5638438,778.00,REVENUE,Cirrus Research Plc,,CIR0010R
North Lincolnshire Council,http://data.ordnancesurvey.co.uk/id/7000000000025623,Childrens & Education,Examination Fees,5730,27/02/2019,5634466,307.10,REVENUE,City & Guilds,312832,CIT0025T
North Lincolnshire Council,http://data.ordnancesurvey.co.uk/id/7000000000025623,Adult Social Care,Payments To Health Providers,6019,13/02/2019,5631866,"1,340.00",REVENUE,City Health Care Partnership Cic,,HUL0022L
North Lincolnshire Council,http://data.ordnancesurvey.co.uk/id/7000000000025623,Adult Social Care,Payments To Health Providers,6019,13/02/2019,5631869,"1,876.00",REVENUE,City Health Care Partnership Cic,,HUL0022L
North Lincolnshire Council,http://data.ordnancesurvey.co.uk/id/7000000000025623,Adult Social Care,Other Supplies & Services,5799,06/03/2019,5641051,"5,001.44",REVENUE,Civica Uk Ltd,1628868,CIV0010V
North Lincolnshire Council,http://data.ordnancesurvey.co.uk/id/7000000000025623,Corporate And Democratic Core,It Software-Maintenance,5053,13/02/2019,5631130,"8,007.80",REVENUE,Civica Uk Ltd,1628868,CIV0010V
North Lincolnshire Council,http://data.ordnancesurvey.co.uk/id/7000000000025623,Adult Social Care,Payments To Private Orgs,6002,08/02/2019,5630637,"11,924.19",REVENUE,Clarity Homecare Ltd,,CLA0252A
North Lincolnshire Council,http://data.ordnancesurvey.co.uk/id/7000000000025623,Culture & Related Services,Books (Libraries+Schools Only),5005,22/02/2019,5626840,290.00,REVENUE,Clarity Language Consultants Ltd,,CLA0029A
North Lincolnshire Council,http://data.ordnancesurvey.co.uk/id/7000000000025623,Adult Social Care,"Clothing, Uniforms & Laundry",5301,15/02/2019,5631247,548.80,REVENUE,Cleaning & Paper Disposables Plc,,CLE0051E
North Lincolnshire Council,http://data.ordnancesurvey.co.uk/id/7000000000025623,"Culture,Env,Reg & Planning Cap",Building/Construction,A082,15/02/2019,5634417,"1,115.00",CAPITAL,Clearway Environmental Services (Uk) Ltd,4054612,CLE0300E
North Lincolnshire Council,http://data.ordnancesurvey.co.uk/id/7000000000025623,Adult Social Care,Client Transport Costs,6092,27/02/2019,5634645,"1,167.60",REVENUE,Click Travel Limited,03770815,CLI0015I
North Lincolnshire Council,http://data.ordnancesurvey.co.uk/id/7000000000025623,Adult Social Care,Other Incidental Travel Costs,4311,27/02/2019,5634645,25.80,REVENUE,Click Travel Limited,03770815,CLI0015I
North Lincolnshire Council,http://data.ordnancesurvey.co.uk/id/7000000000025623,Adult Social Care,Rail & Other Fares,4121,27/02/2019,5634645,782.05,REVENUE,Click Travel Limited,03770815,CLI0015I
North Lincolnshire Council,http://data.ordnancesurvey.co.uk/id/7000000000025623,Adult Social Care,Rail & Other Fares,4121,27/02/2019,5634645,238.20,REVENUE,Click Travel Limited,03770815,CLI0015I
North Lincolnshire Council,http://data.ordnancesurvey.co.uk/id/7000000000025623,Adult Social Care,Subsistence & Expenses (Staff),5720,27/02/2019,5634645,46.30,REVENUE,Click Travel Limited,03770815,CLI0015I
North Lincolnshire Council,http://data.ordnancesurvey.co.uk/id/7000000000025623,Childrens & Education,Client Related Costs,5534,27/02/2019,5634645,28.50,REVENUE,Click Travel Limited,03770815,CLI0015I
North Lincolnshire Council,http://data.ordnancesurvey.co.uk/id/7000000000025623,Childrens & Education,Client Transport Costs,6092,27/02/2019,5634645,390.90,REVENUE,Click Travel Limited,03770815,CLI0015I
North Lincolnshire Council,http://data.ordnancesurvey.co.uk/id/7000000000025623,Childrens & Education,Rail & Other Fares,4121,27/02/2019,5634645,366.00,REVENUE,Click Travel Limited,03770815,CLI0015I
North Lincolnshire Council,http://data.ordnancesurvey.co.uk/id/7000000000025623,Childrens & Education,Rail & Other Fares,4121,27/02/2019,5634645,489.95,REVENUE,Click Travel Limited,03770815,CLI0015I
North Lincolnshire Council,http://data.ordnancesurvey.co.uk/id/7000000000025623,Childrens & Education,Rail & Other Fares,4121,27/02/2019,5634645,805.00,REVENUE,Click Travel Limited,03770815,CLI0015I
North Lincolnshire Council,http://data.ordnancesurvey.co.uk/id/7000000000025623,Childrens & Education,Rail & Other Fares,4121,27/02/2019,5634720,-139.50,REVENUE,Click Travel Limited,03770815,CLI0015I
North Lincolnshire Council,http://data.ordnancesurvey.co.uk/id/7000000000025623,Childrens & Education,Rail & Other Fares,4121,27/02/2019,5634720,-312.80,REVENUE,Click Travel Limited,03770815,CLI0015I
North Lincolnshire Council,http://data.ordnancesurvey.co.uk/id/7000000000025623,Childrens & Education,Subsistence & Expenses (Staff),5720,27/02/2019,5634645,368.64,REVENUE,Click Travel Limited,03770815,CLI0015I
North Lincolnshire Council,http://data.ordnancesurvey.co.uk/id/7000000000025623,Corporate And Democratic Core,Car And Travel Allowances,4306,27/02/2019,5634645,27.40,REVENUE,Click Travel Limited,03770815,CLI0015I
North Lincolnshire Council,http://data.ordnancesurvey.co.uk/id/7000000000025623,Corporate And Democratic Core,Gen Office Exp (Incl Postage),5603,27/02/2019,5634645,17.50,REVENUE,Click Travel Limited,03770815,CLI0015I
North Lincolnshire Council,http://data.ordnancesurvey.co.uk/id/7000000000025623,Corporate And Democratic Core,Leased Cars Rental,4301,27/02/2019,5634645,32.80,REVENUE,Click Travel Limited,03770815,CLI0015I
North Lincolnshire Council,http://data.ordnancesurvey.co.uk/id/7000000000025623,Corporate And Democratic Core,Other Professional Fees,5829,27/02/2019,5634645,171.60,REVENUE,Click Travel Limited,03770815,CLI0015I
North Lincolnshire Council,http://data.ordnancesurvey.co.uk/id/7000000000025623,Corporate And Democratic Core,Rail & Other Fares,4121,27/02/2019,5634645,"1,151.15",REVENUE,Click Travel Limited,03770815,CLI0015I
North Lincolnshire Council,http://data.ordnancesurvey.co.uk/id/7000000000025623,Corporate And Democratic Core,Rail & Other Fares,4121,27/02/2019,5634645,"1,122.93",REVENUE,Click Travel Limited,03770815,CLI0015I
North Lincolnshire Council,http://data.ordnancesurvey.co.uk/id/7000000000025623,Corporate And Democratic Core,Rail & Other Fares,4121,27/02/2019,5634720,-20.00,REVENUE,Click Travel Limited,03770815,CLI0015I
North Lincolnshire Council,http://data.ordnancesurvey.co.uk/id/7000000000025623,Corporate And Democratic Core,Rail & Other Fares,4121,27/02/2019,5634720,-9.10,REVENUE,Click Travel Limited,03770815,CLI0015I
North Lincolnshire Council,http://data.ordnancesurvey.co.uk/id/7000000000025623,Culture & Related Services,Rail & Other Fares,4121,27/02/2019,5634645,539.66,REVENUE,Click Travel Limited,03770815,CLI0015I
North Lincolnshire Council,http://data.ordnancesurvey.co.uk/id/7000000000025623,Environmental & Regulatory Svs,Car And Travel Allowances,4306,27/02/2019,5634645,194.00,REVENUE,Click Travel Limited,03770815,CLI0015I
North Lincolnshire Council,http://data.ordnancesurvey.co.uk/id/7000000000025623,Environmental & Regulatory Svs,Course Fees/Training,2002,27/02/2019,5634645,50.00,REVENUE,Click Travel Limited,03770815,CLI0015I
North Lincolnshire Council,http://data.ordnancesurvey.co.uk/id/7000000000025623,Highways & Transport,Rail & Other Fares,4121,27/02/2019,5634645,180.45,REVENUE,Click Travel Limited,03770815,CLI0015I
North Lincolnshire Council,http://data.ordnancesurvey.co.uk/id/7000000000025623,Housing Services,Other Supplies & Services,5799,27/02/2019,5634645,38.50,REVENUE,Click Travel Limited,03770815,CLI0015I
North Lincolnshire Council,http://data.ordnancesurvey.co.uk/id/7000000000025623,Housing Services,Rail & Other Fares,4121,27/02/2019,5634645,62.60,REVENUE,Click Travel Limited,03770815,CLI0015I
North Lincolnshire Council,http://data.ordnancesurvey.co.uk/id/7000000000025623,Housing Services,Rail & Other Fares,4121,27/02/2019,5634720,-31.40,REVENUE,Click Travel Limited,03770815,CLI0015I
North Lincolnshire Council,http://data.ordnancesurvey.co.uk/id/7000000000025623,Planning Services,Other Incidental Travel Costs,4311,27/02/2019,5634645,74.20,REVENUE,Click Travel Limited,03770815,CLI0015I
North Lincolnshire Council,http://data.ordnancesurvey.co.uk/id/7000000000025623,Planning Services,Rail & Other Fares,4121,27/02/2019,5634645,375.20,REVENUE,Click Travel Limited,03770815,CLI0015I
North Lincolnshire Council,http://data.ordnancesurvey.co.uk/id/7000000000025623,Planning Services,Subsistence & Expenses (Staff),5720,27/02/2019,5634645,9.10,REVENUE,Click Travel Limited,03770815,CLI0015I
North Lincolnshire Council,http://data.ordnancesurvey.co.uk/id/7000000000025623,Public Health,Course Fees/Training,2002,27/02/2019,5634645,80.00,REVENUE,Click Travel Limited,03770815,CLI0015I
North Lincolnshire Council,http://data.ordnancesurvey.co.uk/id/7000000000025623,Public Health,Rail & Other Fares,4121,27/02/2019,5634645,591.50,REVENUE,Click Travel Limited,03770815,CLI0015I
North Lincolnshire Council,http://data.ordnancesurvey.co.uk/id/7000000000025623,Adult Social Care,Other Professional Fees,5829,22/02/2019,5631170,428.75,REVENUE,Cloverleaf Advocacy 2000 Ltd,,CLO0101O
North Lincolnshire Council,http://data.ordnancesurvey.co.uk/id/7000000000025623,Adult Social Care,Payments To Private Orgs,6002,15/02/2019,5634432,"12,403.86",REVENUE,Cloverleaf Advocacy 2000 Ltd,,CLO0101O
North Lincolnshire Council,http://data.ordnancesurvey.co.uk/id/7000000000025623,Adult Social Care,Payments To Private Orgs,6002,15/02/2019,5634437,"10,556.98",REVENUE,Cloverleaf Advocacy 2000 Ltd,,CLO0101O
North Lincolnshire Council,http://data.ordnancesurvey.co.uk/id/7000000000025623,Fin&Inv I&E,Other Supplies & Services,5799,27/02/2019,5638743,435.00,REVENUE,Clugston Construction Limited,681537,CLU0007U
North Lincolnshire Council,http://data.ordnancesurvey.co.uk/id/7000000000025623,Gen Fund Housing Capital,Building/Construction,A082,27/02/2019,5638743,"10,878.27",CAPITAL,Clugston Construction Limited,681537,CLU0007U
North Lincolnshire Council,http://data.ordnancesurvey.co.uk/id/7000000000025623,Environmental & Regulatory Svs,Consultancy,5830,01/03/2019,5632660,"4,387.17",REVENUE,Clugston Construction Ltd,681537,CLU0001U
North Lincolnshire Council,http://data.ordnancesurvey.co.uk/id/7000000000025623,Environmental & Regulatory Svs,Vehicle Hire,4101,27/02/2019,5633201,0,REVENUE,Cms Hire Ltd,,COO0073O
North Lincolnshire Council,http://data.ordnancesurvey.co.uk/id/7000000000025623,Environmental & Regulatory Svs,Vehicle Hire,4101,27/02/2019,5633202,"3,300.00",REVENUE,Cms Hire Ltd,,COO0073O
North Lincolnshire Council,http://data.ordnancesurvey.co.uk/id/7000000000025623,Environmental & Regulatory Svs,Vehicle Hire,4101,27/02/2019,5633203,"3,300.00",REVENUE,Cms Hire Ltd,,COO0073O
North Lincolnshire Council,http://data.ordnancesurvey.co.uk/id/7000000000025623,Environmental & Regulatory Svs,Vehicle Hire,4101,27/02/2019,5633204,"2,090.00",REVENUE,Cms Hire Ltd,,COO0073O
North Lincolnshire Council,http://data.ordnancesurvey.co.uk/id/7000000000025623,Fin&Inv I&E,Vehicle Hire,4101,27/02/2019,5633201,"3,300.00",REVENUE,Cms Hire Ltd,,COO0073O
North Lincolnshire Council,http://data.ordnancesurvey.co.uk/id/7000000000025623,Highways & Transport,Other Professional Fees,5829,27/02/2019,5632746,700.32,REVENUE,Cobalt Telephone Technologies Ltd,3151938,COB0031B
North Lincolnshire Council,http://data.ordnancesurvey.co.uk/id/7000000000025623,Adult Social Care Capital,Other Costs,A085,27/02/2019,5638599,999.95,CAPITAL,Complete Care Shop,06352353,COM0257M
North Lincolnshire Council,http://data.ordnancesurvey.co.uk/id/7000000000025623,Childrens & Education,Client Related Costs,5534,20/02/2019,5635771,209.16,REVENUE,Complete Office Solutions (Uk) Ltd,3045607,AQU0001U
North Lincolnshire Council,http://data.ordnancesurvey.co.uk/id/7000000000025623,Adult Social Care,Recruitment Costs And Dbs,2004,13/03/2019,5634527,"11,452.50",REVENUE,Computer Futures,OC387148,COM0202M
North Lincolnshire Council,http://data.ordnancesurvey.co.uk/id/7000000000025623,Culture & Related Services,Exhibitions/Events,5709,06/03/2019,5634447,"3,828.00",REVENUE,Connect Exhibitions Limited,3914199,CON0136N
North Lincolnshire Council,http://data.ordnancesurvey.co.uk/id/7000000000025623,Adult Social Care,Gas,3101,15/02/2019,5628353,435.28,REVENUE,Corona Energy Retail 4 Ltd,,COR0300R
North Lincolnshire Council,http://data.ordnancesurvey.co.uk/id/7000000000025623,Adult Social Care,Gas,3101,15/02/2019,5628358,140.74,REVENUE,Corona Energy Retail 4 Ltd,,COR0300R
North Lincolnshire Council,http://data.ordnancesurvey.co.uk/id/7000000000025623,Adult Social Care,Gas,3101,15/02/2019,5628395,857.89,REVENUE,Corona Energy Retail 4 Ltd,,COR0300R
North Lincolnshire Council,http://data.ordnancesurvey.co.uk/id/7000000000025623,Adult Social Care,Gas,3101,15/02/2019,5628406,461.64,REVENUE,Corona Energy Retail 4 Ltd,,COR0300R
North Lincolnshire Council,http://data.ordnancesurvey.co.uk/id/7000000000025623,Adult Social Care,Gas,3101,15/02/2019,5628409,298.71,REVENUE,Corona Energy Retail 4 Ltd,,COR0300R
North Lincolnshire Council,http://data.ordnancesurvey.co.uk/id/7000000000025623,Adult Social Care,Gas,3101,15/02/2019,5628420,411.94,REVENUE,Corona Energy Retail 4 Ltd,,COR0300R
North Lincolnshire Council,http://data.ordnancesurvey.co.uk/id/7000000000025623,Adult Social Care,Gas,3101,15/02/2019,5628421,560.87,REVENUE,Corona Energy Retail 4 Ltd,,COR0300R
North Lincolnshire Council,http://data.ordnancesurvey.co.uk/id/7000000000025623,Childrens & Education,Gas,3101,15/02/2019,5628300,532.00,REVENUE,Corona Energy Retail 4 Ltd,,COR0300R
North Lincolnshire Council,http://data.ordnancesurvey.co.uk/id/7000000000025623,Childrens & Education,Gas,3101,15/02/2019,5628349,276.45,REVENUE,Corona Energy Retail 4 Ltd,,COR0300R
North Lincolnshire Council,http://data.ordnancesurvey.co.uk/id/7000000000025623,Childrens & Education,Gas,3101,15/02/2019,5628358,84.45,REVENUE,Corona Energy Retail 4 Ltd,,COR0300R
North Lincolnshire Council,http://data.ordnancesurvey.co.uk/id/7000000000025623,Childrens & Education,Gas,3101,15/02/2019,5628358,56.30,REVENUE,Corona Energy Retail 4 Ltd,,COR0300R
North Lincolnshire Council,http://data.ordnancesurvey.co.uk/id/7000000000025623,Childrens & Education,Gas,3101,15/02/2019,5628373,640.03,REVENUE,Corona Energy Retail 4 Ltd,,COR0300R
North Lincolnshire Council,http://data.ordnancesurvey.co.uk/id/7000000000025623,Childrens & Education,Gas,3101,15/02/2019,5628387,230.66,REVENUE,Corona Energy Retail 4 Ltd,,COR0300R
North Lincolnshire Council,http://data.ordnancesurvey.co.uk/id/7000000000025623,Childrens & Education,Gas,3101,15/02/2019,5628390,262.46,REVENUE,Corona Energy Retail 4 Ltd,,COR0300R
North Lincolnshire Council,http://data.ordnancesurvey.co.uk/id/7000000000025623,Childrens & Education,Gas,3101,15/02/2019,5628423,357.17,REVENUE,Corona Energy Retail 4 Ltd,,COR0300R
North Lincolnshire Council,http://data.ordnancesurvey.co.uk/id/7000000000025623,Childrens & Education,Gas,3101,15/02/2019,5628434,397.40,REVENUE,Corona Energy Retail 4 Ltd,,COR0300R
North Lincolnshire Council,http://data.ordnancesurvey.co.uk/id/7000000000025623,Childrens & Education,Gas,3101,15/02/2019,5628437,318.77,REVENUE,Corona Energy Retail 4 Ltd,,COR0300R
North Lincolnshire Council,http://data.ordnancesurvey.co.uk/id/7000000000025623,Corporate And Democratic Core,Gas,3101,15/02/2019,5628377,"2,149.25",REVENUE,Corona Energy Retail 4 Ltd,,COR0300R
North Lincolnshire Council,http://data.ordnancesurvey.co.uk/id/7000000000025623,Corporate And Democratic Core,Gas,3101,15/02/2019,5628400,756.54,REVENUE,Corona Energy Retail 4 Ltd,,COR0300R
North Lincolnshire Council,http://data.ordnancesurvey.co.uk/id/7000000000025623,Corporate And Democratic Core,Gas,3101,15/02/2019,5628422,376.65,REVENUE,Corona Energy Retail 4 Ltd,,COR0300R
North Lincolnshire Council,http://data.ordnancesurvey.co.uk/id/7000000000025623,Corporate And Democratic Core,Gas,3101,15/02/2019,5628425,"2,059.60",REVENUE,Corona Energy Retail 4 Ltd,,COR0300R
North Lincolnshire Council,http://data.ordnancesurvey.co.uk/id/7000000000025623,Corporate And Democratic Core,Gas,3101,15/02/2019,5628432,"2,321.23",REVENUE,Corona Energy Retail 4 Ltd,,COR0300R
North Lincolnshire Council,http://data.ordnancesurvey.co.uk/id/7000000000025623,Culture & Related Services,Gas,3101,15/02/2019,5628286,267.09,REVENUE,Corona Energy Retail 4 Ltd,,COR0300R
North Lincolnshire Council,http://data.ordnancesurvey.co.uk/id/7000000000025623,Culture & Related Services,Gas,3101,15/02/2019,5628304,445.29,REVENUE,Corona Energy Retail 4 Ltd,,COR0300R
North Lincolnshire Council,http://data.ordnancesurvey.co.uk/id/7000000000025623,Culture & Related Services,Gas,3101,15/02/2019,5628309,922.71,REVENUE,Corona Energy Retail 4 Ltd,,COR0300R
North Lincolnshire Council,http://data.ordnancesurvey.co.uk/id/7000000000025623,Culture & Related Services,Gas,3101,15/02/2019,5628350,"1,940.79",REVENUE,Corona Energy Retail 4 Ltd,,COR0300R
North Lincolnshire Council,http://data.ordnancesurvey.co.uk/id/7000000000025623,Culture & Related Services,Gas,3101,15/02/2019,5628369,"2,251.38",REVENUE,Corona Energy Retail 4 Ltd,,COR0300R
North Lincolnshire Council,http://data.ordnancesurvey.co.uk/id/7000000000025623,Culture & Related Services,Gas,3101,15/02/2019,5628371,"1,240.00",REVENUE,Corona Energy Retail 4 Ltd,,COR0300R
North Lincolnshire Council,http://data.ordnancesurvey.co.uk/id/7000000000025623,Culture & Related Services,Gas,3101,15/02/2019,5628401,458.07,REVENUE,Corona Energy Retail 4 Ltd,,COR0300R
North Lincolnshire Council,http://data.ordnancesurvey.co.uk/id/7000000000025623,Culture & Related Services,Gas,3101,15/02/2019,5628412,772.35,REVENUE,Corona Energy Retail 4 Ltd,,COR0300R
North Lincolnshire Council,http://data.ordnancesurvey.co.uk/id/7000000000025623,Culture & Related Services,Gas,3101,15/02/2019,5628413,346.77,REVENUE,Corona Energy Retail 4 Ltd,,COR0300R
North Lincolnshire Council,http://data.ordnancesurvey.co.uk/id/7000000000025623,Culture & Related Services,Gas,3101,15/02/2019,5628416,295.75,REVENUE,Corona Energy Retail 4 Ltd,,COR0300R
North Lincolnshire Council,http://data.ordnancesurvey.co.uk/id/7000000000025623,Culture & Related Services,Gas,3101,15/02/2019,5628428,"2,800.46",REVENUE,Corona Energy Retail 4 Ltd,,COR0300R
North Lincolnshire Council,http://data.ordnancesurvey.co.uk/id/7000000000025623,Culture & Related Services,Gas,3101,15/02/2019,5628438,309.78,REVENUE,Corona Energy Retail 4 Ltd,,COR0300R
North Lincolnshire Council,http://data.ordnancesurvey.co.uk/id/7000000000025623,Environmental & Regulatory Svs,Gas,3101,15/02/2019,5628404,239.57,REVENUE,Corona Energy Retail 4 Ltd,,COR0300R
North Lincolnshire Council,http://data.ordnancesurvey.co.uk/id/7000000000025623,Environmental & Regulatory Svs,Gas,3101,15/02/2019,5628417,519.92,REVENUE,Corona Energy Retail 4 Ltd,,COR0300R
North Lincolnshire Council,http://data.ordnancesurvey.co.uk/id/7000000000025623,Environmental & Regulatory Svs,Gas,3101,15/02/2019,5628429,384.41,REVENUE,Corona Energy Retail 4 Ltd,,COR0300R
North Lincolnshire Council,http://data.ordnancesurvey.co.uk/id/7000000000025623,Environmental & Regulatory Svs,Gas,3101,15/02/2019,5628431,"1,754.10",REVENUE,Corona Energy Retail 4 Ltd,,COR0300R
North Lincolnshire Council,http://data.ordnancesurvey.co.uk/id/7000000000025623,Fin&Inv I&E,Gas,3101,15/02/2019,5628306,"-1,126.47",REVENUE,Corona Energy Retail 4 Ltd,,COR0300R
North Lincolnshire Council,http://data.ordnancesurvey.co.uk/id/7000000000025623,Fin&Inv I&E,Gas,3101,15/02/2019,5628310,-782.43,REVENUE,Corona Energy Retail 4 Ltd,,COR0300R
North Lincolnshire Council,http://data.ordnancesurvey.co.uk/id/7000000000025623,Fin&Inv I&E,Gas,3101,15/02/2019,5628313,-403.59,REVENUE,Corona Energy Retail 4 Ltd,,COR0300R
North Lincolnshire Council,http://data.ordnancesurvey.co.uk/id/7000000000025623,Fin&Inv I&E,Gas,3101,15/02/2019,5628316,-328.12,REVENUE,Corona Energy Retail 4 Ltd,,COR0300R
North Lincolnshire Council,http://data.ordnancesurvey.co.uk/id/7000000000025623,Fin&Inv I&E,Gas,3101,15/02/2019,5628319,-323.08,REVENUE,Corona Energy Retail 4 Ltd,,COR0300R
North Lincolnshire Council,http://data.ordnancesurvey.co.uk/id/7000000000025623,Fin&Inv I&E,Gas,3101,15/02/2019,5628320,"1,155.41",REVENUE,Corona Energy Retail 4 Ltd,,COR0300R
North Lincolnshire Council,http://data.ordnancesurvey.co.uk/id/7000000000025623,Fin&Inv I&E,Gas,3101,15/02/2019,5628323,-372.81,REVENUE,Corona Energy Retail 4 Ltd,,COR0300R
North Lincolnshire Council,http://data.ordnancesurvey.co.uk/id/7000000000025623,Fin&Inv I&E,Gas,3101,15/02/2019,5628326,-591.73,REVENUE,Corona Energy Retail 4 Ltd,,COR0300R
North Lincolnshire Council,http://data.ordnancesurvey.co.uk/id/7000000000025623,Fin&Inv I&E,Gas,3101,15/02/2019,5628329,-889.21,REVENUE,Corona Energy Retail 4 Ltd,,COR0300R
North Lincolnshire Council,http://data.ordnancesurvey.co.uk/id/7000000000025623,Fin&Inv I&E,Gas,3101,15/02/2019,5628333,"-1,064.71",REVENUE,Corona Energy Retail 4 Ltd,,COR0300R
North Lincolnshire Council,http://data.ordnancesurvey.co.uk/id/7000000000025623,Fin&Inv I&E,Gas,3101,15/02/2019,5628336,-474.61,REVENUE,Corona Energy Retail 4 Ltd,,COR0300R
North Lincolnshire Council,http://data.ordnancesurvey.co.uk/id/7000000000025623,Fin&Inv I&E,Gas,3101,15/02/2019,5628339,-537.66,REVENUE,Corona Energy Retail 4 Ltd,,COR0300R
North Lincolnshire Council,http://data.ordnancesurvey.co.uk/id/7000000000025623,Fin&Inv I&E,Gas,3101,15/02/2019,5628342,444.26,REVENUE,Corona Energy Retail 4 Ltd,,COR0300R
North Lincolnshire Council,http://data.ordnancesurvey.co.uk/id/7000000000025623,Fin&Inv I&E,Gas,3101,15/02/2019,5628343,"-4,161.91",REVENUE,Corona Energy Retail 4 Ltd,,COR0300R
North Lincolnshire Council,http://data.ordnancesurvey.co.uk/id/7000000000025623,Fin&Inv I&E,Gas,3101,15/02/2019,5628346,-419.95,REVENUE,Corona Energy Retail 4 Ltd,,COR0300R
North Lincolnshire Council,http://data.ordnancesurvey.co.uk/id/7000000000025623,Fin&Inv I&E,Gas,3101,15/02/2019,5628347,283.44,REVENUE,Corona Energy Retail 4 Ltd,,COR0300R
North Lincolnshire Council,http://data.ordnancesurvey.co.uk/id/7000000000025623,Fin&Inv I&E,Gas,3101,15/02/2019,5628348,-367.98,REVENUE,Corona Energy Retail 4 Ltd,,COR0300R
North Lincolnshire Council,http://data.ordnancesurvey.co.uk/id/7000000000025623,Fin&Inv I&E,Gas,3101,15/02/2019,5628357,312.08,REVENUE,Corona Energy Retail 4 Ltd,,COR0300R
North Lincolnshire Council,http://data.ordnancesurvey.co.uk/id/7000000000025623,Fin&Inv I&E,Gas,3101,15/02/2019,5628364,"3,474.05",REVENUE,Corona Energy Retail 4 Ltd,,COR0300R
North Lincolnshire Council,http://data.ordnancesurvey.co.uk/id/7000000000025623,Fin&Inv I&E,Gas,3101,15/02/2019,5628407,"1,449.96",REVENUE,Corona Energy Retail 4 Ltd,,COR0300R
North Lincolnshire Council,http://data.ordnancesurvey.co.uk/id/7000000000025623,Fin&Inv I&E,Gas,3101,15/02/2019,5628414,929.59,REVENUE,Corona Energy Retail 4 Ltd,,COR0300R
North Lincolnshire Council,http://data.ordnancesurvey.co.uk/id/7000000000025623,Fin&Inv I&E,Gas,3101,15/02/2019,5628426,"1,304.38",REVENUE,Corona Energy Retail 4 Ltd,,COR0300R
North Lincolnshire Council,http://data.ordnancesurvey.co.uk/id/7000000000025623,Fin&Inv I&E,Gas,3101,15/02/2019,5628427,233.92,REVENUE,Corona Energy Retail 4 Ltd,,COR0300R
North Lincolnshire Council,http://data.ordnancesurvey.co.uk/id/7000000000025623,Childrens & Education,Advertising & Publicity,5610,22/02/2019,5631872,650.00,REVENUE,County Life Ltd,,COU0008U
North Lincolnshire Council,http://data.ordnancesurvey.co.uk/id/7000000000025623,Childrens & Education,Payments To Private Orgs,6002,20/02/2019,5631763,"4,081.66",REVENUE,Craigs Motorcycles Ltd,06574893,CRA0361A
North Lincolnshire Council,http://data.ordnancesurvey.co.uk/id/7000000000025623,Nndr Payers Account,Refunds,REFUND,01/02/2019,5627158,"3,676.81",,Cranidge Holdings,,CRA0071A
North Lincolnshire Council,http://data.ordnancesurvey.co.uk/id/7000000000025623,Adult Social Care,Payments To Private Orgs,6002,08/02/2019,5630639,"59,684.88",REVENUE,Creative Support,,CRE0144E
North Lincolnshire Council,http://data.ordnancesurvey.co.uk/id/7000000000025623,Adult Social Care,Payments To Private Orgs,6002,08/02/2019,5630639,"3,236.85",REVENUE,Creative Support,,CRE0144E
North Lincolnshire Council,http://data.ordnancesurvey.co.uk/id/7000000000025623,Adult Social Care,Payments To Private Orgs,6002,06/02/2019,5630656,"1,253.37",REVENUE,Creative Support Ltd,,ISF0013F
North Lincolnshire Council,http://data.ordnancesurvey.co.uk/id/7000000000025623,Adult Social Care,Payments To Private Orgs,6002,06/02/2019,5630656,"22,045.48",REVENUE,Creative Support Ltd,,ISF0013F
North Lincolnshire Council,http://data.ordnancesurvey.co.uk/id/7000000000025623,Environmental & Regulatory Svs,Other Premises Costs,3390,20/02/2019,5634725,971.25,REVENUE,Crestwood Environmental Ltd,06544898,CRE0250E
North Lincolnshire Council,http://data.ordnancesurvey.co.uk/id/7000000000025623,Environmental & Regulatory Svs,Other Premises Costs,3390,22/02/2019,5634723,412.00,REVENUE,Crestwood Environmental Ltd,06544898,CRE0250E
North Lincolnshire Council,http://data.ordnancesurvey.co.uk/id/7000000000025623,Environmental & Regulatory Svs,Materials,5004,01/03/2019,5631377,691.20,REVENUE,Cromwell Polythene Ltd,2230104,CRO0048O
North Lincolnshire Council,http://data.ordnancesurvey.co.uk/id/7000000000025623,Environmental & Regulatory Svs,Materials,5004,01/03/2019,5633926,691.20,REVENUE,Cromwell Polythene Ltd,2230104,CRO0048O
North Lincolnshire Council,http://data.ordnancesurvey.co.uk/id/7000000000025623,Childrens & Education,Home To School Transport,4201,08/02/2019,5628921,630.00,REVENUE,Crosby Cabz,,CRO0242O
North Lincolnshire Council,http://data.ordnancesurvey.co.uk/id/7000000000025623,Childrens & Education,Home To School Transport,4201,08/02/2019,5628926,976.00,REVENUE,Crosby Cabz,,CRO0242O
North Lincolnshire Council,http://data.ordnancesurvey.co.uk/id/7000000000025623,Childrens & Education,Home To School Transport,4201,08/02/2019,5628929,756.00,REVENUE,Crosby Cabz,,CRO0242O
North Lincolnshire Council,http://data.ordnancesurvey.co.uk/id/7000000000025623,Childrens & Education,Home To School Transport,4201,08/02/2019,5628930,585.50,REVENUE,Crosby Cabz,,CRO0242O
North Lincolnshire Council,http://data.ordnancesurvey.co.uk/id/7000000000025623,Childrens & Education,Home To School Transport,4201,08/02/2019,5628935,566.00,REVENUE,Crosby Cabz,,CRO0242O
North Lincolnshire Council,http://data.ordnancesurvey.co.uk/id/7000000000025623,Childrens & Education,Home To School Transport,4201,08/02/2019,5628936,"1,625.00",REVENUE,Crosby Cabz,,CRO0242O
North Lincolnshire Council,http://data.ordnancesurvey.co.uk/id/7000000000025623,Childrens & Education,Home To School Transport,4201,08/02/2019,5628945,268.50,REVENUE,Crosby Cabz,,CRO0242O
North Lincolnshire Council,http://data.ordnancesurvey.co.uk/id/7000000000025623,Childrens & Education,Home To School Transport,4201,08/02/2019,5628947,760.00,REVENUE,Crosby Cabz,,CRO0242O
North Lincolnshire Council,http://data.ordnancesurvey.co.uk/id/7000000000025623,Childrens & Education,Home To School Transport,4201,08/02/2019,5628948,"1,610.00",REVENUE,Crosby Cabz,,CRO0242O
North Lincolnshire Council,http://data.ordnancesurvey.co.uk/id/7000000000025623,Childrens & Education,Home To School Transport,4201,08/02/2019,5628950,720.00,REVENUE,Crosby Cabz,,CRO0242O
North Lincolnshire Council,http://data.ordnancesurvey.co.uk/id/7000000000025623,Childrens & Education,Home To School Transport,4201,08/02/2019,5628951,"1,990.00",REVENUE,Crosby Cabz,,CRO0242O
North Lincolnshire Council,http://data.ordnancesurvey.co.uk/id/7000000000025623,Childrens & Education,Home To School Transport,4201,08/02/2019,5628953,900.00,REVENUE,Crosby Cabz,,CRO0242O
North Lincolnshire Council,http://data.ordnancesurvey.co.uk/id/7000000000025623,Childrens & Education,Home To School Transport,4201,08/02/2019,5628954,"1,121.00",REVENUE,Crosby Cabz,,CRO0242O
North Lincolnshire Council,http://data.ordnancesurvey.co.uk/id/7000000000025623,Childrens & Education,Home To School Transport,4201,08/02/2019,5629310,380.00,REVENUE,Crosby Cabz,,CRO0242O
North Lincolnshire Council,http://data.ordnancesurvey.co.uk/id/7000000000025623,Childrens & Education,Home To School Transport,4201,08/02/2019,5629408,"1,440.00",REVENUE,Crosby Cabz,,CRO0242O
North Lincolnshire Council,http://data.ordnancesurvey.co.uk/id/7000000000025623,Childrens & Education,Home To School Transport,4201,15/02/2019,5634443,280.00,REVENUE,Crosby Cabz,,CRO0242O
North Lincolnshire Council,http://data.ordnancesurvey.co.uk/id/7000000000025623,Childrens & Education,Home To School Transport,4201,15/02/2019,5634453,540.00,REVENUE,Crosby Cabz,,CRO0242O
North Lincolnshire Council,http://data.ordnancesurvey.co.uk/id/7000000000025623,Childrens & Education,Home To School Transport,4201,15/02/2019,5634471,810.00,REVENUE,Crosby Cabz,,CRO0242O
North Lincolnshire Council,http://data.ordnancesurvey.co.uk/id/7000000000025623,Childrens & Education,Home To School Transport,4201,15/02/2019,5634473,630.00,REVENUE,Crosby Cabz,,CRO0242O
North Lincolnshire Council,http://data.ordnancesurvey.co.uk/id/7000000000025623,Childrens & Education,Home To School Transport,4201,15/02/2019,5634477,412.50,REVENUE,Crosby Cabz,,CRO0242O
North Lincolnshire Council,http://data.ordnancesurvey.co.uk/id/7000000000025623,Childrens & Education,Home To School Transport,4201,20/02/2019,5634652,360.00,REVENUE,Crosby Cabz,,CRO0242O
North Lincolnshire Council,http://data.ordnancesurvey.co.uk/id/7000000000025623,Childrens & Education,Home To School Transport,4201,20/02/2019,5634654,"1,190.00",REVENUE,Crosby Cabz,,CRO0242O
North Lincolnshire Council,http://data.ordnancesurvey.co.uk/id/7000000000025623,Childrens & Education,Home To School Transport,4201,20/02/2019,5634660,600.00,REVENUE,Crosby Cabz,,CRO0242O
North Lincolnshire Council,http://data.ordnancesurvey.co.uk/id/7000000000025623,Childrens & Education,Home To School Transport,4201,20/02/2019,5634664,"1,350.00",REVENUE,Crosby Cabz,,CRO0242O
North Lincolnshire Council,http://data.ordnancesurvey.co.uk/id/7000000000025623,Childrens & Education,Home To School Transport,4201,20/02/2019,5634675,600.00,REVENUE,Crosby Cabz,,CRO0242O
North Lincolnshire Council,http://data.ordnancesurvey.co.uk/id/7000000000025623,Childrens & Education,Home To School Transport,4201,20/02/2019,5634679,"1,585.00",REVENUE,Crosby Cabz,,CRO0242O
North Lincolnshire Council,http://data.ordnancesurvey.co.uk/id/7000000000025623,Childrens & Education,Home To School Transport,4201,20/02/2019,5634681,360.00,REVENUE,Crosby Cabz,,CRO0242O
North Lincolnshire Council,http://data.ordnancesurvey.co.uk/id/7000000000025623,Childrens & Education,Home To School Transport,4201,20/02/2019,5634682,767.00,REVENUE,Crosby Cabz,,CRO0242O
North Lincolnshire Council,http://data.ordnancesurvey.co.uk/id/7000000000025623,Childrens & Education,Home To School Transport,4201,20/02/2019,5634690,"1,200.00",REVENUE,Crosby Cabz,,CRO0242O
North Lincolnshire Council,http://data.ordnancesurvey.co.uk/id/7000000000025623,"Culture,Env,Reg & Planning Cap",Other Costs,A085,06/02/2019,5627561,"5,100.00",CAPITAL,Crosby United Junior Fc,,CRO0103O
North Lincolnshire Council,http://data.ordnancesurvey.co.uk/id/7000000000025623,Culture & Related Services,Payments To Voluntary Orgs,6001,06/02/2019,5627560,"1,300.00",REVENUE,Crowle & Ealand Regeneration Group,,CRO0001O
North Lincolnshire Council,http://data.ordnancesurvey.co.uk/id/7000000000025623,Culture & Related Services,Other Supplies & Services,5799,08/02/2019,5626343,685.67,REVENUE,Crowle Peatland Railway,,CRO0463O
North Lincolnshire Council,http://data.ordnancesurvey.co.uk/id/7000000000025623,Culture & Related Services,Other Supplies & Services,5799,20/02/2019,5635891,698.10,REVENUE,Crowle Peatland Railway,,CRO0463O
North Lincolnshire Council,http://data.ordnancesurvey.co.uk/id/7000000000025623,Childrens & Education,Payments To Private Orgs,6002,15/02/2019,5633846,"2,140.83",REVENUE,Crowle Primary Academy,,CRO0346O
North Lincolnshire Council,http://data.ordnancesurvey.co.uk/id/7000000000025623,Housing Services,Fees & Charges Income,9002,06/02/2019,5625335,-700.00,REVENUE,Crown Building Services,,HIN0039N
North Lincolnshire Council,http://data.ordnancesurvey.co.uk/id/7000000000025623,Childrens & Education,Repair & Maintenance Costs,3000,13/02/2019,5632604,129.00,REVENUE,C S L (Dualcom) Ltd,03155883,CSL0003L
North Lincolnshire Council,http://data.ordnancesurvey.co.uk/id/7000000000025623,Corporate And Democratic Core,Repair & Maintenance Costs,3000,13/02/2019,5632604,258.00,REVENUE,C S L (Dualcom) Ltd,03155883,CSL0003L
North Lincolnshire Council,http://data.ordnancesurvey.co.uk/id/7000000000025623,Fin&Inv I&E,Repair & Maintenance Costs,3000,13/02/2019,5632604,129.00,REVENUE,C S L (Dualcom) Ltd,03155883,CSL0003L
North Lincolnshire Council,http://data.ordnancesurvey.co.uk/id/7000000000025623,Fin&Inv I&E,Other Vehicle Costs,4005,27/02/2019,5633205,"2,169.75",REVENUE,Ctrack Ltd,04643588,CTR0001R
North Lincolnshire Council,http://data.ordnancesurvey.co.uk/id/7000000000025623,Adult Social Care,Equipment Purchase,5001,08/03/2019,5634608,216.62,REVENUE,Currys Ltd,,CUR0006R
North Lincolnshire Council,http://data.ordnancesurvey.co.uk/id/7000000000025623,Childrens & Education,Equipment Purchase,5001,20/02/2019,5636330,"1,542.92",REVENUE,Currys Ltd,,CUR0006R
North Lincolnshire Council,http://data.ordnancesurvey.co.uk/id/7000000000025623,Childrens & Education,Equipment Purchase,5001,22/02/2019,5634463,574.15,REVENUE,Currys Ltd,,CUR0006R
North Lincolnshire Council,http://data.ordnancesurvey.co.uk/id/7000000000025623,Environmental & Regulatory Svs,Equipment Purchase,5001,15/03/2019,5640290,474.17,REVENUE,Currys Ltd,,CUR0006R
North Lincolnshire Council,http://data.ordnancesurvey.co.uk/id/7000000000025623,Fin&Inv I&E,Materials,5004,20/02/2019,5633291,"2,150.00",REVENUE,Dan Page Accident Repairs,,PAG0044G
North Lincolnshire Council,http://data.ordnancesurvey.co.uk/id/7000000000025623,Planning Services,Other Supplies & Services,5799,01/03/2019,5640340,506.25,REVENUE,David Lawrenson,,LAW0071W
North Lincolnshire Council,http://data.ordnancesurvey.co.uk/id/7000000000025623,Adult Social Care,Repair & Maintenance Costs,3000,27/02/2019,5640027,580.00,REVENUE,Delta Security Systems Ltd,06373017,DEL0004L
North Lincolnshire Council,http://data.ordnancesurvey.co.uk/id/7000000000025623,Fin&Inv I&E,Repair & Maintenance Costs,3000,01/02/2019,5625918,860.00,REVENUE,Delta Security Systems Ltd,06373017,DEL0004L
North Lincolnshire Council,http://data.ordnancesurvey.co.uk/id/7000000000025623,Childrens & Education,Payments To Private Orgs,6002,15/02/2019,5633808,"6,000.00",REVENUE,Demeter House (England) Ltd,5774107,DEM0021M
North Lincolnshire Council,http://data.ordnancesurvey.co.uk/id/7000000000025623,Childrens & Education,Payments To Private Orgs,6002,15/02/2019,5633843,"9,975.00",REVENUE,Demeter House (England) Ltd,5774107,DEM0021M
North Lincolnshire Council,http://data.ordnancesurvey.co.uk/id/7000000000025623,Environmental & Regulatory Svs,Course Fees/Training,2002,13/03/2019,5638433,300.00,REVENUE,Derby City Council,,DER0036R
North Lincolnshire Council,http://data.ordnancesurvey.co.uk/id/7000000000025623,Culture & Related Services,Other Professional Fees,5829,08/02/2019,5628855,"1,140.00",REVENUE,D. Foulds,,FOU0052U
North Lincolnshire Council,http://data.ordnancesurvey.co.uk/id/7000000000025623,Fin&Inv I&E,Grounds Maintenance,3010,08/02/2019,5629810,375.00,REVENUE,Djm Consultancy,4539626,DJM0002M
North Lincolnshire Council,http://data.ordnancesurvey.co.uk/id/7000000000025623,Fin&Inv I&E,Grounds Maintenance,3010,20/02/2019,5633872,375.00,REVENUE,Djm Consultancy,4539626,DJM0002M
North Lincolnshire Council,http://data.ordnancesurvey.co.uk/id/7000000000025623,Childrens & Education,Home To School Transport,4201,20/02/2019,5634620,"6,925.40",REVENUE,D J Taxis Scunthorpe,,DJT0001T
North Lincolnshire Council,http://data.ordnancesurvey.co.uk/id/7000000000025623,Childrens & Education,Payments To Private Orgs,6002,27/02/2019,5637720,"52,913.33",REVENUE,Dn Colleges Group,,NOR0007R
North Lincolnshire Council,http://data.ordnancesurvey.co.uk/id/7000000000025623,Adult Social Care,Payments To Health Providers,6019,27/02/2019,5639525,"1,310.00",REVENUE,Doncaster & Bassetlaw Hospitals Nhs Trust,,DON0232N
North Lincolnshire Council,http://data.ordnancesurvey.co.uk/id/7000000000025623,Adult Social Care,Payments To Health Providers,6019,27/02/2019,5639527,"1,626.00",REVENUE,Doncaster & Bassetlaw Hospitals Nhs Trust,,DON0232N
North Lincolnshire Council,http://data.ordnancesurvey.co.uk/id/7000000000025623,Adult Social Care,Payments To Health Providers,6019,27/02/2019,5639528,"2,600.00",REVENUE,Doncaster & Bassetlaw Hospitals Nhs Trust,,DON0232N
North Lincolnshire Council,http://data.ordnancesurvey.co.uk/id/7000000000025623,Adult Social Care,Payments To Health Providers,6019,27/02/2019,5639529,"1,463.00",REVENUE,Doncaster & Bassetlaw Hospitals Nhs Trust,,DON0232N
North Lincolnshire Council,http://data.ordnancesurvey.co.uk/id/7000000000025623,Adult Social Care,Payments To Health Providers,6019,27/02/2019,5639530,"1,773.64",REVENUE,Doncaster & Bassetlaw Hospitals Nhs Trust,,DON0232N
North Lincolnshire Council,http://data.ordnancesurvey.co.uk/id/7000000000025623,Adult Social Care,Payments To Health Providers,6019,27/02/2019,5639531,884.12,REVENUE,Doncaster & Bassetlaw Hospitals Nhs Trust,,DON0232N
North Lincolnshire Council,http://data.ordnancesurvey.co.uk/id/7000000000025623,Adult Social Care,Payments To Health Providers,6019,27/02/2019,5639532,"2,916.88",REVENUE,Doncaster & Bassetlaw Hospitals Nhs Trust,,DON0232N
North Lincolnshire Council,http://data.ordnancesurvey.co.uk/id/7000000000025623,Adult Social Care,Payments To Health Providers,6019,27/02/2019,5639534,"-2,490.00",REVENUE,Doncaster & Bassetlaw Hospitals Nhs Trust,,DON0232N
North Lincolnshire Council,http://data.ordnancesurvey.co.uk/id/7000000000025623,Adult Social Care,Payments To Health Providers,6019,27/02/2019,5639536,-852.00,REVENUE,Doncaster & Bassetlaw Hospitals Nhs Trust,,DON0232N
North Lincolnshire Council,http://data.ordnancesurvey.co.uk/id/7000000000025623,Adult Social Care,Payments To Health Providers,6019,27/02/2019,5639544,-468.00,REVENUE,Doncaster & Bassetlaw Hospitals Nhs Trust,,DON0232N
North Lincolnshire Council,http://data.ordnancesurvey.co.uk/id/7000000000025623,Adult Social Care,Payments To Health Providers,6019,27/02/2019,5639547,-543.00,REVENUE,Doncaster & Bassetlaw Hospitals Nhs Trust,,DON0232N
North Lincolnshire Council,http://data.ordnancesurvey.co.uk/id/7000000000025623,Adult Social Care,Payments To Health Providers,6019,27/02/2019,5639550,-337.00,REVENUE,Doncaster & Bassetlaw Hospitals Nhs Trust,,DON0232N
North Lincolnshire Council,http://data.ordnancesurvey.co.uk/id/7000000000025623,Adult Social Care,Payments To Health Providers,6019,27/02/2019,5639554,-674.00,REVENUE,Doncaster & Bassetlaw Hospitals Nhs Trust,,DON0232N
North Lincolnshire Council,http://data.ordnancesurvey.co.uk/id/7000000000025623,Childrens & Education,Payments To Private Orgs,6002,15/02/2019,5633481,"25,000.00",REVENUE,Doncaster Deaf Trust,,DON0228N
North Lincolnshire Council,http://data.ordnancesurvey.co.uk/id/7000000000025623,Childrens & Education,Payments To Private Orgs,6002,15/02/2019,5633484,"10,740.00",REVENUE,Doncaster Deaf Trust,,DON0228N
North Lincolnshire Council,http://data.ordnancesurvey.co.uk/id/7000000000025623,Childrens & Education,Payments To Private Orgs,6002,15/02/2019,5633485,"18,395.67",REVENUE,Doncaster Deaf Trust,,DON0228N
North Lincolnshire Council,http://data.ordnancesurvey.co.uk/id/7000000000025623,Corporate And Democratic Core,Gen Office Exp (Incl Postage),5603,22/02/2019,5634592,301.00,REVENUE,Doncaster Metropolitan B C,,DON0001N
North Lincolnshire Council,http://data.ordnancesurvey.co.uk/id/7000000000025623,Corporate And Democratic Core,Gen Office Exp (Incl Postage),5603,01/03/2019,5632756,850.00,REVENUE,Doncaster Metropolitan B C,,DON0001N
North Lincolnshire Council,http://data.ordnancesurvey.co.uk/id/7000000000025623,Corporate And Democratic Core,Gen Office Exp (Incl Postage),5603,01/03/2019,5633976,891.73,REVENUE,Doncaster Metropolitan B C,,DON0001N
North Lincolnshire Council,http://data.ordnancesurvey.co.uk/id/7000000000025623,Adult Social Care,Payments To Health Providers,6019,01/03/2019,5639498,"1,135.95",REVENUE,Dr A Muraleedharan,,MUR0020R
North Lincolnshire Council,http://data.ordnancesurvey.co.uk/id/7000000000025623,Adult Social Care,Payments To Health Providers,6019,01/03/2019,5639503,"1,899.45",REVENUE,Dr A Muraleedharan,,MUR0020R
North Lincolnshire Council,http://data.ordnancesurvey.co.uk/id/7000000000025623,Adult Social Care,Payments To Health Providers,6019,13/03/2019,5639493,"1,230.12",REVENUE,Dr A Muraleedharan,,MUR0020R
North Lincolnshire Council,http://data.ordnancesurvey.co.uk/id/7000000000025623,Adult Social Care,Payments To Health Providers,6019,13/03/2019,5639499,"1,350.75",REVENUE,Dr A Muraleedharan,,MUR0020R
North Lincolnshire Council,http://data.ordnancesurvey.co.uk/id/7000000000025623,Adult Social Care,Payments To Health Providers,6019,27/02/2019,5639513,288.45,REVENUE,Dr A Whitaker & Partners,,WHI0114I
North Lincolnshire Council,http://data.ordnancesurvey.co.uk/id/7000000000025623,Adult Social Care,Payments To Health Providers,6019,27/02/2019,5639514,596.16,REVENUE,Dr A Whitaker & Partners,,WHI0114I
North Lincolnshire Council,http://data.ordnancesurvey.co.uk/id/7000000000025623,Public Health,Payments To Health Providers,6019,27/02/2019,5639509,280.00,REVENUE,Dr A Whitaker & Partners,,WHI0114I
North Lincolnshire Council,http://data.ordnancesurvey.co.uk/id/7000000000025623,Adult Social Care Capital,Other Costs,A085,20/02/2019,5633406,649.00,CAPITAL,Drive Devilbiss Healthcare Limited,4301005,DRI0008I
North Lincolnshire Council,http://data.ordnancesurvey.co.uk/id/7000000000025623,Adult Social Care Capital,Other Costs,A085,01/03/2019,5633397,498.80,CAPITAL,Drive Devilbiss Healthcare Limited,4301005,DRI0008I
North Lincolnshire Council,http://data.ordnancesurvey.co.uk/id/7000000000025623,Adult Social Care,Payments To Health Providers,6019,27/02/2019,5631891,704.34,REVENUE,Dr M J Dwyer & Partners,,DWY0001Y
North Lincolnshire Council,http://data.ordnancesurvey.co.uk/id/7000000000025623,Culture & Related Services,Other Supplies & Services,5799,01/03/2019,5640267,380.00,REVENUE,D Roberts,,ROB0139B
North Lincolnshire Council,http://data.ordnancesurvey.co.uk/id/7000000000025623,Environmental & Regulatory Svs,Other Professional Fees,5829,13/02/2019,5631134,"2,550.00",REVENUE,Dr T Mahmood Anwar,,MAH0003H
North Lincolnshire Council,http://data.ordnancesurvey.co.uk/id/7000000000025623,Fin&Inv I&E,Other Professional Fees,5829,13/02/2019,5631110,"4,415.16",REVENUE,Easters & Son Commercial Services Ltd,,EAS0590S
North Lincolnshire Council,http://data.ordnancesurvey.co.uk/id/7000000000025623,Childrens & Education,Client Transport Costs,6092,27/02/2019,5633917,"1,505.00",REVENUE,East Hull Cars Ltd,5777873,EAS0093S
North Lincolnshire Council,http://data.ordnancesurvey.co.uk/id/7000000000025623,Childrens & Education,Client Transport Costs,6092,27/02/2019,5633919,"2,112.00",REVENUE,East Hull Cars Ltd,5777873,EAS0093S
North Lincolnshire Council,http://data.ordnancesurvey.co.uk/id/7000000000025623,Childrens & Education,Client Transport Costs,6092,27/02/2019,5633927,"1,410.00",REVENUE,East Hull Cars Ltd,5777873,EAS0093S
North Lincolnshire Council,http://data.ordnancesurvey.co.uk/id/7000000000025623,Culture & Related Services,Materials,5004,06/03/2019,5634890,261.86,REVENUE,East Riding Horticulture Ltd,,EAS0166S
North Lincolnshire Council,http://data.ordnancesurvey.co.uk/id/7000000000025623,Highways & Transport,Passenger Transport,6011,20/02/2019,5632743,"20,600.00",REVENUE,East Riding Of Yorkshire Council,,EAS0126S
North Lincolnshire Council,http://data.ordnancesurvey.co.uk/id/7000000000025623,Non Distributed Costs,Retirement Additional Costs,2007,22/02/2019,5636452,"160,300.00",REVENUE,East Riding Pension Fund,,EAS0381S
North Lincolnshire Council,http://data.ordnancesurvey.co.uk/id/7000000000025623,Non Distributed Costs,Retirement Additional Costs,2007,22/02/2019,5636453,"-25,000.00",REVENUE,East Riding Pension Fund,,EAS0381S
North Lincolnshire Council,http://data.ordnancesurvey.co.uk/id/7000000000025623,Fin&Inv I&E,Equipment Maint.& Repair,5003,15/03/2019,5639391,240.00,REVENUE,Eastwick Engineering Services,,EAS0014S
North Lincolnshire Council,http://data.ordnancesurvey.co.uk/id/7000000000025623,Childrens & Education,Home To School Transport,4201,27/02/2019,5636337,"8,827.99",REVENUE,East Yorkshire Motor Services Ltd,216628,EAS0120S
North Lincolnshire Council,http://data.ordnancesurvey.co.uk/id/7000000000025623,Highways & Transport,Concessionary Fares,6010,15/02/2019,5631792,"4,500.00",REVENUE,East Yorkshire Motor Services Ltd,216628,EAS0120S
North Lincolnshire Council,http://data.ordnancesurvey.co.uk/id/7000000000025623,Highways & Transport,Vehicle Hire,4101,13/02/2019,5633222,"2,103.66",REVENUE,Econ Engineering Limited,,ECO0008O
North Lincolnshire Council,http://data.ordnancesurvey.co.uk/id/7000000000025623,Culture & Related Services,Repair & Maintenance Costs,3000,20/02/2019,5636201,911.12,REVENUE,E C Surfacing Ltd,07080098,ECS0006S
North Lincolnshire Council,http://data.ordnancesurvey.co.uk/id/7000000000025623,Adult Social Care,Pay - Agency,0131,13/02/2019,5629893,378.60,REVENUE,Eden Brown Synergy,3643845,EDE0130E
North Lincolnshire Council,http://data.ordnancesurvey.co.uk/id/7000000000025623,Adult Social Care,Pay - Agency,0131,13/02/2019,5629897,"1,739.00",REVENUE,Eden Brown Synergy,3643845,EDE0130E
North Lincolnshire Council,http://data.ordnancesurvey.co.uk/id/7000000000025623,Adult Social Care,Pay - Agency,0131,13/02/2019,5629906,"1,739.00",REVENUE,Eden Brown Synergy,3643845,EDE0130E
North Lincolnshire Council,http://data.ordnancesurvey.co.uk/id/7000000000025623,Adult Social Care,Pay - Agency,0131,13/02/2019,5630840,680.00,REVENUE,Eden Brown Synergy,3643845,EDE0130E
North Lincolnshire Council,http://data.ordnancesurvey.co.uk/id/7000000000025623,Adult Social Care,Pay - Agency,0131,13/02/2019,5630845,600.00,REVENUE,Eden Brown Synergy,3643845,EDE0130E
North Lincolnshire Council,http://data.ordnancesurvey.co.uk/id/7000000000025623,Adult Social Care,Pay - Agency,0131,13/02/2019,5631185,960.00,REVENUE,Eden Brown Synergy,3643845,EDE0130E
North Lincolnshire Council,http://data.ordnancesurvey.co.uk/id/7000000000025623,Adult Social Care,Pay - Agency,0131,13/02/2019,5631204,702.00,REVENUE,Eden Brown Synergy,3643845,EDE0130E
North Lincolnshire Council,http://data.ordnancesurvey.co.uk/id/7000000000025623,Adult Social Care,Pay - Agency,0131,13/02/2019,5631206,"1,443.00",REVENUE,Eden Brown Synergy,3643845,EDE0130E
North Lincolnshire Council,http://data.ordnancesurvey.co.uk/id/7000000000025623,Adult Social Care,Pay - Agency,0131,13/02/2019,5631211,"1,184.00",REVENUE,Eden Brown Synergy,3643845,EDE0130E
North Lincolnshire Council,http://data.ordnancesurvey.co.uk/id/7000000000025623,Adult Social Care,Pay - Agency,0131,13/02/2019,5631214,"1,088.00",REVENUE,Eden Brown Synergy,3643845,EDE0130E
North Lincolnshire Council,http://data.ordnancesurvey.co.uk/id/7000000000025623,Adult Social Care,Pay - Agency,0131,15/02/2019,5632766,"1,443.00",REVENUE,Eden Brown Synergy,3643845,EDE0130E
North Lincolnshire Council,http://data.ordnancesurvey.co.uk/id/7000000000025623,Adult Social Care,Pay - Agency,0131,15/02/2019,5632769,"1,088.00",REVENUE,Eden Brown Synergy,3643845,EDE0130E
North Lincolnshire Council,http://data.ordnancesurvey.co.uk/id/7000000000025623,Adult Social Care,Pay - Agency,0131,15/02/2019,5633342,"1,184.00",REVENUE,Eden Brown Synergy,3643845,EDE0130E
North Lincolnshire Council,http://data.ordnancesurvey.co.uk/id/7000000000025623,Adult Social Care,Pay - Agency,0131,15/02/2019,5633343,705.30,REVENUE,Eden Brown Synergy,3643845,EDE0130E
North Lincolnshire Council,http://data.ordnancesurvey.co.uk/id/7000000000025623,Adult Social Care,Pay - Agency,0131,15/02/2019,5633351,"1,170.00",REVENUE,Eden Brown Synergy,3643845,EDE0130E
North Lincolnshire Council,http://data.ordnancesurvey.co.uk/id/7000000000025623,Adult Social Care,Pay - Agency,0131,20/02/2019,5634496,495.00,REVENUE,Eden Brown Synergy,3643845,EDE0130E
North Lincolnshire Council,http://data.ordnancesurvey.co.uk/id/7000000000025623,Adult Social Care,Pay - Agency,0131,22/02/2019,5633928,"1,443.00",REVENUE,Eden Brown Synergy,3643845,EDE0130E
North Lincolnshire Council,http://data.ordnancesurvey.co.uk/id/7000000000025623,Adult Social Care,Pay - Agency,0131,27/02/2019,5638499,"1,222.00",REVENUE,Eden Brown Synergy,3643845,EDE0130E
North Lincolnshire Council,http://data.ordnancesurvey.co.uk/id/7000000000025623,Adult Social Care,Pay - Agency,0131,27/02/2019,5638505,"1,410.00",REVENUE,Eden Brown Synergy,3643845,EDE0130E
North Lincolnshire Council,http://data.ordnancesurvey.co.uk/id/7000000000025623,Adult Social Care,Pay - Agency,0131,27/02/2019,5638510,"1,739.00",REVENUE,Eden Brown Synergy,3643845,EDE0130E
North Lincolnshire Council,http://data.ordnancesurvey.co.uk/id/7000000000025623,Adult Social Care,Pay - Agency,0131,01/03/2019,5638514,"1,692.00",REVENUE,Eden Brown Synergy,3643845,EDE0130E
North Lincolnshire Council,http://data.ordnancesurvey.co.uk/id/7000000000025623,Adult Social Care,Pay - Agency,0131,01/03/2019,5638730,"1,443.00",REVENUE,Eden Brown Synergy,3643845,EDE0130E
North Lincolnshire Council,http://data.ordnancesurvey.co.uk/id/7000000000025623,Adult Social Care,Pay - Agency,0131,01/03/2019,5638736,512.00,REVENUE,Eden Brown Synergy,3643845,EDE0130E
North Lincolnshire Council,http://data.ordnancesurvey.co.uk/id/7000000000025623,Adult Social Care,Pay - Agency,0131,01/03/2019,5638740,"1,170.00",REVENUE,Eden Brown Synergy,3643845,EDE0130E
North Lincolnshire Council,http://data.ordnancesurvey.co.uk/id/7000000000025623,Adult Social Care,Pay - Agency,0131,01/03/2019,5638742,"1,184.00",REVENUE,Eden Brown Synergy,3643845,EDE0130E
North Lincolnshire Council,http://data.ordnancesurvey.co.uk/id/7000000000025623,Adult Social Care,Pay - Agency,0131,01/03/2019,5638746,"1,170.00",REVENUE,Eden Brown Synergy,3643845,EDE0130E
North Lincolnshire Council,http://data.ordnancesurvey.co.uk/id/7000000000025623,Adult Social Care,Pay - Agency,0131,01/03/2019,5638747,640.00,REVENUE,Eden Brown Synergy,3643845,EDE0130E
North Lincolnshire Council,http://data.ordnancesurvey.co.uk/id/7000000000025623,Adult Social Care,Pay - Agency,0131,01/03/2019,5638748,"1,443.00",REVENUE,Eden Brown Synergy,3643845,EDE0130E
North Lincolnshire Council,http://data.ordnancesurvey.co.uk/id/7000000000025623,Adult Social Care,Pay - Agency,0131,01/03/2019,5638751,"1,088.00",REVENUE,Eden Brown Synergy,3643845,EDE0130E
North Lincolnshire Council,http://data.ordnancesurvey.co.uk/id/7000000000025623,Corporate And Democratic Core,It Hardware -Purchase,5050,20/02/2019,5627176,875.45,REVENUE,Eden Telecom Ltd,,EDE0145E
North Lincolnshire Council,http://data.ordnancesurvey.co.uk/id/7000000000025623,Support Servs Capital,It Equipment,A098,22/02/2019,5627181,"3,950.00",CAPITAL,Eden Telecom Ltd,,EDE0145E
North Lincolnshire Council,http://data.ordnancesurvey.co.uk/id/7000000000025623,Fin&Inv I&E,Electricity,3102,08/02/2019,5631193,330.62,REVENUE,Edf Energy,,EDF0029F
North Lincolnshire Council,http://data.ordnancesurvey.co.uk/id/7000000000025623,Public Health,Equipment Purchase,5001,08/02/2019,5625424,638.82,REVENUE,Edmundson Electrical Ltd,2667012,EDM0002M
North Lincolnshire Council,http://data.ordnancesurvey.co.uk/id/7000000000025623,Environmental & Regulatory Svs,Stock Purchases & Adjustments,5030,22/02/2019,5636435,"7,950.00",REVENUE,Egbert H Taylor & Co Ltd,718441,TAY0016Y
North Lincolnshire Council,http://data.ordnancesurvey.co.uk/id/7000000000025623,Public Health,Materials,5004,15/02/2019,5630624,212.00,REVENUE,E H Advertising Ltd,,EHA0003A
North Lincolnshire Council,http://data.ordnancesurvey.co.uk/id/7000000000025623,Public Health,Materials,5004,20/02/2019,5628857,250.00,REVENUE,E H Advertising Ltd,,EHA0003A
North Lincolnshire Council,http://data.ordnancesurvey.co.uk/id/7000000000025623,Childrens & Education,Home To School Transport,4201,06/03/2019,5634619,399.00,REVENUE,Ej'S Cars Ltd,,EJC0001C
North Lincolnshire Council,http://data.ordnancesurvey.co.uk/id/7000000000025623,Corporate And Democratic Core,Other Supplies & Services,5799,15/02/2019,5633365,492.00,REVENUE,Elaine Kitchen,,KIT0021T
North Lincolnshire Council,http://data.ordnancesurvey.co.uk/id/7000000000025623,Adult Social Care,Payments To Private Orgs,6002,06/02/2019,5630652,"9,145.89",REVENUE,Elite Care Solutions Ltd,,ISF0009F
North Lincolnshire Council,http://data.ordnancesurvey.co.uk/id/7000000000025623,Adult Social Care,Payments To Private Orgs,6002,06/02/2019,5630652,"4,415.20",REVENUE,Elite Care Solutions Ltd,,ISF0009F
North Lincolnshire Council,http://data.ordnancesurvey.co.uk/id/7000000000025623,Childrens & Education,Client Related Costs,5534,15/02/2019,5633429,212.14,REVENUE,Ellgia Scunthorpe,860123,BEL0170L
North Lincolnshire Council,http://data.ordnancesurvey.co.uk/id/7000000000025623,Environmental & Regulatory Svs,Other Professional Fees,5829,06/02/2019,5626921,"3,480.08",REVENUE,Ellgia Scunthorpe,860123,BEL0170L
North Lincolnshire Council,http://data.ordnancesurvey.co.uk/id/7000000000025623,Environmental & Regulatory Svs,Other Professional Fees,5829,27/02/2019,5640293,"3,403.33",REVENUE,Ellgia Scunthorpe,860123,BEL0170L
North Lincolnshire Council,http://data.ordnancesurvey.co.uk/id/7000000000025623,Environmental & Regulatory Svs,Other Professional Fees,5829,27/02/2019,5640304,242.37,REVENUE,Ellgia Scunthorpe,860123,BEL0170L
North Lincolnshire Council,http://data.ordnancesurvey.co.uk/id/7000000000025623,Environmental & Regulatory Svs,Payments To Private Orgs,6002,08/02/2019,5629793,"17,186.19",REVENUE,Ellgia Scunthorpe,860123,BEL0170L
North Lincolnshire Council,http://data.ordnancesurvey.co.uk/id/7000000000025623,Environmental & Regulatory Svs,Payments To Private Orgs,6002,15/02/2019,5632772,291.24,REVENUE,Ellgia Scunthorpe,860123,BEL0170L
North Lincolnshire Council,http://data.ordnancesurvey.co.uk/id/7000000000025623,Environmental & Regulatory Svs,Payments To Private Orgs,6002,15/02/2019,5632773,-224.04,REVENUE,Ellgia Scunthorpe,860123,BEL0170L
North Lincolnshire Council,http://data.ordnancesurvey.co.uk/id/7000000000025623,Environmental & Regulatory Svs,Payments To Private Orgs,6002,15/02/2019,5632774,298.40,REVENUE,Ellgia Scunthorpe,860123,BEL0170L
North Lincolnshire Council,http://data.ordnancesurvey.co.uk/id/7000000000025623,Environmental & Regulatory Svs,Payments To Private Orgs,6002,15/02/2019,5632776,"12,157.38",REVENUE,Ellgia Scunthorpe,860123,BEL0170L
North Lincolnshire Council,http://data.ordnancesurvey.co.uk/id/7000000000025623,Environmental & Regulatory Svs,Payments To Private Orgs,6002,20/02/2019,5634736,619.28,REVENUE,Ellgia Scunthorpe,860123,BEL0170L
North Lincolnshire Council,http://data.ordnancesurvey.co.uk/id/7000000000025623,Environmental & Regulatory Svs,Payments To Private Orgs,6002,20/02/2019,5634804,272.30,REVENUE,Ellgia Scunthorpe,860123,BEL0170L
North Lincolnshire Council,http://data.ordnancesurvey.co.uk/id/7000000000025623,Environmental & Regulatory Svs,Payments To Private Orgs,6002,22/02/2019,5636407,"15,895.07",REVENUE,Ellgia Scunthorpe,860123,BEL0170L
North Lincolnshire Council,http://data.ordnancesurvey.co.uk/id/7000000000025623,Environmental & Regulatory Svs,Payments To Private Orgs,6002,22/02/2019,5636412,"13,959.08",REVENUE,Ellgia Scunthorpe,860123,BEL0170L
North Lincolnshire Council,http://data.ordnancesurvey.co.uk/id/7000000000025623,Corporate And Democratic Core,Materials,5004,01/03/2019,5637643,280.68,REVENUE,Elliott Baxter & Company Ltd,,ELL0237L
North Lincolnshire Council,http://data.ordnancesurvey.co.uk/id/7000000000025623,Adult Social Care,Payments To Private Orgs,6002,06/02/2019,5630659,"9,774.60",REVENUE,Emerald Care Services (North Lincs) Ltd,,ISF0026F
North Lincolnshire Council,http://data.ordnancesurvey.co.uk/id/7000000000025623,Adult Social Care,Payments To Private Orgs,6002,08/02/2019,5630641,"30,559.61",REVENUE,Emerald Care Services (North Lincs) Ltd,08136830,EME0032E
North Lincolnshire Council,http://data.ordnancesurvey.co.uk/id/7000000000025623,Childrens & Education,Payments To Private Orgs,6002,01/03/2019,5639659,"2,600.00",REVENUE,Emma White,,WHI0170I
North Lincolnshire Council,http://data.ordnancesurvey.co.uk/id/7000000000025623,Culture & Related Services,Heating Fuels,3104,08/02/2019,5629406,"2,520.14",REVENUE,Emo Oil,,EMO0004O
North Lincolnshire Council,http://data.ordnancesurvey.co.uk/id/7000000000025623,Corporate And Democratic Core,Repair & Maintenance Costs,3000,06/02/2019,5626788,"1,328.00",REVENUE,End2end Services Limited,,END0042D
North Lincolnshire Council,http://data.ordnancesurvey.co.uk/id/7000000000025623,Corporate And Democratic Core,Repair & Maintenance Costs,3000,06/02/2019,5626789,"1,328.00",REVENUE,End2end Services Limited,,END0042D
North Lincolnshire Council,http://data.ordnancesurvey.co.uk/id/7000000000025623,Support Servs Capital,It Equipment,A098,13/02/2019,5631778,"1,000.00",CAPITAL,End2end Services Limited,,END0042D
North Lincolnshire Council,http://data.ordnancesurvey.co.uk/id/7000000000025623,Support Servs Capital,It Equipment,A098,27/02/2019,5631749,"4,652.50",CAPITAL,End2end Services Limited,,END0042D
North Lincolnshire Council,http://data.ordnancesurvey.co.uk/id/7000000000025623,Planning Services,Legal Fees,5823,27/02/2019,5637077,"2,558.00",REVENUE,England & Lyle,,ENG0013G
North Lincolnshire Council,http://data.ordnancesurvey.co.uk/id/7000000000025623,Environmental & Regulatory Svs,Equipment Hire/Rent,5002,06/02/2019,5628445,625.00,REVENUE,Enitial,,ENI0002I
North Lincolnshire Council,http://data.ordnancesurvey.co.uk/id/7000000000025623,Environmental & Regulatory Svs,Equipment Hire/Rent,5002,27/02/2019,5630716,"1,500.00",REVENUE,Enitial,,ENI0002I
North Lincolnshire Council,http://data.ordnancesurvey.co.uk/id/7000000000025623,"Culture,Env,Reg & Planning Cap",Other Costs,A085,15/02/2019,5631237,"3,600.00",CAPITAL,Environment Agency,,ENV0056V
North Lincolnshire Council,http://data.ordnancesurvey.co.uk/id/7000000000025623,Public Health,Other Supplies & Services,5799,06/02/2019,5625815,"3,125.00",REVENUE,Envirotech Europe Ltd,SC367372,ENV0168V
North Lincolnshire Council,http://data.ordnancesurvey.co.uk/id/7000000000025623,Public Health,Equipment Maint.& Repair,5003,20/02/2019,5636346,845.14,REVENUE,Enviro Technology Services Plc,,ENV0009V
North Lincolnshire Council,http://data.ordnancesurvey.co.uk/id/7000000000025623,Corporate And Democratic Core,Gas,3101,13/02/2019,5631448,339.97,REVENUE,E.On,,POW0010W
North Lincolnshire Council,http://data.ordnancesurvey.co.uk/id/7000000000025623,Corporate And Democratic Core,It Hardware -Purchase,5050,15/02/2019,5630721,0,REVENUE,E P Morris & Company Ltd,2091108,EPM0001M
North Lincolnshire Council,http://data.ordnancesurvey.co.uk/id/7000000000025623,Corporate And Democratic Core,It Software-Maintenance,5053,15/02/2019,5630721,313.71,REVENUE,E P Morris & Company Ltd,2091108,EPM0001M
North Lincolnshire Council,http://data.ordnancesurvey.co.uk/id/7000000000025623,Childrens & Education,Home To School Transport,4201,20/02/2019,5631939,299.10,REVENUE,Epworth Taxis Ltd,8601067,EPW0003W
North Lincolnshire Council,http://data.ordnancesurvey.co.uk/id/7000000000025623,Childrens & Education,Home To School Transport,4201,20/02/2019,5631941,456.50,REVENUE,Epworth Taxis Ltd,8601067,EPW0003W
North Lincolnshire Council,http://data.ordnancesurvey.co.uk/id/7000000000025623,Childrens & Education,Home To School Transport,4201,20/02/2019,5631943,"1,106.75",REVENUE,Epworth Taxis Ltd,8601067,EPW0003W
North Lincolnshire Council,http://data.ordnancesurvey.co.uk/id/7000000000025623,Childrens & Education,Home To School Transport,4201,20/02/2019,5633932,726.75,REVENUE,Epworth Taxis Ltd,8601067,EPW0003W
North Lincolnshire Council,http://data.ordnancesurvey.co.uk/id/7000000000025623,Childrens & Education,Home To School Transport,4201,20/02/2019,5633953,850.25,REVENUE,Epworth Taxis Ltd,8601067,EPW0003W
North Lincolnshire Council,http://data.ordnancesurvey.co.uk/id/7000000000025623,Childrens & Education,Home To School Transport,4201,20/02/2019,5633957,"1,301.50",REVENUE,Epworth Taxis Ltd,8601067,EPW0003W
North Lincolnshire Council,http://data.ordnancesurvey.co.uk/id/7000000000025623,Childrens & Education,Cleaning Costs/ Materials,3301,08/03/2019,5636332,331.22,REVENUE,Eryc - Supplies,,EAS0125S
North Lincolnshire Council,http://data.ordnancesurvey.co.uk/id/7000000000025623,Non Distributed Costs,Other Supplies & Services,5799,15/02/2019,5628248,"1,589.76",REVENUE,Eryc - Supplies,,EAS0125S
North Lincolnshire Council,http://data.ordnancesurvey.co.uk/id/7000000000025623,Corporate And Democratic Core,It Software-Maintenance,5053,27/02/2019,5637116,782.04,REVENUE,Euclid Limited,,EUC0003C
North Lincolnshire Council,http://data.ordnancesurvey.co.uk/id/7000000000025623,Highways & Transport,Other Supplies & Services,5799,22/02/2019,5631111,550.00,REVENUE,Exactrak,,EXA0014A
North Lincolnshire Council,http://data.ordnancesurvey.co.uk/id/7000000000025623,Environmental & Regulatory Svs,Other Vehicle Costs,4005,01/03/2019,5634737,707.68,REVENUE,Exeros Technologies Ltd,,TEC0150C
North Lincolnshire Council,http://data.ordnancesurvey.co.uk/id/7000000000025623,Environmental & Regulatory Svs,Other Vehicle Costs,4005,06/03/2019,5634742,"1,045.00",REVENUE,Exeros Technologies Ltd,,TEC0150C
North Lincolnshire Council,http://data.ordnancesurvey.co.uk/id/7000000000025623,Culture & Related Services,Cleaning Services & Contracts,3311,15/02/2019,5632690,260.00,REVENUE,Extreme Clean Uk,,EXT0030T
North Lincolnshire Council,http://data.ordnancesurvey.co.uk/id/7000000000025623,Childrens & Education,Other Premises Costs,3390,08/02/2019,5629804,300.00,REVENUE,Eye Watch Security Ltd,04480210,EYE0006E
North Lincolnshire Council,http://data.ordnancesurvey.co.uk/id/7000000000025623,Environmental & Regulatory Svs,Equipment Purchase,5001,27/02/2019,5640305,345.24,REVENUE,Eye Watch Security Ltd,04480210,EYE0006E
North Lincolnshire Council,http://data.ordnancesurvey.co.uk/id/7000000000025623,Environmental & Regulatory Svs,Other Premises Costs,3390,08/02/2019,5629803,"2,440.00",REVENUE,Eye Watch Security Ltd,04480210,EYE0006E
North Lincolnshire Council,http://data.ordnancesurvey.co.uk/id/7000000000025623,Environmental & Regulatory Svs,Other Premises Costs,3390,08/02/2019,5629804,300.00,REVENUE,Eye Watch Security Ltd,04480210,EYE0006E
North Lincolnshire Council,http://data.ordnancesurvey.co.uk/id/7000000000025623,Fin&Inv I&E,Other Supplies & Services,5799,08/02/2019,5629757,582.00,REVENUE,Eye Watch Security Ltd,04480210,EYE0006E
North Lincolnshire Council,http://data.ordnancesurvey.co.uk/id/7000000000025623,Fin&Inv I&E,Other Supplies & Services,5799,27/02/2019,5639671,485.00,REVENUE,Eye Watch Security Ltd,04480210,EYE0006E
North Lincolnshire Council,http://data.ordnancesurvey.co.uk/id/7000000000025623,Highways & Transport,Stock Purchases & Adjustments,5030,13/02/2019,5625273,"1,185.00",REVENUE,Fabrikat (Nottingham) Ltd,,FAB0002B
North Lincolnshire Council,http://data.ordnancesurvey.co.uk/id/7000000000025623,Culture & Related Services,Leasing Charges - Controllable,5798,08/03/2019,5634892,373.00,REVENUE,Fidelity Crm Ltd,,FID0005D
North Lincolnshire Council,http://data.ordnancesurvey.co.uk/id/7000000000025623,Culture & Related Services,Leasing Charges - Controllable,5798,15/03/2019,5637701,"2,213.00",REVENUE,Fidelity Crm Ltd,,FID0005D
North Lincolnshire Council,http://data.ordnancesurvey.co.uk/id/7000000000025623,Childrens & Education,Other Supplies & Services,5799,08/02/2019,5629304,285.60,REVENUE,Fieldview Day Nursery,,FIE0045E
North Lincolnshire Council,http://data.ordnancesurvey.co.uk/id/7000000000025623,Childrens & Education,Client Related Costs,5534,20/02/2019,5635763,273.00,REVENUE,Filey Childcare Ltd,,FIL0120L
North Lincolnshire Council,http://data.ordnancesurvey.co.uk/id/7000000000025623,Childrens & Education,Client Related Costs,5534,20/02/2019,5635764,527.00,REVENUE,Filey Childcare Ltd,,FIL0120L
North Lincolnshire Council,http://data.ordnancesurvey.co.uk/id/7000000000025623,Corporate And Democratic Core,It Software-Purchase,5051,13/02/2019,5631757,"15,851.00",REVENUE,Firmstep Ltd,,BUS0003S
North Lincolnshire Council,http://data.ordnancesurvey.co.uk/id/7000000000025623,Fin&Inv I&E,Cleaning Costs/ Materials,3301,06/02/2019,5629431,217.00,REVENUE,First Choice Catering Spares Ltd,3789633,FIR0146R
North Lincolnshire Council,http://data.ordnancesurvey.co.uk/id/7000000000025623,Childrens & Education,Payments To Private Orgs,6002,13/02/2019,5627046,242.00,REVENUE,First Class Tailored Solutions Ltd,07819183,FIR0124R
North Lincolnshire Council,http://data.ordnancesurvey.co.uk/id/7000000000025623,Childrens & Education,Payments To Private Orgs,6002,20/02/2019,5629856,242.00,REVENUE,First Class Tailored Solutions Ltd,07819183,FIR0124R
North Lincolnshire Council,http://data.ordnancesurvey.co.uk/id/7000000000025623,Childrens & Education,Payments To Private Orgs,6002,27/02/2019,5634480,236.00,REVENUE,First Class Tailored Solutions Ltd,07819183,FIR0124R
North Lincolnshire Council,http://data.ordnancesurvey.co.uk/id/7000000000025623,Highways & Transport,Other Supplies & Services,5799,13/02/2019,5632727,"2,866.00",REVENUE,First Step Sports Ltd,,FIR0143R
North Lincolnshire Council,http://data.ordnancesurvey.co.uk/id/7000000000025623,Childrens & Education,Payments To Private Orgs,6002,01/03/2019,5641066,"3,516.91",REVENUE,Five Rivers Child Care Ltd,,FIV0006V
North Lincolnshire Council,http://data.ordnancesurvey.co.uk/id/7000000000025623,Fin&Inv I&E,Equipment Hire/Rent,5002,13/02/2019,5633226,368.25,REVENUE,Fleetclean Ltd,01381865,FLE0007E
North Lincolnshire Council,http://data.ordnancesurvey.co.uk/id/7000000000025623,Fin&Inv I&E,Equipment Maint.& Repair,5003,20/02/2019,5635991,495.00,REVENUE,Fleet Factors Ltd,01231325,FLE0026E
North Lincolnshire Council,http://data.ordnancesurvey.co.uk/id/7000000000025623,Fin&Inv I&E,Equipment Maint.& Repair,5003,27/02/2019,5639397,445.86,REVENUE,Fleet Factors Ltd,01231325,FLE0026E
North Lincolnshire Council,http://data.ordnancesurvey.co.uk/id/7000000000025623,Fin&Inv I&E,Fuel,4001,01/03/2019,5636041,"1,160.00",REVENUE,Fleet Factors Ltd,01231325,FLE0026E
North Lincolnshire Council,http://data.ordnancesurvey.co.uk/id/7000000000025623,Fin&Inv I&E,Materials,5004,13/02/2019,5626969,"1,252.44",REVENUE,Fleet Factors Ltd,01231325,FLE0026E
North Lincolnshire Council,http://data.ordnancesurvey.co.uk/id/7000000000025623,Fin&Inv I&E,Materials,5004,13/02/2019,5626972,362.36,REVENUE,Fleet Factors Ltd,01231325,FLE0026E
North Lincolnshire Council,http://data.ordnancesurvey.co.uk/id/7000000000025623,Fin&Inv I&E,Materials,5004,13/02/2019,5626976,673.29,REVENUE,Fleet Factors Ltd,01231325,FLE0026E
North Lincolnshire Council,http://data.ordnancesurvey.co.uk/id/7000000000025623,Fin&Inv I&E,Materials,5004,15/02/2019,5626977,231.00,REVENUE,Fleet Factors Ltd,01231325,FLE0026E
North Lincolnshire Council,http://data.ordnancesurvey.co.uk/id/7000000000025623,Fin&Inv I&E,Materials,5004,15/02/2019,5626978,261.19,REVENUE,Fleet Factors Ltd,01231325,FLE0026E
North Lincolnshire Council,http://data.ordnancesurvey.co.uk/id/7000000000025623,Fin&Inv I&E,Materials,5004,15/02/2019,5627002,228.63,REVENUE,Fleet Factors Ltd,01231325,FLE0026E
North Lincolnshire Council,http://data.ordnancesurvey.co.uk/id/7000000000025623,Fin&Inv I&E,Materials,5004,15/02/2019,5627014,328.57,REVENUE,Fleet Factors Ltd,01231325,FLE0026E
North Lincolnshire Council,http://data.ordnancesurvey.co.uk/id/7000000000025623,Fin&Inv I&E,Materials,5004,15/02/2019,5627016,251.78,REVENUE,Fleet Factors Ltd,01231325,FLE0026E
North Lincolnshire Council,http://data.ordnancesurvey.co.uk/id/7000000000025623,Fin&Inv I&E,Materials,5004,15/02/2019,5627017,"2,729.80",REVENUE,Fleet Factors Ltd,01231325,FLE0026E
North Lincolnshire Council,http://data.ordnancesurvey.co.uk/id/7000000000025623,Fin&Inv I&E,Materials,5004,15/02/2019,5627020,450.00,REVENUE,Fleet Factors Ltd,01231325,FLE0026E
North Lincolnshire Council,http://data.ordnancesurvey.co.uk/id/7000000000025623,Fin&Inv I&E,Materials,5004,15/02/2019,5633232,369.86,REVENUE,Fleet Factors Ltd,01231325,FLE0026E
North Lincolnshire Council,http://data.ordnancesurvey.co.uk/id/7000000000025623,Fin&Inv I&E,Materials,5004,20/02/2019,5635962,"1,298.77",REVENUE,Fleet Factors Ltd,01231325,FLE0026E
North Lincolnshire Council,http://data.ordnancesurvey.co.uk/id/7000000000025623,Fin&Inv I&E,Materials,5004,20/02/2019,5635963,"1,353.26",REVENUE,Fleet Factors Ltd,01231325,FLE0026E
North Lincolnshire Council,http://data.ordnancesurvey.co.uk/id/7000000000025623,Fin&Inv I&E,Materials,5004,20/02/2019,5635965,295.00,REVENUE,Fleet Factors Ltd,01231325,FLE0026E
North Lincolnshire Council,http://data.ordnancesurvey.co.uk/id/7000000000025623,Fin&Inv I&E,Materials,5004,20/02/2019,5635967,225.00,REVENUE,Fleet Factors Ltd,01231325,FLE0026E
North Lincolnshire Council,http://data.ordnancesurvey.co.uk/id/7000000000025623,Fin&Inv I&E,Materials,5004,20/02/2019,5635969,717.81,REVENUE,Fleet Factors Ltd,01231325,FLE0026E
North Lincolnshire Council,http://data.ordnancesurvey.co.uk/id/7000000000025623,Fin&Inv I&E,Materials,5004,20/02/2019,5635972,233.99,REVENUE,Fleet Factors Ltd,01231325,FLE0026E
North Lincolnshire Council,http://data.ordnancesurvey.co.uk/id/7000000000025623,Fin&Inv I&E,Materials,5004,20/02/2019,5635978,329.80,REVENUE,Fleet Factors Ltd,01231325,FLE0026E
North Lincolnshire Council,http://data.ordnancesurvey.co.uk/id/7000000000025623,Fin&Inv I&E,Materials,5004,22/02/2019,5633237,262.75,REVENUE,Fleet Factors Ltd,01231325,FLE0026E
North Lincolnshire Council,http://data.ordnancesurvey.co.uk/id/7000000000025623,Fin&Inv I&E,Materials,5004,22/02/2019,5633239,268.00,REVENUE,Fleet Factors Ltd,01231325,FLE0026E
North Lincolnshire Council,http://data.ordnancesurvey.co.uk/id/7000000000025623,Fin&Inv I&E,Materials,5004,22/02/2019,5633243,229.06,REVENUE,Fleet Factors Ltd,01231325,FLE0026E
North Lincolnshire Council,http://data.ordnancesurvey.co.uk/id/7000000000025623,Fin&Inv I&E,Materials,5004,22/02/2019,5633249,600.00,REVENUE,Fleet Factors Ltd,01231325,FLE0026E
North Lincolnshire Council,http://data.ordnancesurvey.co.uk/id/7000000000025623,Fin&Inv I&E,Materials,5004,22/02/2019,5635993,410.55,REVENUE,Fleet Factors Ltd,01231325,FLE0026E
North Lincolnshire Council,http://data.ordnancesurvey.co.uk/id/7000000000025623,Fin&Inv I&E,Materials,5004,22/02/2019,5635997,686.16,REVENUE,Fleet Factors Ltd,01231325,FLE0026E
North Lincolnshire Council,http://data.ordnancesurvey.co.uk/id/7000000000025623,Fin&Inv I&E,Materials,5004,22/02/2019,5635999,"1,618.32",REVENUE,Fleet Factors Ltd,01231325,FLE0026E
North Lincolnshire Council,http://data.ordnancesurvey.co.uk/id/7000000000025623,Fin&Inv I&E,Materials,5004,22/02/2019,5636000,365.00,REVENUE,Fleet Factors Ltd,01231325,FLE0026E
North Lincolnshire Council,http://data.ordnancesurvey.co.uk/id/7000000000025623,Fin&Inv I&E,Materials,5004,22/02/2019,5636001,589.07,REVENUE,Fleet Factors Ltd,01231325,FLE0026E
North Lincolnshire Council,http://data.ordnancesurvey.co.uk/id/7000000000025623,Fin&Inv I&E,Materials,5004,27/02/2019,5633251,211.69,REVENUE,Fleet Factors Ltd,01231325,FLE0026E
North Lincolnshire Council,http://data.ordnancesurvey.co.uk/id/7000000000025623,Fin&Inv I&E,Materials,5004,27/02/2019,5633255,265.04,REVENUE,Fleet Factors Ltd,01231325,FLE0026E
North Lincolnshire Council,http://data.ordnancesurvey.co.uk/id/7000000000025623,Fin&Inv I&E,Materials,5004,27/02/2019,5633257,979.08,REVENUE,Fleet Factors Ltd,01231325,FLE0026E
North Lincolnshire Council,http://data.ordnancesurvey.co.uk/id/7000000000025623,Fin&Inv I&E,Materials,5004,27/02/2019,5633258,254.14,REVENUE,Fleet Factors Ltd,01231325,FLE0026E
North Lincolnshire Council,http://data.ordnancesurvey.co.uk/id/7000000000025623,Fin&Inv I&E,Materials,5004,27/02/2019,5633263,338.40,REVENUE,Fleet Factors Ltd,01231325,FLE0026E
North Lincolnshire Council,http://data.ordnancesurvey.co.uk/id/7000000000025623,Fin&Inv I&E,Materials,5004,27/02/2019,5633264,610.32,REVENUE,Fleet Factors Ltd,01231325,FLE0026E
North Lincolnshire Council,http://data.ordnancesurvey.co.uk/id/7000000000025623,Fin&Inv I&E,Materials,5004,27/02/2019,5636007,228.01,REVENUE,Fleet Factors Ltd,01231325,FLE0026E
North Lincolnshire Council,http://data.ordnancesurvey.co.uk/id/7000000000025623,Fin&Inv I&E,Materials,5004,27/02/2019,5636009,"1,417.86",REVENUE,Fleet Factors Ltd,01231325,FLE0026E
North Lincolnshire Council,http://data.ordnancesurvey.co.uk/id/7000000000025623,Fin&Inv I&E,Materials,5004,27/02/2019,5636019,420.48,REVENUE,Fleet Factors Ltd,01231325,FLE0026E
North Lincolnshire Council,http://data.ordnancesurvey.co.uk/id/7000000000025623,Fin&Inv I&E,Materials,5004,01/03/2019,5636025,498.39,REVENUE,Fleet Factors Ltd,01231325,FLE0026E
North Lincolnshire Council,http://data.ordnancesurvey.co.uk/id/7000000000025623,Fin&Inv I&E,Materials,5004,01/03/2019,5636034,209.43,REVENUE,Fleet Factors Ltd,01231325,FLE0026E
North Lincolnshire Council,http://data.ordnancesurvey.co.uk/id/7000000000025623,Fin&Inv I&E,Materials,5004,01/03/2019,5636040,292.08,REVENUE,Fleet Factors Ltd,01231325,FLE0026E
North Lincolnshire Council,http://data.ordnancesurvey.co.uk/id/7000000000025623,Fin&Inv I&E,Materials,5004,06/03/2019,5636066,657.64,REVENUE,Fleet Factors Ltd,01231325,FLE0026E
North Lincolnshire Council,http://data.ordnancesurvey.co.uk/id/7000000000025623,Fin&Inv I&E,Materials,5004,06/03/2019,5636070,420.48,REVENUE,Fleet Factors Ltd,01231325,FLE0026E
North Lincolnshire Council,http://data.ordnancesurvey.co.uk/id/7000000000025623,Fin&Inv I&E,Materials,5004,06/03/2019,5636073,353.48,REVENUE,Fleet Factors Ltd,01231325,FLE0026E
North Lincolnshire Council,http://data.ordnancesurvey.co.uk/id/7000000000025623,Fin&Inv I&E,Materials,5004,06/03/2019,5636076,420.00,REVENUE,Fleet Factors Ltd,01231325,FLE0026E
North Lincolnshire Council,http://data.ordnancesurvey.co.uk/id/7000000000025623,Fin&Inv I&E,Materials,5004,06/03/2019,5636077,398.08,REVENUE,Fleet Factors Ltd,01231325,FLE0026E
North Lincolnshire Council,http://data.ordnancesurvey.co.uk/id/7000000000025623,Fin&Inv I&E,Materials,5004,08/03/2019,5636087,248.96,REVENUE,Fleet Factors Ltd,01231325,FLE0026E
North Lincolnshire Council,http://data.ordnancesurvey.co.uk/id/7000000000025623,Fin&Inv I&E,Materials,5004,08/03/2019,5636088,485.32,REVENUE,Fleet Factors Ltd,01231325,FLE0026E
North Lincolnshire Council,http://data.ordnancesurvey.co.uk/id/7000000000025623,Fin&Inv I&E,Materials,5004,08/03/2019,5636090,260.76,REVENUE,Fleet Factors Ltd,01231325,FLE0026E
North Lincolnshire Council,http://data.ordnancesurvey.co.uk/id/7000000000025623,Fin&Inv I&E,Materials,5004,08/03/2019,5639402,245.56,REVENUE,Fleet Factors Ltd,01231325,FLE0026E
North Lincolnshire Council,http://data.ordnancesurvey.co.uk/id/7000000000025623,Fin&Inv I&E,Materials,5004,08/03/2019,5639406,439.72,REVENUE,Fleet Factors Ltd,01231325,FLE0026E
North Lincolnshire Council,http://data.ordnancesurvey.co.uk/id/7000000000025623,Fin&Inv I&E,Materials,5004,08/03/2019,5639409,485.00,REVENUE,Fleet Factors Ltd,01231325,FLE0026E
North Lincolnshire Council,http://data.ordnancesurvey.co.uk/id/7000000000025623,Fin&Inv I&E,Materials,5004,08/03/2019,5639410,"1,223.69",REVENUE,Fleet Factors Ltd,01231325,FLE0026E
North Lincolnshire Council,http://data.ordnancesurvey.co.uk/id/7000000000025623,Fin&Inv I&E,Materials,5004,13/03/2019,5639430,441.96,REVENUE,Fleet Factors Ltd,01231325,FLE0026E
North Lincolnshire Council,http://data.ordnancesurvey.co.uk/id/7000000000025623,Fin&Inv I&E,Materials,5004,13/03/2019,5639432,565.00,REVENUE,Fleet Factors Ltd,01231325,FLE0026E
North Lincolnshire Council,http://data.ordnancesurvey.co.uk/id/7000000000025623,Fin&Inv I&E,Materials,5004,15/03/2019,5639439,432.24,REVENUE,Fleet Factors Ltd,01231325,FLE0026E
North Lincolnshire Council,http://data.ordnancesurvey.co.uk/id/7000000000025623,Fin&Inv I&E,Materials,5004,15/03/2019,5639440,231.62,REVENUE,Fleet Factors Ltd,01231325,FLE0026E
North Lincolnshire Council,http://data.ordnancesurvey.co.uk/id/7000000000025623,Fin&Inv I&E,Materials,5004,15/03/2019,5639441,209.76,REVENUE,Fleet Factors Ltd,01231325,FLE0026E
North Lincolnshire Council,http://data.ordnancesurvey.co.uk/id/7000000000025623,Fin&Inv I&E,Materials,5004,15/03/2019,5639443,939.56,REVENUE,Fleet Factors Ltd,01231325,FLE0026E
North Lincolnshire Council,http://data.ordnancesurvey.co.uk/id/7000000000025623,Fin&Inv I&E,Materials,5004,15/03/2019,5639448,463.35,REVENUE,Fleet Factors Ltd,01231325,FLE0026E
North Lincolnshire Council,http://data.ordnancesurvey.co.uk/id/7000000000025623,Fin&Inv I&E,Stock Purchases & Adjustments,5030,20/02/2019,5635981,465.83,REVENUE,Fleet Factors Ltd,01231325,FLE0026E
North Lincolnshire Council,http://data.ordnancesurvey.co.uk/id/7000000000025623,Fin&Inv I&E,Stock Purchases & Adjustments,5030,20/02/2019,5635982,429.63,REVENUE,Fleet Factors Ltd,01231325,FLE0026E
North Lincolnshire Council,http://data.ordnancesurvey.co.uk/id/7000000000025623,Fin&Inv I&E,Stock Purchases & Adjustments,5030,20/02/2019,5635985,334.96,REVENUE,Fleet Factors Ltd,01231325,FLE0026E
North Lincolnshire Council,http://data.ordnancesurvey.co.uk/id/7000000000025623,Fin&Inv I&E,Stock Purchases & Adjustments,5030,20/02/2019,5635990,553.54,REVENUE,Fleet Factors Ltd,01231325,FLE0026E
North Lincolnshire Council,http://data.ordnancesurvey.co.uk/id/7000000000025623,Fin&Inv I&E,Stock Purchases & Adjustments,5030,06/03/2019,5636078,305.68,REVENUE,Fleet Factors Ltd,01231325,FLE0026E
North Lincolnshire Council,http://data.ordnancesurvey.co.uk/id/7000000000025623,Culture & Related Services,Equipment Purchase,5001,06/03/2019,5633838,"1,300.00",REVENUE,Fleet (Line Markers) Ltd,588668,FLE0103E
North Lincolnshire Council,http://data.ordnancesurvey.co.uk/id/7000000000025623,Culture & Related Services,Materials,5004,06/03/2019,5633839,575.72,REVENUE,Fleet (Line Markers) Ltd,588668,FLE0103E
North Lincolnshire Council,http://data.ordnancesurvey.co.uk/id/7000000000025623,Environmental & Regulatory Svs,Other Supplies & Services,5799,01/03/2019,5640229,673.70,REVENUE,Flixborough Parish Council,,FLI0001I
North Lincolnshire Council,http://data.ordnancesurvey.co.uk/id/7000000000025623,Corporate And Democratic Core,Repair & Maintenance Costs,3000,20/02/2019,5636196,830.00,REVENUE,Flow Mech Products Ltd,2726033,FLO0050O
North Lincolnshire Council,http://data.ordnancesurvey.co.uk/id/7000000000025623,Environmental & Regulatory Svs,Gen Office Exp (Incl Postage),5603,20/02/2019,5629823,978.00,REVENUE,Fluid Branding Ltd,,FLU0022U
North Lincolnshire Council,http://data.ordnancesurvey.co.uk/id/7000000000025623,Environmental & Regulatory Svs,Gen Office Exp (Incl Postage),5603,08/03/2019,5637892,380.00,REVENUE,Fluid Branding Ltd,,FLU0022U
North Lincolnshire Council,http://data.ordnancesurvey.co.uk/id/7000000000025623,Corporate And Democratic Core,Legal Fees,5823,06/02/2019,5626359,216.00,REVENUE,Foresight Clinical Services Ltd,06354163,FOR0132R
North Lincolnshire Council,http://data.ordnancesurvey.co.uk/id/7000000000025623,Environmental & Regulatory Svs,Vehicle Hire,4101,27/02/2019,5633272,237.32,REVENUE,Forktruck Solutions Ltd,4032332,FOR0059R
North Lincolnshire Council,http://data.ordnancesurvey.co.uk/id/7000000000025623,Childrens & Education,Payments To Private Orgs,6002,20/02/2019,5634483,"3,299.02",REVENUE,Foster Care Associates Limited,08273494,FOS0030S
North Lincolnshire Council,http://data.ordnancesurvey.co.uk/id/7000000000025623,Childrens & Education,Payments To Private Orgs,6002,20/02/2019,5634485,"3,265.85",REVENUE,Fostering Solutions Ltd,,FOS0044S
North Lincolnshire Council,http://data.ordnancesurvey.co.uk/id/7000000000025623,Fin&Inv I&E,Materials,5004,22/02/2019,5633273,233.51,REVENUE,Fox Auto Electrical,,FOX0061X
North Lincolnshire Council,http://data.ordnancesurvey.co.uk/id/7000000000025623,Fin&Inv I&E,Materials,5004,22/02/2019,5633274,264.86,REVENUE,Fox Auto Electrical,,FOX0061X
North Lincolnshire Council,http://data.ordnancesurvey.co.uk/id/7000000000025623,Fin&Inv I&E,Materials,5004,06/03/2019,5636093,746.88,REVENUE,Fox Auto Electrical,,FOX0061X
North Lincolnshire Council,http://data.ordnancesurvey.co.uk/id/7000000000025623,"Culture,Env,Reg & Planning Cap",Consultants,A087,22/02/2019,5636345,"1,750.00",CAPITAL,Fpc Environment & Design Ltd,,FPC0120C
North Lincolnshire Council,http://data.ordnancesurvey.co.uk/id/7000000000025623,"Culture,Env,Reg & Planning Cap",Consultants,A087,27/02/2019,5638709,"11,109.75",CAPITAL,Fpc Environment & Design Ltd,,FPC0120C
North Lincolnshire Council,http://data.ordnancesurvey.co.uk/id/7000000000025623,Public Health,Other Supplies & Services,5799,13/02/2019,5631807,"64,680.25",REVENUE,Framework Housing Association,,FRA0017A
North Lincolnshire Council,http://data.ordnancesurvey.co.uk/id/7000000000025623,Corporate And Democratic Core,Equipment Maint.& Repair,5003,13/03/2019,5637646,583.00,REVENUE,Freelance Offset Services Ltd,,FRE0013E
North Lincolnshire Council,http://data.ordnancesurvey.co.uk/id/7000000000025623,Fin&Inv I&E,Stock Purchases & Adjustments,5030,08/03/2019,5636094,"7,280.00",REVENUE,Fuchs Lubricants (Uk) Plc,,FUC0001C
North Lincolnshire Council,http://data.ordnancesurvey.co.uk/id/7000000000025623,Fin&Inv I&E,Grounds Maintenance,3010,22/02/2019,5634693,648.00,REVENUE,F W S Consultants Ltd,3944252,FWS0001S
North Lincolnshire Council,http://data.ordnancesurvey.co.uk/id/7000000000025623,Fin&Inv I&E,Grounds Maintenance,3010,27/02/2019,5639670,907.20,REVENUE,F W S Consultants Ltd,3944252,FWS0001S
North Lincolnshire Council,http://data.ordnancesurvey.co.uk/id/7000000000025623,Childrens & Education,Equipment Maint.& Repair,5003,20/02/2019,5633438,450.00,REVENUE,Gainsborough Baths Ltd,10433373,ABA0005A
North Lincolnshire Council,http://data.ordnancesurvey.co.uk/id/7000000000025623,Fin&Inv I&E,Materials,5004,15/02/2019,5627025,480.00,REVENUE,Gallows Wood Service Station Ltd,,GAL0001L
North Lincolnshire Council,http://data.ordnancesurvey.co.uk/id/7000000000025623,Corporate And Democratic Core,Telephone Rent/Calls,5403,06/03/2019,5632650,"12,647.96",REVENUE,Gamma Business Communications Ltd,,GAM0150M
North Lincolnshire Council,http://data.ordnancesurvey.co.uk/id/7000000000025623,Highways & Transport,Equipment Hire/Rent,5002,27/02/2019,5633329,884.40,REVENUE,Gap Group,00198823,GAP0001P
North Lincolnshire Council,http://data.ordnancesurvey.co.uk/id/7000000000025623,Public Health,Equipment Purchase,5001,27/02/2019,5631945,351.00,REVENUE,G Empson & Sons Limited,1434924,EMP0019P
North Lincolnshire Council,http://data.ordnancesurvey.co.uk/id/7000000000025623,Culture & Related Services,Materials,5004,08/02/2019,5625012,604.40,REVENUE,G & G Signs,01778323,SIG0009G
North Lincolnshire Council,http://data.ordnancesurvey.co.uk/id/7000000000025623,Environmental & Regulatory Svs,Equipment Purchase,5001,13/03/2019,5635874,838.90,REVENUE,Gipping Press Ltd,,SWA0099A
North Lincolnshire Council,http://data.ordnancesurvey.co.uk/id/7000000000025623,Highways & Transport,Stock Purchases & Adjustments,5030,27/02/2019,5628942,745.50,REVENUE,Glasdon Uk Ltd,2160576,GLA0002A
North Lincolnshire Council,http://data.ordnancesurvey.co.uk/id/7000000000025623,Childrens & Education,Subscriptions & Memberships,5510,13/03/2019,5640800,256.37,REVENUE,Gl Education Group Ltd,02603456,GRA0101A
North Lincolnshire Council,http://data.ordnancesurvey.co.uk/id/7000000000025623,Culture & Related Services,Subscriptions & Memberships,5510,22/02/2019,5636333,"1,575.00",REVENUE,Global Tourism Solutions ( Uk ) Ltd,3423266,GLO0020O
North Lincolnshire Council,http://data.ordnancesurvey.co.uk/id/7000000000025623,Corporate And Democratic Core,Fees & Charges Income,9002,06/02/2019,5629256,-26.61,REVENUE,G M B,,GMB0003B
North Lincolnshire Council,http://data.ordnancesurvey.co.uk/id/7000000000025623,Adult Social Care,Payments To Private Orgs,6002,06/02/2019,5630661,"9,865.20",REVENUE,Goodwin Healthcare Services Ltd,,ISF0030F
North Lincolnshire Council,http://data.ordnancesurvey.co.uk/id/7000000000025623,Adult Social Care,Payments To Private Orgs,6002,06/02/2019,5630661,"13,882.18",REVENUE,Goodwin Healthcare Services Ltd,,ISF0030F
North Lincolnshire Council,http://data.ordnancesurvey.co.uk/id/7000000000025623,Childrens & Education,Payments To Private Orgs,6002,15/02/2019,5633950,285.06,REVENUE,Goodwin Healthcare Services Ltd,8461130,CLA0170A
North Lincolnshire Council,http://data.ordnancesurvey.co.uk/id/7000000000025623,Childrens & Education,Payments To Private Orgs,6002,15/02/2019,5633952,292.69,REVENUE,Goodwin Healthcare Services Ltd,8461130,CLA0170A
North Lincolnshire Council,http://data.ordnancesurvey.co.uk/id/7000000000025623,Childrens & Education,Payments To Private Orgs,6002,15/02/2019,5633959,292.69,REVENUE,Goodwin Healthcare Services Ltd,8461130,CLA0170A
North Lincolnshire Council,http://data.ordnancesurvey.co.uk/id/7000000000025623,Childrens & Education,Payments To Private Orgs,6002,15/02/2019,5633960,292.69,REVENUE,Goodwin Healthcare Services Ltd,8461130,CLA0170A
North Lincolnshire Council,http://data.ordnancesurvey.co.uk/id/7000000000025623,Childrens & Education,Payments To Private Orgs,6002,27/02/2019,5639487,292.69,REVENUE,Goodwin Healthcare Services Ltd,8461130,CLA0170A
North Lincolnshire Council,http://data.ordnancesurvey.co.uk/id/7000000000025623,Adult Social Care,Payments To Private Orgs,6002,06/02/2019,5630662,"1,864.68",REVENUE,Gray Healthcare Ltd,,ISF0032F
North Lincolnshire Council,http://data.ordnancesurvey.co.uk/id/7000000000025623,Environmental & Regulatory Svs,Other Supplies & Services,5799,22/02/2019,5634900,680.00,REVENUE,Gray'S Butchers & Bakers,,GRA0366A
North Lincolnshire Council,http://data.ordnancesurvey.co.uk/id/7000000000025623,Adult Social Care,Payments To Private Orgs,6002,06/02/2019,5630647,"5,028.72",REVENUE,Hales Group Ltd,,ISF0004F
North Lincolnshire Council,http://data.ordnancesurvey.co.uk/id/7000000000025623,Adult Social Care,Payments To Private Orgs,6002,08/02/2019,5630627,522.08,REVENUE,Hales Group Ltd,04738023,ABB0054B
North Lincolnshire Council,http://data.ordnancesurvey.co.uk/id/7000000000025623,Adult Social Care,Payments To Private Orgs,6002,08/02/2019,5630627,"38,800.41",REVENUE,Hales Group Ltd,04738023,ABB0054B
North Lincolnshire Council,http://data.ordnancesurvey.co.uk/id/7000000000025623,Childrens & Education,Materials,5004,20/02/2019,5635176,482.00,REVENUE,Harlow Printing Ltd,435445,HAR0613R
North Lincolnshire Council,http://data.ordnancesurvey.co.uk/id/7000000000025623,Childrens & Education,Payments To Private Orgs,6002,20/02/2019,5634486,"16,421.01",REVENUE,Harmony Childrens Services,07350725,HAR0789R
North Lincolnshire Council,http://data.ordnancesurvey.co.uk/id/7000000000025623,Childrens & Education,Payments To Private Orgs,6002,01/03/2019,5641068,940.62,REVENUE,Harmony Childrens Services,07350725,HAR0789R
North Lincolnshire Council,http://data.ordnancesurvey.co.uk/id/7000000000025623,Corporate And Democratic Core,Repair & Maintenance Costs,3000,13/02/2019,5632609,0,REVENUE,Harrison Lightning Protection &Earthing Ltd,,HAR0369R
North Lincolnshire Council,http://data.ordnancesurvey.co.uk/id/7000000000025623,Culture & Related Services,Payments To Voluntary Orgs,6001,27/02/2019,5640035,"1,200.00",REVENUE,Haxey Parish Council,,HAX0002X
North Lincolnshire Council,http://data.ordnancesurvey.co.uk/id/7000000000025623,Environmental & Regulatory Svs,Other Supplies & Services,5799,27/02/2019,5629827,"7,711.91",REVENUE,Haxey Parish Council,,HAX0002X
North Lincolnshire Council,http://data.ordnancesurvey.co.uk/id/7000000000025623,Culture & Related Services,Other Supplies & Services,5799,15/03/2019,5640297,293.35,REVENUE,Haxey Parish Walkers Are Welcome,,HAX0017X
North Lincolnshire Council,http://data.ordnancesurvey.co.uk/id/7000000000025623,Childrens & Education,Payments To Private Orgs,6002,27/02/2019,5629848,"9,540.00",REVENUE,Haxey Study Centre,,HAX0006X
North Lincolnshire Council,http://data.ordnancesurvey.co.uk/id/7000000000025623,Childrens & Education,Payments To Private Orgs,6002,27/02/2019,5629852,"2,400.00",REVENUE,Haxey Study Centre,,HAX0006X
North Lincolnshire Council,http://data.ordnancesurvey.co.uk/id/7000000000025623,Childrens & Education,Payments To Private Orgs,6002,27/02/2019,5629853,"6,120.00",REVENUE,Haxey Study Centre,,HAX0006X
North Lincolnshire Council,http://data.ordnancesurvey.co.uk/id/7000000000025623,Childrens & Education,Payments To Private Orgs,6002,27/02/2019,5632665,"2,520.00",REVENUE,Haxey Study Centre,,HAX0006X
North Lincolnshire Council,http://data.ordnancesurvey.co.uk/id/7000000000025623,Childrens & Education,"Clothing, Uniforms & Laundry",5301,15/03/2019,5639652,569.34,REVENUE,Hazchem Safety Llp,,HAZ0120Z
North Lincolnshire Council,http://data.ordnancesurvey.co.uk/id/7000000000025623,Corporate And Democratic Core,Course Fees/Training,2002,20/02/2019,5634769,656.00,REVENUE,Hcf Catch Ltd,3837010,HUM0237M
North Lincolnshire Council,http://data.ordnancesurvey.co.uk/id/7000000000025623,Planning Services,Exhibitions/Events,5709,27/02/2019,5638712,475.00,REVENUE,Hcf Catch Ltd,3837010,HUM0237M
North Lincolnshire Council,http://data.ordnancesurvey.co.uk/id/7000000000025623,Corporate And Democratic Core,Other Supplies & Services,5799,15/02/2019,5631947,277.00,REVENUE,H C Slingsby Plc,452716,SLI0001I
North Lincolnshire Council,http://data.ordnancesurvey.co.uk/id/7000000000025623,Fin&Inv I&E,Materials,5004,01/02/2019,5626952,"4,416.70",REVENUE,Heil Farid European Company Limited,SC053003,FAR0008R
North Lincolnshire Council,http://data.ordnancesurvey.co.uk/id/7000000000025623,Fin&Inv I&E,Materials,5004,01/02/2019,5626953,315.00,REVENUE,Heil Farid European Company Limited,SC053003,FAR0008R
North Lincolnshire Council,http://data.ordnancesurvey.co.uk/id/7000000000025623,Fin&Inv I&E,Materials,5004,01/02/2019,5626954,"4,826.20",REVENUE,Heil Farid European Company Limited,SC053003,FAR0008R
North Lincolnshire Council,http://data.ordnancesurvey.co.uk/id/7000000000025623,Fin&Inv I&E,Materials,5004,01/02/2019,5626955,220.50,REVENUE,Heil Farid European Company Limited,SC053003,FAR0008R
North Lincolnshire Council,http://data.ordnancesurvey.co.uk/id/7000000000025623,Fin&Inv I&E,Materials,5004,01/02/2019,5626956,"1,442.90",REVENUE,Heil Farid European Company Limited,SC053003,FAR0008R
North Lincolnshire Council,http://data.ordnancesurvey.co.uk/id/7000000000025623,Fin&Inv I&E,Materials,5004,13/02/2019,5633223,265.59,REVENUE,Heil Farid European Company Limited,SC053003,FAR0008R
North Lincolnshire Council,http://data.ordnancesurvey.co.uk/id/7000000000025623,Fin&Inv I&E,Materials,5004,13/02/2019,5633224,789.00,REVENUE,Heil Farid European Company Limited,SC053003,FAR0008R
North Lincolnshire Council,http://data.ordnancesurvey.co.uk/id/7000000000025623,Fin&Inv I&E,Materials,5004,15/02/2019,5633225,757.50,REVENUE,Heil Farid European Company Limited,SC053003,FAR0008R
North Lincolnshire Council,http://data.ordnancesurvey.co.uk/id/7000000000025623,Fin&Inv I&E,Materials,5004,01/03/2019,5639393,299.25,REVENUE,Heil Farid European Company Limited,SC053003,FAR0008R
North Lincolnshire Council,http://data.ordnancesurvey.co.uk/id/7000000000025623,Adult Social Care,Other Supplies & Services,5799,06/02/2019,5623539,261.50,REVENUE,He Words Ltd,,HEW0030W
North Lincolnshire Council,http://data.ordnancesurvey.co.uk/id/7000000000025623,Adult Social Care,Other Supplies & Services,5799,20/02/2019,5633909,303.68,REVENUE,He Words Ltd,,HEW0030W
North Lincolnshire Council,http://data.ordnancesurvey.co.uk/id/7000000000025623,Adult Social Care,Other Supplies & Services,5799,20/02/2019,5634548,315.10,REVENUE,He Words Ltd,,HEW0030W
North Lincolnshire Council,http://data.ordnancesurvey.co.uk/id/7000000000025623,Adult Social Care,Other Supplies & Services,5799,20/02/2019,5634549,752.70,REVENUE,He Words Ltd,,HEW0030W
North Lincolnshire Council,http://data.ordnancesurvey.co.uk/id/7000000000025623,Adult Social Care,Other Supplies & Services,5799,20/02/2019,5634555,230.25,REVENUE,He Words Ltd,,HEW0030W
North Lincolnshire Council,http://data.ordnancesurvey.co.uk/id/7000000000025623,Adult Social Care,Other Supplies & Services,5799,20/02/2019,5634556,324.75,REVENUE,He Words Ltd,,HEW0030W
North Lincolnshire Council,http://data.ordnancesurvey.co.uk/id/7000000000025623,Adult Social Care,Other Supplies & Services,5799,20/02/2019,5634557,324.75,REVENUE,He Words Ltd,,HEW0030W
North Lincolnshire Council,http://data.ordnancesurvey.co.uk/id/7000000000025623,Adult Social Care,Other Supplies & Services,5799,22/02/2019,5636370,223.25,REVENUE,He Words Ltd,,HEW0030W
North Lincolnshire Council,http://data.ordnancesurvey.co.uk/id/7000000000025623,Culture & Related Services,Payments To Voluntary Orgs,6001,22/02/2019,5637621,585.00,REVENUE,Hibaldstow Parish Council,,HIB0003B
North Lincolnshire Council,http://data.ordnancesurvey.co.uk/id/7000000000025623,Adult Social Care,Payments To Private Orgs,6002,06/02/2019,5630653,-257.85,REVENUE,Hica Ltd,,ISF0010F
North Lincolnshire Council,http://data.ordnancesurvey.co.uk/id/7000000000025623,Adult Social Care,Payments To Private Orgs,6002,06/02/2019,5630653,-368.73,REVENUE,Hica Ltd,,ISF0010F
North Lincolnshire Council,http://data.ordnancesurvey.co.uk/id/7000000000025623,Adult Social Care,Payments To Private Orgs,6002,06/02/2019,5630654,"2,406.60",REVENUE,Hica Ltd,,ISF0010F
North Lincolnshire Council,http://data.ordnancesurvey.co.uk/id/7000000000025623,Adult Social Care,Payments To Private Orgs,6002,06/02/2019,5630654,"7,449.40",REVENUE,Hica Ltd,,ISF0010F
North Lincolnshire Council,http://data.ordnancesurvey.co.uk/id/7000000000025623,Adult Social Care,Repair & Maintenance Costs,3000,13/02/2019,5632042,356.00,REVENUE,Hill Builders (Humberside) Ltd,1876857,HIL0003L
North Lincolnshire Council,http://data.ordnancesurvey.co.uk/id/7000000000025623,Adult Social Care,Repair & Maintenance Costs,3000,20/02/2019,5633364,250.14,REVENUE,Hill Builders (Humberside) Ltd,1876857,HIL0003L
North Lincolnshire Council,http://data.ordnancesurvey.co.uk/id/7000000000025623,Adult Social Care,Repair & Maintenance Costs,3000,20/02/2019,5633364,86.64,REVENUE,Hill Builders (Humberside) Ltd,1876857,HIL0003L
North Lincolnshire Council,http://data.ordnancesurvey.co.uk/id/7000000000025623,Corporate And Democratic Core,Repair & Maintenance Costs,3000,20/02/2019,5633364,"2,553.44",REVENUE,Hill Builders (Humberside) Ltd,1876857,HIL0003L
North Lincolnshire Council,http://data.ordnancesurvey.co.uk/id/7000000000025623,"Culture,Env,Reg & Planning Cap",Building/Construction,A082,20/02/2019,5633364,180.41,CAPITAL,Hill Builders (Humberside) Ltd,1876857,HIL0003L
North Lincolnshire Council,http://data.ordnancesurvey.co.uk/id/7000000000025623,"Culture,Env,Reg & Planning Cap",Building/Construction,A082,20/02/2019,5633364,"9,216.64",CAPITAL,Hill Builders (Humberside) Ltd,1876857,HIL0003L
North Lincolnshire Council,http://data.ordnancesurvey.co.uk/id/7000000000025623,Culture & Related Services,Repair & Maintenance Costs,3000,20/02/2019,5633364,"5,131.14",REVENUE,Hill Builders (Humberside) Ltd,1876857,HIL0003L
North Lincolnshire Council,http://data.ordnancesurvey.co.uk/id/7000000000025623,Fin&Inv I&E,Repair & Maintenance Costs,3000,20/02/2019,5633364,"2,156.19",REVENUE,Hill Builders (Humberside) Ltd,1876857,HIL0003L
North Lincolnshire Council,http://data.ordnancesurvey.co.uk/id/7000000000025623,Housing Services,Fees & Charges Income,9002,01/03/2019,5632704,"-1,224.99",REVENUE,Hill Builders (Humberside) Ltd,1876857,HIL0003L
North Lincolnshire Council,http://data.ordnancesurvey.co.uk/id/7000000000025623,Housing Services,Fees & Charges Income,9002,01/03/2019,5632706,-976.15,REVENUE,Hill Builders (Humberside) Ltd,1876857,HIL0003L
North Lincolnshire Council,http://data.ordnancesurvey.co.uk/id/7000000000025623,Non Distributed Costs,Capital Exp From Rev Acc (Cera,8200,27/02/2019,5640280,"2,511.00",REVENUE,Hill Builders (Humberside) Ltd,1876857,HIL0003L
North Lincolnshire Council,http://data.ordnancesurvey.co.uk/id/7000000000025623,Planning Services,Other Supplies & Services,5799,01/03/2019,5640805,913.82,REVENUE,Hill Builders (Humberside) Ltd,1876857,HIL0003L
North Lincolnshire Council,http://data.ordnancesurvey.co.uk/id/7000000000025623,Environmental & Regulatory Svs,Other Professional Fees,5829,01/03/2019,5635190,330.69,REVENUE,Hilton Studio,,HIL0023L
North Lincolnshire Council,http://data.ordnancesurvey.co.uk/id/7000000000025623,Highways & Transport,Other Supplies & Services,5799,27/02/2019,5633907,690.00,REVENUE,Hire Station Limited T/A Ess Safeforce,03428037,HIR0018R
North Lincolnshire Council,http://data.ordnancesurvey.co.uk/id/7000000000025623,Fin&Inv I&E,Other Professional Fees,5829,20/02/2019,5633870,"4,500.00",REVENUE,Hmrs Fss Accounts Receivable,,VAL0021L
North Lincolnshire Council,http://data.ordnancesurvey.co.uk/id/7000000000025623,Adult Social Care,Repair & Maintenance Costs,3000,20/02/2019,5634154,97.90,REVENUE,Holls Electrical Ltd,1421429,HOL0021L
North Lincolnshire Council,http://data.ordnancesurvey.co.uk/id/7000000000025623,Adult Social Care,Repair & Maintenance Costs,3000,20/02/2019,5634154,225.61,REVENUE,Holls Electrical Ltd,1421429,HOL0021L
North Lincolnshire Council,http://data.ordnancesurvey.co.uk/id/7000000000025623,Childrens & Education,Repair & Maintenance Costs,3000,20/02/2019,5634154,"1,268.53",REVENUE,Holls Electrical Ltd,1421429,HOL0021L
North Lincolnshire Council,http://data.ordnancesurvey.co.uk/id/7000000000025623,Childrens & Education,Repair & Maintenance Costs,3000,20/02/2019,5634154,660.55,REVENUE,Holls Electrical Ltd,1421429,HOL0021L
North Lincolnshire Council,http://data.ordnancesurvey.co.uk/id/7000000000025623,Childrens & Education,Repair & Maintenance Costs,3000,20/02/2019,5634154,117.94,REVENUE,Holls Electrical Ltd,1421429,HOL0021L
North Lincolnshire Council,http://data.ordnancesurvey.co.uk/id/7000000000025623,Corporate And Democratic Core,Repair & Maintenance Costs,3000,13/02/2019,5631446,"2,151.38",REVENUE,Holls Electrical Ltd,1421429,HOL0021L
North Lincolnshire Council,http://data.ordnancesurvey.co.uk/id/7000000000025623,Corporate And Democratic Core,Repair & Maintenance Costs,3000,20/02/2019,5634154,384.28,REVENUE,Holls Electrical Ltd,1421429,HOL0021L
North Lincolnshire Council,http://data.ordnancesurvey.co.uk/id/7000000000025623,"Culture,Env,Reg & Planning Cap",Building/Construction,A082,15/02/2019,5633863,"3,061.10",CAPITAL,Holls Electrical Ltd,1421429,HOL0021L
North Lincolnshire Council,http://data.ordnancesurvey.co.uk/id/7000000000025623,Culture & Related Services,Repair & Maintenance Costs,3000,13/02/2019,5631446,"2,967.94",REVENUE,Holls Electrical Ltd,1421429,HOL0021L
North Lincolnshire Council,http://data.ordnancesurvey.co.uk/id/7000000000025623,Culture & Related Services,Repair & Maintenance Costs,3000,20/02/2019,5634154,"2,659.90",REVENUE,Holls Electrical Ltd,1421429,HOL0021L
North Lincolnshire Council,http://data.ordnancesurvey.co.uk/id/7000000000025623,Fin&Inv I&E,Repair & Maintenance Costs,3000,20/02/2019,5634154,"1,440.56",REVENUE,Holls Electrical Ltd,1421429,HOL0021L
North Lincolnshire Council,http://data.ordnancesurvey.co.uk/id/7000000000025623,Highways & Transport,Repair & Maintenance Costs,3000,15/02/2019,5633861,"5,485.05",REVENUE,Holls Electrical Ltd,1421429,HOL0021L
North Lincolnshire Council,http://data.ordnancesurvey.co.uk/id/7000000000025623,Planning Services,Repair & Maintenance Costs,3000,20/02/2019,5634154,"1,947.70",REVENUE,Holls Electrical Ltd,1421429,HOL0021L
North Lincolnshire Council,http://data.ordnancesurvey.co.uk/id/7000000000025623,Childrens & Education,Payments To Private Orgs,6002,15/02/2019,5633486,428.57,REVENUE,Hollybank,,HOL0116L
North Lincolnshire Council,http://data.ordnancesurvey.co.uk/id/7000000000025623,Culture & Related Services,Provisions,5201,01/02/2019,5625955,387.37,REVENUE,Hopwells Limited,01404481,HOP0104P
North Lincolnshire Council,http://data.ordnancesurvey.co.uk/id/7000000000025623,Culture & Related Services,Provisions,5201,15/02/2019,5626585,417.73,REVENUE,Hopwells Limited,01404481,HOP0104P
North Lincolnshire Council,http://data.ordnancesurvey.co.uk/id/7000000000025623,Culture & Related Services,Provisions,5201,22/02/2019,5631141,256.75,REVENUE,Hopwells Limited,01404481,HOP0104P
North Lincolnshire Council,http://data.ordnancesurvey.co.uk/id/7000000000025623,Culture & Related Services,Provisions,5201,13/03/2019,5637800,331.53,REVENUE,Hopwells Limited,01404481,HOP0104P
North Lincolnshire Council,http://data.ordnancesurvey.co.uk/id/7000000000025623,Fin&Inv I&E,Provisions,5201,06/02/2019,5629435,278.05,REVENUE,Hopwells Limited,01404481,HOP0104P
North Lincolnshire Council,http://data.ordnancesurvey.co.uk/id/7000000000025623,Fin&Inv I&E,Provisions,5201,06/02/2019,5629455,269.37,REVENUE,Hopwells Limited,01404481,HOP0104P
North Lincolnshire Council,http://data.ordnancesurvey.co.uk/id/7000000000025623,Fin&Inv I&E,Provisions,5201,06/02/2019,5629463,321.17,REVENUE,Hopwells Limited,01404481,HOP0104P
North Lincolnshire Council,http://data.ordnancesurvey.co.uk/id/7000000000025623,Fin&Inv I&E,Provisions,5201,06/02/2019,5629501,255.12,REVENUE,Hopwells Limited,01404481,HOP0104P
North Lincolnshire Council,http://data.ordnancesurvey.co.uk/id/7000000000025623,Fin&Inv I&E,Provisions,5201,06/02/2019,5629504,316.56,REVENUE,Hopwells Limited,01404481,HOP0104P
North Lincolnshire Council,http://data.ordnancesurvey.co.uk/id/7000000000025623,Fin&Inv I&E,Provisions,5201,06/02/2019,5629517,317.62,REVENUE,Hopwells Limited,01404481,HOP0104P
North Lincolnshire Council,http://data.ordnancesurvey.co.uk/id/7000000000025623,Fin&Inv I&E,Provisions,5201,13/02/2019,5632860,280.87,REVENUE,Hopwells Limited,01404481,HOP0104P
North Lincolnshire Council,http://data.ordnancesurvey.co.uk/id/7000000000025623,Fin&Inv I&E,Provisions,5201,13/02/2019,5632871,295.14,REVENUE,Hopwells Limited,01404481,HOP0104P
North Lincolnshire Council,http://data.ordnancesurvey.co.uk/id/7000000000025623,Fin&Inv I&E,Provisions,5201,13/02/2019,5632877,297.27,REVENUE,Hopwells Limited,01404481,HOP0104P
North Lincolnshire Council,http://data.ordnancesurvey.co.uk/id/7000000000025623,Fin&Inv I&E,Provisions,5201,13/02/2019,5632885,341.85,REVENUE,Hopwells Limited,01404481,HOP0104P
North Lincolnshire Council,http://data.ordnancesurvey.co.uk/id/7000000000025623,Fin&Inv I&E,Provisions,5201,13/02/2019,5632912,267.73,REVENUE,Hopwells Limited,01404481,HOP0104P
North Lincolnshire Council,http://data.ordnancesurvey.co.uk/id/7000000000025623,Fin&Inv I&E,Provisions,5201,13/02/2019,5632914,264.84,REVENUE,Hopwells Limited,01404481,HOP0104P
North Lincolnshire Council,http://data.ordnancesurvey.co.uk/id/7000000000025623,Fin&Inv I&E,Provisions,5201,13/02/2019,5632939,334.71,REVENUE,Hopwells Limited,01404481,HOP0104P
North Lincolnshire Council,http://data.ordnancesurvey.co.uk/id/7000000000025623,Fin&Inv I&E,Provisions,5201,20/02/2019,5636776,250.87,REVENUE,Hopwells Limited,01404481,HOP0104P
North Lincolnshire Council,http://data.ordnancesurvey.co.uk/id/7000000000025623,Childrens & Education,Home To School Transport,4201,20/02/2019,5634613,"9,542.00",REVENUE,Hornsby Travel Services Ltd,01490232,HOR0122R
North Lincolnshire Council,http://data.ordnancesurvey.co.uk/id/7000000000025623,Highways & Transport,Concessionary Fares,6010,15/02/2019,5631773,"37,000.00",REVENUE,Hornsby Travel Services Ltd,01490232,HOR0122R
North Lincolnshire Council,http://data.ordnancesurvey.co.uk/id/7000000000025623,Highways & Transport,Passenger Transport,6011,08/02/2019,5629297,"29,790.53",REVENUE,Hornsby Travel Services Ltd,01490232,HOR0122R
North Lincolnshire Council,http://data.ordnancesurvey.co.uk/id/7000000000025623,Highways & Transport,Passenger Transport,6011,08/02/2019,5629298,"6,113.00",REVENUE,Hornsby Travel Services Ltd,01490232,HOR0122R
North Lincolnshire Council,http://data.ordnancesurvey.co.uk/id/7000000000025623,Highways & Transport,Passenger Transport,6011,08/02/2019,5629299,"6,353.50",REVENUE,Hornsby Travel Services Ltd,01490232,HOR0122R
North Lincolnshire Council,http://data.ordnancesurvey.co.uk/id/7000000000025623,Highways & Transport,Passenger Transport,6011,08/02/2019,5629301,"6,392.50",REVENUE,Hornsby Travel Services Ltd,01490232,HOR0122R
North Lincolnshire Council,http://data.ordnancesurvey.co.uk/id/7000000000025623,Planning Services,Other Supplies & Services,5799,15/02/2019,5633930,"3,220.00",REVENUE,Hornsby Travel Services Ltd,01490232,HOR0122R
North Lincolnshire Council,http://data.ordnancesurvey.co.uk/id/7000000000025623,Childrens & Education,Payments To Private Orgs,6002,20/02/2019,5637066,"-59,166.67",REVENUE,Horton Establishments Ltd,,HOR0164R
North Lincolnshire Council,http://data.ordnancesurvey.co.uk/id/7000000000025623,Childrens & Education,Payments To Private Orgs,6002,01/03/2019,5639677,"17,749.91",REVENUE,Horton Establishments Ltd,,HOR0164R
North Lincolnshire Council,http://data.ordnancesurvey.co.uk/id/7000000000025623,Childrens & Education,Payments To Private Orgs,6002,01/03/2019,5640821,"1,320.00",REVENUE,Horton Establishments Ltd,,HOR0164R
North Lincolnshire Council,http://data.ordnancesurvey.co.uk/id/7000000000025623,Childrens & Education,Payments To Private Orgs,6002,01/03/2019,5640822,"12,816.29",REVENUE,Horton Establishments Ltd,,HOR0164R
North Lincolnshire Council,http://data.ordnancesurvey.co.uk/id/7000000000025623,Adult Social Care,Payments To Private Orgs,6002,06/02/2019,5630657,"23,859.68",REVENUE,Housing & Support Solutions Ltd,,ISF0014F
North Lincolnshire Council,http://data.ordnancesurvey.co.uk/id/7000000000025623,Adult Social Care,Payments To Private Orgs,6002,06/02/2019,5630657,"2,574.64",REVENUE,Housing & Support Solutions Ltd,,ISF0014F
North Lincolnshire Council,http://data.ordnancesurvey.co.uk/id/7000000000025623,Adult Social Care,Payments To Private Orgs,6002,08/02/2019,5630644,"6,370.48",REVENUE,Housing & Support Solutions Ltd,,HOU0264U
North Lincolnshire Council,http://data.ordnancesurvey.co.uk/id/7000000000025623,Childrens & Education,Rents,3201,08/02/2019,5629306,"1,235.01",REVENUE,H S Gosal,,GOS0017S
North Lincolnshire Council,http://data.ordnancesurvey.co.uk/id/7000000000025623,Adult Social Care,Payments To Private Orgs,6002,06/02/2019,5629390,"4,184.40",REVENUE,Hugo Golden-Betts,,BET0160T
North Lincolnshire Council,http://data.ordnancesurvey.co.uk/id/7000000000025623,Corporate And Democratic Core,Subscriptions & Memberships,5510,13/02/2019,5631077,550.00,REVENUE,Hull & Humber Chamber Of Commerce,9604,HUM0116M
North Lincolnshire Council,http://data.ordnancesurvey.co.uk/id/7000000000025623,Public Health,Equipment Purchase,5001,27/03/2019,5638563,212.80,REVENUE,Humber Merchants Ltd,1045179,HUM0003M
North Lincolnshire Council,http://data.ordnancesurvey.co.uk/id/7000000000025623,Culture & Related Services,Other Supplies & Services,5799,20/03/2019,5640262,"4,500.00",REVENUE,Humber Nature Partnership,,HUM0217M
North Lincolnshire Council,http://data.ordnancesurvey.co.uk/id/7000000000025623,Highways & Transport,Equipment Hire/Rent,5002,15/02/2019,5631104,286.00,REVENUE,Humberside Aid Plant Hire Ltd,1207398,HUM0020M
North Lincolnshire Council,http://data.ordnancesurvey.co.uk/id/7000000000025623,Highways & Transport,Equipment Hire/Rent,5002,22/02/2019,5631095,546.00,REVENUE,Humberside Aid Plant Hire Ltd,1207398,HUM0020M
North Lincolnshire Council,http://data.ordnancesurvey.co.uk/id/7000000000025623,Childrens & Education,Fixtures & Fittings,3350,13/02/2019,5631373,625.00,REVENUE,Humberside Sunblinds Ltd,3810294,HUM0273M
North Lincolnshire Council,http://data.ordnancesurvey.co.uk/id/7000000000025623,Childrens & Education,Other Incidental Travel Costs,4311,08/02/2019,5628949,500.00,REVENUE,Humber Tag Account,,HUM0430M
North Lincolnshire Council,http://data.ordnancesurvey.co.uk/id/7000000000025623,Fin&Inv I&E,Grounds Maintenance,3010,20/02/2019,5634704,252.00,REVENUE,Hydrainer Pump Hire Ltd,1522204,HYD0065D
North Lincolnshire Council,http://data.ordnancesurvey.co.uk/id/7000000000025623,Fin&Inv I&E,Grounds Maintenance,3010,20/02/2019,5634714,468.00,REVENUE,Hydrainer Pump Hire Ltd,1522204,HYD0065D
North Lincolnshire Council,http://data.ordnancesurvey.co.uk/id/7000000000025623,Environmental & Regulatory Svs,Other Supplies & Services,5799,06/02/2019,5625114,475.00,REVENUE,Iccm,,IBC0004C
North Lincolnshire Council,http://data.ordnancesurvey.co.uk/id/7000000000025623,Environmental & Regulatory Svs,Subscriptions & Memberships,5510,13/02/2019,5630968,310.00,REVENUE,Iccm,,IBC0004C
North Lincolnshire Council,http://data.ordnancesurvey.co.uk/id/7000000000025623,Adult Social Care,Payments To Private Orgs,6002,15/02/2019,5633338,704.00,REVENUE,Ideal Community Care Solutions,,IDE0002E
North Lincolnshire Council,http://data.ordnancesurvey.co.uk/id/7000000000025623,Childrens & Education,Client Related Costs,5534,20/02/2019,5635872,279.50,REVENUE,I Learn Education Ltd,,ABC0063C
North Lincolnshire Council,http://data.ordnancesurvey.co.uk/id/7000000000025623,Childrens & Education,Course Fees/Training,2002,06/03/2019,5637156,"1,700.00",REVENUE,Include-Ed,10070095,INC0029C
North Lincolnshire Council,http://data.ordnancesurvey.co.uk/id/7000000000025623,Childrens & Education,Payments To Private Orgs,6002,20/02/2019,5634475,"14,171.34",REVENUE,Independent Childcare Group Of Schools Ltd,,CAM0185M
North Lincolnshire Council,http://data.ordnancesurvey.co.uk/id/7000000000025623,Childrens & Education,Payments To Private Orgs,6002,20/02/2019,5634476,"14,171.34",REVENUE,Independent Childcare Group Of Schools Ltd,,CAM0185M
North Lincolnshire Council,http://data.ordnancesurvey.co.uk/id/7000000000025623,Childrens & Education,Payments To Private Orgs,6002,01/03/2019,5641062,"12,768.00",REVENUE,Independent Childcare Group Of Schools Ltd,,CAM0185M
North Lincolnshire Council,http://data.ordnancesurvey.co.uk/id/7000000000025623,Childrens & Education,Payments To Private Orgs,6002,01/03/2019,5641063,"14,171.34",REVENUE,Independent Childcare Group Of Schools Ltd,,CAM0185M
North Lincolnshire Council,http://data.ordnancesurvey.co.uk/id/7000000000025623,Childrens & Education,Payments To Private Orgs,6002,20/03/2019,5637174,"-3,250.00",REVENUE,Independent Childcare Group Of Schools Ltd,,CLI0011I
North Lincolnshire Council,http://data.ordnancesurvey.co.uk/id/7000000000025623,Culture & Related Services,Exhibitions/Events,5709,20/03/2019,5639649,506.50,REVENUE,Info Display Ltd,,WES0256S
North Lincolnshire Council,http://data.ordnancesurvey.co.uk/id/7000000000025623,Corporate And Democratic Core,Subscriptions & Memberships,5510,06/02/2019,5625894,350.00,REVENUE,Information & Records Management Society,,INF0009F
North Lincolnshire Council,http://data.ordnancesurvey.co.uk/id/7000000000025623,Support Servs Capital,It Equipment,A098,22/02/2019,5627476,"4,249.96",CAPITAL,Insight Direct (Uk) Ltd,2579852,INS0054S
North Lincolnshire Council,http://data.ordnancesurvey.co.uk/id/7000000000025623,Highways & Transport,Stock Purchases & Adjustments,5030,22/02/2019,5630615,"1,034.40",REVENUE,Instarmac Group Plc,1324925,INS0024S
North Lincolnshire Council,http://data.ordnancesurvey.co.uk/id/7000000000025623,Planning Services,Other Supplies & Services,5799,15/02/2019,5633385,"6,087.59",REVENUE,Intelligent Plans And Examinations (Ipe) Ltd,,INT0119T
North Lincolnshire Council,http://data.ordnancesurvey.co.uk/id/7000000000025623,"Culture,Env,Reg & Planning Cap",Building/Construction,A082,15/02/2019,5633880,"1,417,412.44",CAPITAL,Interserve Construction Limited,,INT0159T
North Lincolnshire Council,http://data.ordnancesurvey.co.uk/id/7000000000025623,Childrens & Education,Home To School Transport,4201,20/02/2019,5634614,"6,208.10",REVENUE,Isle Coaches,,COA0039A
North Lincolnshire Council,http://data.ordnancesurvey.co.uk/id/7000000000025623,Childrens & Education,Home To School Transport,4201,20/02/2019,5634615,"7,711.91",REVENUE,Isle Coaches,,COA0039A
North Lincolnshire Council,http://data.ordnancesurvey.co.uk/id/7000000000025623,Highways & Transport,Concessionary Fares,6010,15/02/2019,5631789,"5,100.00",REVENUE,Isle Coaches,,COA0039A
North Lincolnshire Council,http://data.ordnancesurvey.co.uk/id/7000000000025623,Highways & Transport,Passenger Transport,6011,20/02/2019,5631913,"4,519.41",REVENUE,Isle Coaches,,COA0039A
North Lincolnshire Council,http://data.ordnancesurvey.co.uk/id/7000000000025623,Culture & Related Services,Equipment Maint.& Repair,5003,27/02/2019,5634590,993.92,REVENUE,Isle Education Trust Enterprises Limited,07814150,ISL0101L
North Lincolnshire Council,http://data.ordnancesurvey.co.uk/id/7000000000025623,Culture & Related Services,Payments To Voluntary Orgs,6001,22/02/2019,5637626,"2,000.00",REVENUE,Isle Of Axholme Horticultural Society,,ISL0100L
North Lincolnshire Council,http://data.ordnancesurvey.co.uk/id/7000000000025623,Planning Services,Payments To Voluntary Orgs,6001,15/03/2019,5637046,"1,575.00",REVENUE,Isle Of Axholme U3a,,ISL0041L
North Lincolnshire Council,http://data.ordnancesurvey.co.uk/id/7000000000025623,Corporate And Democratic Core,It Software-Maintenance,5053,08/03/2019,5637117,"1,120.00",REVENUE,Itso Limited,4115311,ITS0016S
North Lincolnshire Council,http://data.ordnancesurvey.co.uk/id/7000000000025623,Fin&Inv I&E,"Clothing, Uniforms & Laundry",5301,27/02/2019,5636095,435.00,REVENUE,Jacksons Workwear Rental Ltd,193856,JAC0171C
North Lincolnshire Council,http://data.ordnancesurvey.co.uk/id/7000000000025623,"Culture,Env,Reg & Planning Cap",Other Costs,A085,01/03/2019,5634889,"3,308.58",CAPITAL,James Coles & Sons (Nurseries) Ltd,,JAM0008M
North Lincolnshire Council,http://data.ordnancesurvey.co.uk/id/7000000000025623,Highways & Transport,Other Supplies & Services,5799,22/02/2019,5625411,832.95,REVENUE,Jet Aire Services,03466126,JET0004T
North Lincolnshire Council,http://data.ordnancesurvey.co.uk/id/7000000000025623,Fin&Inv I&E,Grounds Maintenance,3010,08/02/2019,5629811,"2,377.11",REVENUE,J E Vickers & Sons,,VIC0036C
North Lincolnshire Council,http://data.ordnancesurvey.co.uk/id/7000000000025623,Childrens & Education,Payments To Private Orgs,6002,08/02/2019,5629826,"4,200.00",REVENUE,J Hesketh,,HES0004S
North Lincolnshire Council,http://data.ordnancesurvey.co.uk/id/7000000000025623,Culture & Related Services,Other Professional Fees,5829,20/02/2019,5635192,300.00,REVENUE,Jimmy Rotherham,,ROT0061T
North Lincolnshire Council,http://data.ordnancesurvey.co.uk/id/7000000000025623,Adult Social Care,Payments To Private Orgs,6002,06/02/2019,5630665,"45,682.44",REVENUE,Jme Care Ltd,,ISF0035F
North Lincolnshire Council,http://data.ordnancesurvey.co.uk/id/7000000000025623,Environmental & Regulatory Svs,Other Supplies & Services,5799,20/02/2019,5635175,"1,950.00",REVENUE,Jne Marketing Ltd,,JNE0002E
North Lincolnshire Council,http://data.ordnancesurvey.co.uk/id/7000000000025623,Highways & Transport,Stock Purchases & Adjustments,5030,22/02/2019,5630608,606.00,REVENUE,Jobling Purser Ltd,,JOB0007B
North Lincolnshire Council,http://data.ordnancesurvey.co.uk/id/7000000000025623,Corporate And Democratic Core,Gen Office Exp (Incl Postage),5603,20/02/2019,5628464,"6,394.00",REVENUE,John Espin Signs Ltd,05305298,ESP0003P
North Lincolnshire Council,http://data.ordnancesurvey.co.uk/id/7000000000025623,Planning Services,Advertising & Publicity,5610,06/02/2019,5628822,774.00,REVENUE,John Espin Signs Ltd,05305298,ESP0003P
North Lincolnshire Council,http://data.ordnancesurvey.co.uk/id/7000000000025623,Childrens & Education,Consultancy,5830,06/03/2019,5632662,"3,400.00",REVENUE,John Fitzgerald,,FIT0130T
North Lincolnshire Council,http://data.ordnancesurvey.co.uk/id/7000000000025623,Fin&Inv I&E,Equipment Purchase,5001,06/02/2019,5629535,730.32,REVENUE,Johnson Catering Equipment,4519013,JOH0152H
North Lincolnshire Council,http://data.ordnancesurvey.co.uk/id/7000000000025623,Childrens & Education,Home To School Transport,4201,27/02/2019,5634628,"4,009.00",REVENUE,Johnson Coaches,,JOH0153H
North Lincolnshire Council,http://data.ordnancesurvey.co.uk/id/7000000000025623,Corporate And Democratic Core,Repair & Maintenance Costs,3000,01/02/2019,5625923,324.00,REVENUE,John Watson T/A Ultrasonic Systems,,WAT0063T
North Lincolnshire Council,http://data.ordnancesurvey.co.uk/id/7000000000025623,"Culture,Env,Reg & Planning Cap",Building/Construction,A082,20/02/2019,5634751,489.00,CAPITAL,John Watson T/A Ultrasonic Systems,,WAT0063T
North Lincolnshire Council,http://data.ordnancesurvey.co.uk/id/7000000000025623,Culture & Related Services,Repair & Maintenance Costs,3000,13/02/2019,5632316,"1,368.00",REVENUE,John Watson T/A Ultrasonic Systems,,WAT0063T
North Lincolnshire Council,http://data.ordnancesurvey.co.uk/id/7000000000025623,Culture & Related Services,Repair & Maintenance Costs,3000,13/02/2019,5632613,310.00,REVENUE,John Watson T/A Ultrasonic Systems,,WAT0063T
North Lincolnshire Council,http://data.ordnancesurvey.co.uk/id/7000000000025623,Culture & Related Services,Other Professional Fees,5829,13/02/2019,5631962,425.00,REVENUE,Josie Deno,,JOS0003S
North Lincolnshire Council,http://data.ordnancesurvey.co.uk/id/7000000000025623,Fin&Inv I&E,Other Professional Fees,5829,27/02/2019,5639748,"2,000.00",REVENUE,J R Planning Consultancy Ltd,10212680,JRP0120P
North Lincolnshire Council,http://data.ordnancesurvey.co.uk/id/7000000000025623,Fin&Inv I&E,Provisions,5201,06/02/2019,5629590,399.23,REVENUE,J W Young (Butcher) Ltd,01348637,JWY0001Y
North Lincolnshire Council,http://data.ordnancesurvey.co.uk/id/7000000000025623,Fin&Inv I&E,Provisions,5201,13/02/2019,5632994,256.93,REVENUE,J W Young (Butcher) Ltd,01348637,JWY0001Y
North Lincolnshire Council,http://data.ordnancesurvey.co.uk/id/7000000000025623,Fin&Inv I&E,Provisions,5201,20/02/2019,5636837,285.23,REVENUE,J W Young (Butcher) Ltd,01348637,JWY0001Y
North Lincolnshire Council,http://data.ordnancesurvey.co.uk/id/7000000000025623,Fin&Inv I&E,Provisions,5201,27/02/2019,5639785,256.97,REVENUE,J W Young (Butcher) Ltd,01348637,JWY0001Y
North Lincolnshire Council,http://data.ordnancesurvey.co.uk/id/7000000000025623,Childrens & Education,Client Transport Costs,6092,20/02/2019,5635881,510.00,REVENUE,Kaths Kabs,1967063,KAT0001T
North Lincolnshire Council,http://data.ordnancesurvey.co.uk/id/7000000000025623,Childrens & Education,Client Transport Costs,6092,20/02/2019,5635904,320.00,REVENUE,Kaths Kabs,1967063,KAT0001T
North Lincolnshire Council,http://data.ordnancesurvey.co.uk/id/7000000000025623,Childrens & Education,Client Transport Costs,6092,20/02/2019,5635908,"3,000.00",REVENUE,Kaths Kabs,1967063,KAT0001T
North Lincolnshire Council,http://data.ordnancesurvey.co.uk/id/7000000000025623,Childrens & Education,Client Transport Costs,6092,20/02/2019,5635918,300.00,REVENUE,Kaths Kabs,1967063,KAT0001T
North Lincolnshire Council,http://data.ordnancesurvey.co.uk/id/7000000000025623,Childrens & Education,Client Transport Costs,6092,20/02/2019,5635921,"1,196.00",REVENUE,Kaths Kabs,1967063,KAT0001T
North Lincolnshire Council,http://data.ordnancesurvey.co.uk/id/7000000000025623,Childrens & Education,Client Transport Costs,6092,20/02/2019,5635925,"1,196.00",REVENUE,Kaths Kabs,1967063,KAT0001T
North Lincolnshire Council,http://data.ordnancesurvey.co.uk/id/7000000000025623,Childrens & Education,Client Transport Costs,6092,20/02/2019,5636110,"1,058.00",REVENUE,Kaths Kabs,1967063,KAT0001T
North Lincolnshire Council,http://data.ordnancesurvey.co.uk/id/7000000000025623,Childrens & Education,Client Transport Costs,6092,20/02/2019,5636114,916.00,REVENUE,Kaths Kabs,1967063,KAT0001T
North Lincolnshire Council,http://data.ordnancesurvey.co.uk/id/7000000000025623,Childrens & Education,Client Transport Costs,6092,20/02/2019,5636115,"1,364.00",REVENUE,Kaths Kabs,1967063,KAT0001T
North Lincolnshire Council,http://data.ordnancesurvey.co.uk/id/7000000000025623,Childrens & Education,Client Transport Costs,6092,20/02/2019,5636117,916.00,REVENUE,Kaths Kabs,1967063,KAT0001T
North Lincolnshire Council,http://data.ordnancesurvey.co.uk/id/7000000000025623,Childrens & Education,Client Transport Costs,6092,20/02/2019,5636127,377.00,REVENUE,Kaths Kabs,1967063,KAT0001T
North Lincolnshire Council,http://data.ordnancesurvey.co.uk/id/7000000000025623,Childrens & Education,Client Transport Costs,6092,20/02/2019,5636143,640.00,REVENUE,Kaths Kabs,1967063,KAT0001T
North Lincolnshire Council,http://data.ordnancesurvey.co.uk/id/7000000000025623,Childrens & Education,Client Transport Costs,6092,20/02/2019,5636156,320.00,REVENUE,Kaths Kabs,1967063,KAT0001T
North Lincolnshire Council,http://data.ordnancesurvey.co.uk/id/7000000000025623,Childrens & Education,Client Transport Costs,6092,27/02/2019,5640079,"1,258.00",REVENUE,Kaths Kabs,1967063,KAT0001T
North Lincolnshire Council,http://data.ordnancesurvey.co.uk/id/7000000000025623,Childrens & Education,Home To School Transport,4201,27/02/2019,5640079,398.00,REVENUE,Kaths Kabs,1967063,KAT0001T
North Lincolnshire Council,http://data.ordnancesurvey.co.uk/id/7000000000025623,Childrens & Education,Home To School Transport,4201,27/02/2019,5640086,630.00,REVENUE,Kaths Kabs,1967063,KAT0001T
North Lincolnshire Council,http://data.ordnancesurvey.co.uk/id/7000000000025623,Culture & Related Services,Payments To Voluntary Orgs,6001,15/02/2019,5633974,"1,140.00",REVENUE,Kay Traviss Youth Dance Group,,KAY0006Y
North Lincolnshire Council,http://data.ordnancesurvey.co.uk/id/7000000000025623,Childrens & Education,Client Transport Costs,6092,08/02/2019,5629294,"1,156.54",REVENUE,Keadby Cabs,,KEA0022A
North Lincolnshire Council,http://data.ordnancesurvey.co.uk/id/7000000000025623,Childrens & Education,Client Transport Costs,6092,08/02/2019,5629295,"1,626.24",REVENUE,Keadby Cabs,,KEA0022A
North Lincolnshire Council,http://data.ordnancesurvey.co.uk/id/7000000000025623,Childrens & Education,Client Transport Costs,6092,20/02/2019,5633915,256.41,REVENUE,Keadby Cabs,,KEA0022A
North Lincolnshire Council,http://data.ordnancesurvey.co.uk/id/7000000000025623,Childrens & Education,Client Transport Costs,6092,20/02/2019,5633916,"1,330.56",REVENUE,Keadby Cabs,,KEA0022A
North Lincolnshire Council,http://data.ordnancesurvey.co.uk/id/7000000000025623,Childrens & Education,Client Transport Costs,6092,20/02/2019,5636164,"1,099.56",REVENUE,Keadby Cabs,,KEA0022A
North Lincolnshire Council,http://data.ordnancesurvey.co.uk/id/7000000000025623,Highways & Transport,Equipment Purchase,5001,20/02/2019,5626390,968.55,REVENUE,Keltic Clothing Co Uk Ltd,5055453,KEL0082L
North Lincolnshire Council,http://data.ordnancesurvey.co.uk/id/7000000000025623,Highways & Transport,Stock Purchases & Adjustments,5030,08/02/2019,5625046,340.80,REVENUE,Keyline Builders Merchants,42425,KEY0035Y
North Lincolnshire Council,http://data.ordnancesurvey.co.uk/id/7000000000025623,Highways & Transport,Stock Purchases & Adjustments,5030,15/02/2019,5629919,216.00,REVENUE,Keyline Builders Merchants,42425,KEY0035Y
North Lincolnshire Council,http://data.ordnancesurvey.co.uk/id/7000000000025623,Highways & Transport,Stock Purchases & Adjustments,5030,15/02/2019,5632317,952.00,REVENUE,Keyline Builders Merchants,42425,KEY0035Y
North Lincolnshire Council,http://data.ordnancesurvey.co.uk/id/7000000000025623,Childrens & Education,Payments To Private Orgs,6002,15/02/2019,5633480,"28,656.00",REVENUE,Keys 7ks Ltd,NI608728,7KS0001S
North Lincolnshire Council,http://data.ordnancesurvey.co.uk/id/7000000000025623,Childrens & Education,Payments To Private Orgs,6002,15/02/2019,5633847,"5,060.84",REVENUE,Keys 7ks Ltd,NI608728,7KS0001S
North Lincolnshire Council,http://data.ordnancesurvey.co.uk/id/7000000000025623,Childrens & Education,Payments To Private Orgs,6002,15/02/2019,5633848,"3,995.40",REVENUE,Keys 7ks Ltd,NI608728,7KS0001S
North Lincolnshire Council,http://data.ordnancesurvey.co.uk/id/7000000000025623,Childrens & Education,Payments To Private Orgs,6002,15/02/2019,5633849,"5,327.20",REVENUE,Keys 7ks Ltd,NI608728,7KS0001S
North Lincolnshire Council,http://data.ordnancesurvey.co.uk/id/7000000000025623,Childrens & Education,Payments To Private Orgs,6002,15/02/2019,5633850,"3,729.04",REVENUE,Keys 7ks Ltd,NI608728,7KS0001S
North Lincolnshire Council,http://data.ordnancesurvey.co.uk/id/7000000000025623,Childrens & Education,Payments To Private Orgs,6002,15/02/2019,5633853,"2,419.84",REVENUE,Keys 7ks Ltd,NI608728,7KS0001S
North Lincolnshire Council,http://data.ordnancesurvey.co.uk/id/7000000000025623,Childrens & Education,Payments To Private Orgs,6002,15/02/2019,5633854,"1,910.40",REVENUE,Keys 7ks Ltd,NI608728,7KS0001S
North Lincolnshire Council,http://data.ordnancesurvey.co.uk/id/7000000000025623,Childrens & Education,Payments To Private Orgs,6002,15/02/2019,5633855,"2,547.20",REVENUE,Keys 7ks Ltd,NI608728,7KS0001S
North Lincolnshire Council,http://data.ordnancesurvey.co.uk/id/7000000000025623,Childrens & Education,Payments To Private Orgs,6002,15/02/2019,5633856,"1,783.04",REVENUE,Keys 7ks Ltd,NI608728,7KS0001S
North Lincolnshire Council,http://data.ordnancesurvey.co.uk/id/7000000000025623,Childrens & Education,Payments To Private Orgs,6002,15/02/2019,5633857,"34,387.20",REVENUE,Keys 7ks Ltd,NI608728,7KS0001S
North Lincolnshire Council,http://data.ordnancesurvey.co.uk/id/7000000000025623,Childrens & Education,Payments To Private Orgs,6002,20/02/2019,5634489,"9,350.00",REVENUE,Keys 7ks Ltd,NI608728,7KS0001S
North Lincolnshire Council,http://data.ordnancesurvey.co.uk/id/7000000000025623,Childrens & Education,Payments To Private Orgs,6002,20/02/2019,5636408,"5,060.84",REVENUE,Keys 7ks Ltd,NI608728,7KS0001S
North Lincolnshire Council,http://data.ordnancesurvey.co.uk/id/7000000000025623,Childrens & Education,Payments To Private Orgs,6002,22/02/2019,5637622,"-1,400.96",REVENUE,Keys 7ks Ltd,NI608728,7KS0001S
North Lincolnshire Council,http://data.ordnancesurvey.co.uk/id/7000000000025623,Childrens & Education,Payments To Private Orgs,6002,22/02/2019,5637801,"1,910.40",REVENUE,Keys 7ks Ltd,NI608728,7KS0001S
North Lincolnshire Council,http://data.ordnancesurvey.co.uk/id/7000000000025623,Environmental & Regulatory Svs,Equipment Maint.& Repair,5003,27/02/2019,5637919,"10,668.00",REVENUE,Key Security (Uk) Ltd,6168252,KEY0017Y
North Lincolnshire Council,http://data.ordnancesurvey.co.uk/id/7000000000025623,Environmental & Regulatory Svs,Other Supplies & Services,5799,27/02/2019,5634643,"1,206.00",REVENUE,Key Security (Uk) Ltd,6168252,KEY0017Y
North Lincolnshire Council,http://data.ordnancesurvey.co.uk/id/7000000000025623,Environmental & Regulatory Svs,Other Supplies & Services,5799,27/02/2019,5634796,440.00,REVENUE,Key Security (Uk) Ltd,6168252,KEY0017Y
North Lincolnshire Council,http://data.ordnancesurvey.co.uk/id/7000000000025623,Highways & Transport,Other Professional Fees,5829,27/02/2019,5628278,"1,280.00",REVENUE,Key Security (Uk) Ltd,6168252,KEY0017Y
North Lincolnshire Council,http://data.ordnancesurvey.co.uk/id/7000000000025623,Corporate And Democratic Core,It Hardware -Purchase,5050,15/02/2019,5630724,0,REVENUE,Keysoft Solutions Ltd,,KEY0008Y
North Lincolnshire Council,http://data.ordnancesurvey.co.uk/id/7000000000025623,Corporate And Democratic Core,It Software-Maintenance,5053,15/02/2019,5630724,"3,450.00",REVENUE,Keysoft Solutions Ltd,,KEY0008Y
North Lincolnshire Council,http://data.ordnancesurvey.co.uk/id/7000000000025623,Housing Services,Other Supplies & Services,5799,06/02/2019,5628244,902.86,REVENUE,Key Transitions,07917994,KEY0071Y
North Lincolnshire Council,http://data.ordnancesurvey.co.uk/id/7000000000025623,Corporate And Democratic Core,Legal Fees,5823,06/02/2019,5626354,600.00,REVENUE,King Street Solicitors Llp,OC362247,KIN0071N
North Lincolnshire Council,http://data.ordnancesurvey.co.uk/id/7000000000025623,Childrens & Education,Other Supplies & Services,5799,13/02/2019,5631151,758.33,REVENUE,Kirton Sectional Buildings Ltd,,KIR0143R
North Lincolnshire Council,http://data.ordnancesurvey.co.uk/id/7000000000025623,Childrens & Education,Payments To Private Orgs,6002,20/03/2019,5639511,630.00,REVENUE,Kmec Scunthorpe,,KIP0010P
North Lincolnshire Council,http://data.ordnancesurvey.co.uk/id/7000000000025623,Culture & Related Services,Other Supplies & Services,5799,08/02/2019,5629815,259.95,REVENUE,Kool Kingdom Ltd,,KOO0001O
North Lincolnshire Council,http://data.ordnancesurvey.co.uk/id/7000000000025623,Environmental & Regulatory Svs,Gen Office Exp (Incl Postage),5603,27/02/2019,5634814,295.25,REVENUE,Labelman Ltd,,LAB0028B
North Lincolnshire Council,http://data.ordnancesurvey.co.uk/id/7000000000025623,Environmental & Regulatory Svs,Course Fees/Training,2002,06/02/2019,5628171,340.00,REVENUE,Land Quality Management Ltd,,LAN0016N
North Lincolnshire Council,http://data.ordnancesurvey.co.uk/id/7000000000025623,Culture & Related Services,Payments To Private Orgs,6002,06/02/2019,5623222,"5,000.00",REVENUE,Landscape Heritage Research Foundation,,LAN0246N
North Lincolnshire Council,http://data.ordnancesurvey.co.uk/id/7000000000025623,Public Health,Equipment Purchase,5001,22/02/2019,5632755,"1,282.00",REVENUE,Langham,231734,LAN0155N
North Lincolnshire Council,http://data.ordnancesurvey.co.uk/id/7000000000025623,N Lincs Gf Balance Sheet,Small Business Loans,L130,06/02/2019,5629338,"5,213.00",CAPITAL,Langleys Solicitors,,LAN0078N
North Lincolnshire Council,http://data.ordnancesurvey.co.uk/id/7000000000025623,Environmental & Regulatory Svs,Payments To Private Orgs,6002,15/02/2019,5632777,537.00,REVENUE,Las Metals,,LAS0020S
North Lincolnshire Council,http://data.ordnancesurvey.co.uk/id/7000000000025623,Environmental & Regulatory Svs,Payments To Private Orgs,6002,22/02/2019,5636423,645.00,REVENUE,Las Metals,,LAS0020S
North Lincolnshire Council,http://data.ordnancesurvey.co.uk/id/7000000000025623,Culture & Related Services,Other Supplies & Services,5799,13/02/2019,5631964,415.90,REVENUE,Ld Golf Ltd,10458739,LDG0120G
North Lincolnshire Council,http://data.ordnancesurvey.co.uk/id/7000000000025623,Culture & Related Services,Other Supplies & Services,5799,13/02/2019,5631965,"1,833.33",REVENUE,Ld Golf Ltd,10458739,LDG0120G
North Lincolnshire Council,http://data.ordnancesurvey.co.uk/id/7000000000025623,Corporate And Democratic Core,Leased Cars Rental,4301,27/02/2019,5639745,"2,579.71",REVENUE,Leaseplan Uk Ltd,1397939,AUT0035T
North Lincolnshire Council,http://data.ordnancesurvey.co.uk/id/7000000000025623,Corporate And Democratic Core,Other Professional Fees,5829,13/02/2019,5632761,"1,070.50",REVENUE,Leeds City Council,,LEE0066E
North Lincolnshire Council,http://data.ordnancesurvey.co.uk/id/7000000000025623,Corporate And Democratic Core,Other Professional Fees,5829,13/02/2019,5632762,"1,250.00",REVENUE,Leeds City Council,,LEE0066E
North Lincolnshire Council,http://data.ordnancesurvey.co.uk/id/7000000000025623,Culture & Related Services,Equipment Hire/Rent,5002,01/02/2019,5625013,895.00,REVENUE,Leena'S Leisure,,LEE0086E
North Lincolnshire Council,http://data.ordnancesurvey.co.uk/id/7000000000025623,Childrens & Education,Payments To Private Orgs,6002,08/02/2019,5629828,436.00,REVENUE,Leoni Kitchin,,KIT0156T
North Lincolnshire Council,http://data.ordnancesurvey.co.uk/id/7000000000025623,Childrens & Education,Payments To Private Orgs,6002,15/02/2019,5633136,566.00,REVENUE,Leoni Kitchin,,KIT0156T
North Lincolnshire Council,http://data.ordnancesurvey.co.uk/id/7000000000025623,Culture & Related Services,Course Fees/Training,2002,22/02/2019,5635916,366.72,REVENUE,Les Mills Fitness Uk Ltd,07880229,MIL0298L
North Lincolnshire Council,http://data.ordnancesurvey.co.uk/id/7000000000025623,Culture & Related Services,Other Supplies & Services,5799,06/02/2019,5627536,345.05,REVENUE,Les Mills Fitness Uk Ltd,07880229,MIL0298L
North Lincolnshire Council,http://data.ordnancesurvey.co.uk/id/7000000000025623,Culture & Related Services,Other Supplies & Services,5799,06/02/2019,5627538,347.50,REVENUE,Les Mills Fitness Uk Ltd,07880229,MIL0298L
North Lincolnshire Council,http://data.ordnancesurvey.co.uk/id/7000000000025623,Culture & Related Services,Other Supplies & Services,5799,01/03/2019,5635912,347.50,REVENUE,Les Mills Fitness Uk Ltd,07880229,MIL0298L
North Lincolnshire Council,http://data.ordnancesurvey.co.uk/id/7000000000025623,Culture & Related Services,Other Supplies & Services,5799,01/03/2019,5635914,345.05,REVENUE,Les Mills Fitness Uk Ltd,07880229,MIL0298L
North Lincolnshire Council,http://data.ordnancesurvey.co.uk/id/7000000000025623,Culture & Related Services,Other Supplies & Services,5799,01/03/2019,5636212,284.50,REVENUE,Les Mills Fitness Uk Ltd,07880229,MIL0298L
North Lincolnshire Council,http://data.ordnancesurvey.co.uk/id/7000000000025623,Adult Social Care,Repair & Maintenance Costs,3000,20/02/2019,5637042,111.67,REVENUE,Lewis Removals Ltd,05115077,LEW0003W
